Workbook

Sheet Menu

Sheet Notes
A5: Prepared for: | B5: {Client Name} | E5: =NOW() -> 2025-10-02T09:57:56.310
A6: Prepared by: | B6: {Adviser Name}
B7: {Adviser Group}
A58: Technical Tools: Gearing Projector
A120: Technical Tools: Gearing Projector

Sheet Instructions & Methodology
A9: Instructions for using the Gearing Projector:
A24: Step 1
A30: Step 2 Optional
A33: Step 3 Optional
A36: Step 4
A46: Step 5
A53: Step 6
A54: Optional
A58: Technical Tools: Gearing Projector
A109: Technical Tools: Gearing Projector

Sheet Assumptions
K4: (hide) | L4: (hide) | M4: (hide) | N4: (hide) | O4: (hide) | P4: (hide) | Q4: (hide) | R4: (hide) | S4: (hide)
A5: Prepared for: | B5: {Client Name} | H5: =NOW() -> 2025-10-02T09:57:56.310
A6: Prepared by: | B6: {Adviser Name} | K6: =K19="" -> TRUE | L6: =K7="" -> TRUE | M6: =K18="" -> TRUE
B7: {Adviser Group} | K7: =IF(product_type=2,IF(Gearing_type=2,"For Investment Multiplier please select either instalment gearing or margin loan as the gearing type !",""),"") -> 
A8: Details of investment: | K8: Margin Loan Facility
B9: Product type: | D9: 1 | K9: Investment Funds Multiplier
B10: Gearing type: | D10: 1
K11: Instalment Gearing
C12: Start | D12: ="Each month" -> Each month
B13: Capital | C13: 100000 | D13: 1000
B14: Loan | C14: 100000 | D14: 1000
B15: Total Invested | C15: =SUM(C13:C14) -> 200000 | D15: =SUM(D13:D14) -> 2000 | K15: Quickstart month | L15: 7
K16: =IF(Gearing_type=2,"* For Quickstart Instalment Gearing, the monthly loan amount will be $0 for the first six months.","") -> 
B17: Time horizon for projection | D17: 20 | E17: years
B18: Entry fees | D18: 0 | K18: =IF(product_type=2,IF(capitalise_interest=1,"For Investment Multiplier please set capitalise interest feature to No ! ",""),"") -> 
B19: Franking Level | D19: 0.75 | K19: =K7&K18 -> 
B20: Reinvestment of income | G20: 1 | K20: Yes
B21: Indexing of monthly investment p.a. | D21: 0 | K21: No
B22: Maximum loan amount | K22: =ISNUMBER(maximum_loan) -> FALSE
B23: Continue investing capital each month if maximum loan reached ? | G23: 1 | K23: ="Yes"&IF(product_type=2,"-N/A","") -> Yes
B24: Capitalise interest to the loan ? | G24: 2 | K24: No
A26: Performance assumptions
K27: view history
K28: FALSE
K29: start_ref
K30: =Start_Ref -> 295
C32: Start of period:
D33: 295
Q36: 38930
A38: End of year | B38: Capital Growth | C38: Income | D38: Gearing Interest Rate
A39: =IF(view_history=FALSE,"",IF(L39=TRUE,INDEX(hist_index,Start_Ref+12*K39,1),"")) ->  | B39: =IF(view_history=FALSE,"",IF(L39=TRUE,(INDEX(hist_index,Start_Ref+$F93*12,2))/(INDEX(hist_index,Start_Ref+($F93-1)*12,2))-1,"")) ->  | C39: =IF(view_history=FALSE,"",IF(L39=TRUE,((INDEX(hist_index,Start_Ref+$F93*12,3))/(INDEX(hist_index,Start_Ref+($F93-1)*12,3))-1)-((INDEX(hist_index,Start_Ref+$F93*12,2))/(INDEX(hist_index,Start_Ref+($F93-1)*12,2))-1),"")) ->  | D39: =IF(view_history=FALSE,"",IF(L39=TRUE,(INDEX(hist_index,Start_Ref+$F93*12,13)),"")) ->  | K39: 1 | L39: =IF(K39>time_horizon,FALSE,TRUE) -> TRUE | M39: =IF(view_history=TRUE,IF(Start_Ref>Index!G406-time_horizon*12,"Please select an earlier start date, for a "&time_horizon&" year period, must start on or before "&TEXT(early_date,"mmmm-yyyy"),""),"") ->  | N39: =TEXT(early_date,"MMMM-yyyy") -> June-2005
K40: 2 | L40: TRUE | M40: =INDEX(hist_index,535-time_horizon*12,1) -> 2005-06-01 | N40: =early_date -> 2005-06-01
K41: 3 | L41: TRUE | M41: =VLOOKUP(early_date,hist_index,7,FALSE) -> 295
K42: 4 | L42: TRUE
K43: 5 | L43: TRUE | M43: Company tax rate
K44: 6 | L44: TRUE | M44: 0.3
K45: 7 | L45: TRUE
K46: 8 | L46: TRUE | M46: Assumed variation over year:
K47: 9 | L47: TRUE | M47: 1 Trendline during year
K48: 10 | L48: TRUE | M48: 2 Monthly Historical Fluctuation
K49: 11 | L49: TRUE | M49: smooth fluctuate:
K50: 12 | L50: TRUE | N50: 1
K51: 13 | L51: TRUE
K52: 14 | L52: TRUE
K53: 15 | L53: TRUE
K54: 16 | L54: TRUE
K55: 17 | L55: TRUE
K56: 18 | L56: TRUE
K57: 19 | L57: TRUE
K58: 20 | L58: TRUE
C59: =time_horizon&" year Annualised return " -> 20 year Annualised return | D59: Average interest rate
B60: =IF(view_history=FALSE,"",((INDEX(hist_index,Start_Ref+12*time_horizon,2))/(INDEX(hist_index,Start_Ref,2)))^(1/time_horizon)-1) ->  | C60: =IF(view_history=FALSE,"",(((INDEX(hist_index,Start_Ref+12*time_horizon,3))/(INDEX(hist_index,Start_Ref,3)))^(1/time_horizon)-1)-(((INDEX(hist_index,Start_Ref+12*time_horizon,2))/(INDEX(hist_index,Start_Ref,2)))^(1/time_horizon)-1)) ->  | D60: =IF(view_history=FALSE,"",(((INDEX(hist_index,Start_Ref+12*time_horizon,11))/(INDEX(hist_index,Start_Ref,11)))^(1/time_horizon)-1+0.03)) -> 
A63: Performance assumptions
A70: Managed fund name | D70: Weighting % | G70: Capital gain % | H70: Income % | I70: Franking level
A71: {Insert name of Fund #1} | D71: 1 | K71: =D71*G71 -> 0 | L71: =D71*H71 -> 0 | M71: =D71*I71 -> 0 | O71: {Insert name of Fund #1} | R71: 12.5
A72: {Insert name of Fund #2} | K72: 0 | L72: 0 | M72: 0 | O72: {Insert name of Fund #2} | R72: 12.5
A73: {Insert name of Fund #3} | K73: 0 | L73: 0 | M73: 0 | O73: {Insert name of Fund #3} | R73: 12.5
A74: {Insert name of Fund #4} | K74: 0 | L74: 0 | M74: 0 | O74: {Insert name of Fund #4} | R74: 12.5
A75: {Insert name of Fund #5} | K75: 0 | L75: 0 | M75: 0 | O75: {Insert name of Fund #5} | R75: 12.5
A76: {Insert name of Fund #6} | K76: 0 | L76: 0 | M76: 0 | O76: {Insert name of Fund #6} | R76: 12.5
A77: {Insert name of Fund #7} | K77: 0 | L77: 0 | M77: 0 | O77: {Insert name of Fund #7} | R77: 12.5
A78: {Insert name of Fund #8} | K78: 0 | L78: 0 | M78: 0 | O78: {Insert name of Fund #8} | R78: 12.5
A79: Total / Weighted average | D79: =SUM(D71:D78) -> 1 | G79: =SUMPRODUCT(weights,G71:G78) -> 0 | H79: =SUMPRODUCT(weights,H71:H78) -> 0 | I79: =SUMPRODUCT(weights,I71:I78) -> 0 | K79: =SUM(K71:K78) -> 0 | L79: =SUM(L71:L78) -> 0 | M79: =SUM(M71:M78) -> 0
O80: =IF(D79<>1,"Weightings must add to 100%","") -> 
A83: Assumptions for each year of the projection
F92: Year | G92: Capital Gain | H92: Dividend Income | I92: Loan Interest Rate | J92: Other taxable income
F93: 1 | K93: 1 | L93: =IF(K93>time_horizon,FALSE,TRUE) -> TRUE | P93: =IF($L93,1+G93,"") -> 1 | Q93: =IF($L39,1+G93+H93,"") -> 1 | R93: =IF($L39,1+I93,"") -> 1 | S93: =IF($L39,J93,"") -> 0
F94: =IF(L40,K40,"") -> 2 | K94: 2 | L94: TRUE | P94: =IF($L40,1+G94,"") -> 1 | Q94: 1 | R94: 1 | S94: 0
F95: 3 | K95: 3 | L95: TRUE | P95: 1 | Q95: 1 | R95: 1 | S95: 0
F96: 4 | K96: 4 | L96: TRUE | P96: 1 | Q96: 1 | R96: 1 | S96: 0
F97: 5 | K97: 5 | L97: TRUE | P97: 1 | Q97: 1 | R97: 1 | S97: 0
F98: 6 | K98: 6 | L98: TRUE | P98: 1 | Q98: 1 | R98: 1 | S98: 0
F99: 7 | K99: 7 | L99: TRUE | P99: 1 | Q99: 1 | R99: 1 | S99: 0
F100: 8 | K100: 8 | L100: TRUE | P100: 1 | Q100: 1 | R100: 1 | S100: 0
F101: 9 | K101: 9 | L101: TRUE | P101: 1 | Q101: 1 | R101: 1 | S101: 0
F102: 10 | K102: 10 | L102: TRUE | P102: 1 | Q102: 1 | R102: 1 | S102: 0
F103: 11 | K103: 11 | L103: TRUE | P103: 1 | Q103: 1 | R103: 1 | S103: 0
F104: 12 | K104: 12 | L104: TRUE | P104: 1 | Q104: 1 | R104: 1 | S104: 0
F105: 13 | K105: 13 | L105: TRUE | P105: 1 | Q105: 1 | R105: 1 | S105: 0
F106: 14 | K106: 14 | L106: TRUE | P106: 1 | Q106: 1 | R106: 1 | S106: 0
F107: 15 | K107: 15 | L107: TRUE | P107: 1 | Q107: 1 | R107: 1 | S107: 0
F108: 16 | K108: 16 | L108: TRUE | P108: 1 | Q108: 1 | R108: 1 | S108: 0
F109: 17 | K109: 17 | L109: TRUE | P109: 1 | Q109: 1 | R109: 1 | S109: 0
F110: 18 | K110: 18 | L110: TRUE | P110: 1 | Q110: 1 | R110: 1 | S110: 0
F111: 19 | K111: 19 | L111: TRUE | P111: 1 | Q111: 1 | R111: 1 | S111: 0
F112: 20 | K112: 20 | L112: TRUE | P112: 1 | Q112: 1 | R112: 1 | S112: 0
H113: =time_horizon&" year Annualised return " -> 20 year Annualised return | I113: Average rate | P113: =PRODUCT(P93:P112)^(1/time_horizon)-1 -> 0 | Q113: =PRODUCT(Q93:Q112)^(1/time_horizon)-1-P113 -> 0 | R113: =PRODUCT(R93:R112)^(1/time_horizon)-1 -> 0 | S113: =AVERAGE(S93:S112) -> 0
G114: =P113 -> 0 | H114: =Q113 -> 0 | I114: =R113 -> 0 | J114: =S113 -> 0
G126: =Start_Ref+$F93*12 -> 307 | H126: =$F93*12 -> 12 | I126: =$F93 -> 1
G127: =INDEX(hist_index,Start_Ref+$F93*12,2) -> 5068.9
G128: =INDEX(hist_index,Start_Ref+($F93-1)*12,2) -> 4269

Sheet Index (hidden)
M1: 0.03 | N1: margin above cash rate
A2: Month | B2: Price index (XKO) | C2: Accumulation Index (XKO) | D2: Month growth | E2: Month total return | F2: Month Income | G2: Reference | H2: Year growth | I2: Year total return | J2: Year Income | K2: Cash Benchmark | L2: Cash annual return | M2: Approx Gearing Rate
A3: 1980-12-01 | B3: 713.5 | C3: 1488.6 | G3: 1 | K3: 547.535
A4: 1981-01-01 | B4: 657 | C4: 1373.8 | D4: =B4/B3-1 -> -0.07918710582 | E4: =C4/C3-1 -> -0.07711944109 | F4: =E4-D4 -> 0.002067664731 | G4: =G3+1 -> 2 | K4: 553.091
A5: 1981-02-01 | B5: 652.2 | C5: 1366.6 | D5: =B5/B4-1 -> -0.007305936073 | E5: =C5/C4-1 -> -0.005240937545 | F5: =E5-D5 -> 0.002064998528 | G5: =G4+1 -> 3 | K5: 558.955
A6: 1981-03-01 | B6: 707.9 | C6: 1495.2 | D6: 0.08540325054 | E6: 0.09410215132 | F6: 0.008698900788 | G6: 4 | K6: 564.82
A7: 1981-04-01 | B7: 706.3 | C7: 1498.1 | D7: -0.002260206244 | E7: 0.001939539861 | F7: 0.004199746105 | G7: 5 | K7: 570.992
A8: 1981-05-01 | B8: 713.4 | C8: 1515.1 | D8: 0.01005238567 | E8: 0.0113477071 | F8: 0.001295321424 | G8: 6 | K8: 577.474
A9: 1981-06-01 | B9: 699.6 | C9: 1489.6 | D9: -0.01934398654 | E9: -0.01683057224 | F9: 0.002513414304 | G9: 7 | K9: 583.955
A10: 1981-07-01 | B10: 633.4 | C10: 1351 | D10: -0.09462550029 | E10: -0.09304511278 | F10: 0.001580387504 | G10: 8 | K10: 590.437
A11: 1981-08-01 | B11: 629.2 | C11: 1343.9 | D11: -0.00663088096 | E11: -0.005255366395 | F11: 0.001375514565 | G11: 9 | K11: 597.227
A12: 1981-09-01 | B12: 575.1 | C12: 1239 | D12: -0.08598219962 | E12: -0.07805640301 | F12: 0.007925796612 | G12: 10 | K12: 604.017
A13: 1981-10-01 | B13: 549.7 | C13: 1189.7 | D13: -0.04416623196 | E13: -0.03979015335 | F13: 0.00437607861 | G13: 11 | K13: 610.808
A14: 1981-11-01 | B14: 594 | C14: 1291.1 | D14: 0.08058941241 | E14: 0.08523157098 | F14: 0.004642158578 | G14: 12 | K14: 617.289
A15: 1981-12-01 | B15: 595.5 | C15: 1296 | D15: 0.002525252525 | E15: 0.003795213384 | F15: 0.001269960859 | G15: 13 | H15: =B15/B3-1 -> -0.1653819201 | I15: =C15/C3-1 -> -0.1293833132 | J15: =I15-H15 -> 0.03599860693 | K15: 624.079 | L15: =K15/K3-1 -> 0.1397974559 | M15: =L15+$M$1 -> 0.1697974559
A16: 1982-01-01 | B16: 548.8 | C16: 1197.8 | D16: -0.07842149454 | E16: -0.07577160494 | F16: 0.002649889604 | G16: 14 | H16: =B16/B4-1 -> -0.1646879756 | I16: =C16/C4-1 -> -0.1281118067 | J16: =I16-H16 -> 0.03657616898 | K16: 631.178 | L16: =K16/K4-1 -> 0.1411829157 | M16: =L16+$M$1 -> 0.1711829157
A17: 1982-02-01 | B17: 491 | C17: 1073.6 | D17: -0.1053206997 | E17: -0.1036900985 | F17: 0.001630601195 | G17: 15 | H17: -0.2471634468 | I17: -0.2144007025 | J17: 0.03276274432 | K17: 639.511 | L17: 0.1441189362 | M17: 0.1741189362
A18: 1982-03-01 | B18: 462.1 | C18: 1018.4 | D18: -0.05885947047 | E18: -0.05141579732 | F18: 0.007443673151 | G18: 16 | H18: -0.3472241842 | I18: -0.3188871054 | J18: 0.0283370788 | K18: 649.08 | L18: 0.1491802698 | M18: 0.1791802698
A19: 1982-04-01 | B19: 503.5 | C19: 1119.1 | D19: 0.08959099762 | E19: 0.09888059701 | F19: 0.009289599395 | G19: 17 | H19: -0.2871301147 | I19: -0.252987117 | J19: 0.03414299767 | K19: 659.882 | L19: 0.1556764368 | M19: 0.1856764368
A20: 1982-05-01 | B20: 504.9 | C20: 1124.5 | D20: 0.002780536246 | E20: 0.00482530605 | F20: 0.002044769803 | G20: 18 | H20: -0.2922624054 | I20: -0.2578047654 | J20: 0.03445764002 | K20: 668.833 | L20: 0.1582045252 | M20: 0.1882045252
A21: 1982-06-01 | B21: 473 | C21: 1057.2 | D21: -0.06318082789 | E21: -0.0598488217 | F21: 0.003332006188 | G21: 19 | H21: -0.3238993711 | I21: -0.2902792696 | J21: 0.03362010147 | K21: 677.475 | L21: 0.1601493266 | M21: 0.1901493266
A22: 1982-07-01 | B22: 465.1 | C22: 1042.9 | D22: -0.01670190275 | E22: -0.01352629588 | F22: 0.003175606873 | G22: 20 | H22: -0.2657088728 | I22: -0.2280532939 | J22: 0.03765557889 | K22: 685.808 | L22: 0.1615261239 | M22: 0.1915261239
A23: 1982-08-01 | B23: 482.7 | C23: 1084.4 | D23: 0.03784132445 | E23: 0.03979288522 | F23: 0.001951560778 | G23: 21 | H23: -0.2328353465 | I23: -0.1930947243 | J23: 0.03974062216 | K23: 694.142 | L23: 0.1622749809 | M23: 0.1922749809
A24: 1982-09-01 | B24: 503.3 | C24: 1136.2 | D24: 0.04267661073 | E24: 0.04776835116 | F24: 0.005091740431 | G24: 22 | H24: -0.1248478525 | I24: -0.08297013721 | J24: 0.04187771534 | K24: 701.858 | L24: 0.1619838514 | M24: 0.1919838514
A25: 1982-10-01 | B25: 504.6 | C25: 1149.7 | D25: 0.002582952513 | E25: 0.01188171097 | F25: 0.009298758453 | G25: 23 | H25: -0.08204475168 | I25: -0.03362192149 | J25: 0.04842283019 | K25: 709.265 | L25: 0.1611914055 | M25: 0.1911914055
A26: 1982-11-01 | B26: 484.3 | C26: 1110.3 | D26: -0.04022988506 | E26: -0.03426980952 | F26: 0.005960075542 | G26: 24 | H26: -0.1846801347 | I26: -0.1400356285 | J26: 0.04464450615 | K26: 717.599 | L26: 0.1625008707 | M26: 0.1925008707
A27: 1982-12-01 | B27: 485.4 | C27: 1116.3 | D27: 0.00227131943 | E27: 0.00540394488 | F27: 0.00313262545 | G27: 25 | H27: -0.1848866499 | I27: -0.1386574074 | J27: 0.04622924247 | K27: 724.697 | L27: 0.1612263832 | M27: 0.1912263832
A28: 1983-01-01 | B28: 536.6 | C28: 1236.6 | D28: 0.1054800165 | E28: 0.1077667294 | F28: 0.002286712893 | G28: 26 | H28: -0.0222303207 | I28: 0.03239271999 | J28: 0.05462304069 | K28: 730.87 | L28: 0.157945936 | M28: 0.187945936
A29: 1983-02-01 | B29: 498.7 | C29: 1150.9 | D29: -0.07062989191 | E29: -0.06930292738 | F29: 0.001326964531 | G29: 27 | H29: 0.01568228106 | I29: 0.07200074516 | J29: 0.0563184641 | K29: 738.895 | L29: 0.1554062401 | M29: 0.1854062401
A30: 1983-03-01 | B30: 512.7 | C30: 1192.7 | D30: 0.02807298977 | E30: 0.03631940221 | F30: 0.008246412434 | G30: 28 | H30: 0.1095001082 | I30: 0.1711508248 | J30: 0.06165071662 | K30: 746.611 | L30: 0.1502603685 | M30: 0.1802603685
A31: 1983-04-01 | B31: 591.7 | C31: 1385.5 | D31: 0.1540862103 | E31: 0.1616500377 | F31: 0.00756382747 | G31: 29 | H31: 0.1751737835 | I31: 0.2380484318 | J31: 0.06287464826 | K31: 754.019 | L31: 0.1426573236 | M31: 0.1726573236
A32: 1983-05-01 | B32: 618.6 | C32: 1454.3 | D32: 0.04546222748 | E32: 0.04965716348 | F32: 0.004194935999 | G32: 30 | H32: 0.2251931075 | I32: 0.2932859048 | J32: 0.0680927973 | K32: 760.5 | L32: 0.1370551393 | M32: 0.1670551393
A33: 1983-06-01 | B33: 605.3 | C33: 1424.1 | D33: -0.02150016166 | E33: -0.02076600426 | F33: 0.0007341573921 | G33: 31 | H33: 0.2797040169 | I33: 0.3470488082 | J33: 0.06734479126 | K33: 768.525 | L33: 0.1343961032 | M33: 0.1643961032
A34: 1983-07-01 | B34: 672 | C34: 1584.5 | D34: 0.1101932926 | E34: 0.1126325398 | F34: 0.002439247268 | G34: 32 | H34: 0.4448505698 | I34: 0.5193211238 | J34: 0.07447055402 | K34: 775.624 | L34: 0.1309637683 | M34: 0.1609637683
A35: 1983-08-01 | B35: 701.4 | C35: 1656.6 | D35: 0.04375 | E35: 0.04550331335 | F35: 0.001753313348 | G35: 33 | H35: 0.453076445 | I35: 0.5276650682 | J35: 0.07458862324 | K35: 782.723 | L35: 0.1276122177 | M35: 0.1576122177
A36: 1983-09-01 | B36: 718 | C36: 1703 | D36: 0.02366695181 | E36: 0.02800917542 | F36: 0.004342223609 | G36: 34 | H36: 0.426584542 | I36: 0.4988558352 | J36: 0.07227129322 | K36: 788.895 | L36: 0.124009415 | M36: 0.154009415
A37: 1983-10-01 | B37: 687.6 | C37: 1644 | D37: -0.04233983287 | E37: -0.03464474457 | F37: 0.007695088301 | G37: 35 | H37: 0.3626634958 | I37: 0.4299382448 | J37: 0.06727474892 | K37: 795.377 | L37: 0.1214101922 | M37: 0.1514101922
A38: 1983-11-01 | B38: 744.7 | C38: 1784.6 | D38: 0.08304246655 | E38: 0.08552311436 | F38: 0.002480647805 | G38: 36 | H38: 0.5376832542 | I38: 0.6073133387 | J38: 0.06963008456 | K38: 801.55 | L38: 0.116988736 | M38: 0.146988736
A39: 1983-12-01 | B39: 775.3 | C39: 1862 | D39: 0.04109037196 | E39: 0.04337106354 | F39: 0.002280691582 | G39: 37 | H39: 0.5972393902 | I39: 0.6680103915 | J39: 0.07077100128 | K39: 807.106 | L39: 0.1137151113 | M39: 0.1437151113
A40: 1984-01-01 | B40: 765.7 | C40: 1842.5 | D40: -0.01238230362 | E40: -0.0104726101 | F40: 0.001909693528 | G40: 38 | H40: 0.4269474469 | I40: 0.4899725053 | J40: 0.06302505837 | K40: 812.97 | L40: 0.1123318784 | M40: 0.1423318784
A41: 1984-02-01 | B41: 737.6 | C41: 1778.7 | D41: -0.03669844587 | E41: -0.03462686567 | F41: 0.002071580195 | G41: 39 | H41: 0.4790455183 | I41: 0.5454861413 | J41: 0.06644062293 | K41: 820.069 | L41: 0.1098586403 | M41: 0.1398586403
A42: 1984-03-01 | B42: 750.5 | C42: 1819.2 | D42: 0.01748915401 | E42: 0.02276943835 | F42: 0.005280284341 | G42: 40 | H42: 0.4638189975 | I42: 0.5252787792 | J42: 0.06145978178 | K42: 829.019 | L42: 0.1103760861 | M42: 0.1403760861
A43: 1984-04-01 | B43: 756 | C43: 1845 | D43: 0.007328447702 | E43: 0.01418205805 | F43: 0.006853610346 | G43: 41 | H43: 0.2776744972 | I43: 0.3316492241 | J43: 0.0539747269 | K43: 837.353 | L43: 0.1105197614 | M43: 0.1405197614
A44: 1984-05-01 | B44: 654.9 | C44: 1600.3 | D44: -0.1337301587 | E44: -0.1326287263 | F44: 0.001101432443 | G44: 42 | H44: 0.05868089234 | I44: 0.1003919411 | J44: 0.0417110488 | K44: 845.686 | L44: 0.1120131492 | M44: 0.1420131492
A45: 1984-06-01 | B45: 658.8 | C45: 1615.9 | D45: 0.00595510765 | E45: 0.009748172218 | F45: 0.003793064568 | G45: 43 | H45: 0.08838592434 | I45: 0.1346815533 | J45: 0.04629562893 | K45: 853.402 | L45: 0.11044143 | M45: 0.14044143
A46: 1984-07-01 | B46: 681.6 | C46: 1675.2 | D46: 0.03460837887 | E46: 0.03669781546 | F46: 0.002089436588 | G46: 44 | H46: 0.01428571429 | I46: 0.05724203219 | J46: 0.0429563179 | K46: 861.118 | L46: 0.1102260889 | M46: 0.1402260889
A47: 1984-08-01 | B47: 733.2 | C47: 1805 | D47: 0.07570422535 | E47: 0.07748328558 | F47: 0.001779060226 | G47: 45 | H47: 0.04533789564 | I47: 0.08958106966 | J47: 0.04424317402 | K47: 868.526 | L47: 0.1096211559 | M47: 0.1396211559
A48: 1984-09-01 | B48: 739.2 | C48: 1825.4 | D48: 0.008183306056 | E48: 0.01130193906 | F48: 0.003118633003 | G48: 46 | H48: 0.0295264624 | I48: 0.071873165 | J48: 0.04234670261 | K48: 875.316 | L48: 0.1095468979 | M48: 0.1395468979
A49: 1984-10-01 | B49: 753.6 | C49: 1879.2 | D49: 0.01948051948 | E49: 0.02947299222 | F49: 0.00999247274 | G49: 47 | H49: 0.09598603839 | I49: 0.1430656934 | J49: 0.04707965504 | K49: 883.032 | L49: 0.1102056006 | M49: 0.1402056006
A50: 1984-11-01 | B50: 749 | C50: 1876.5 | D50: -0.00610403397 | E50: -0.001436781609 | F50: 0.004667252361 | G50: 48 | H50: 0.005774137236 | I50: 0.05149613359 | J50: 0.04572199635 | K50: 890.748 | L50: 0.1112818913 | M50: 0.1412818913
A51: 1984-12-01 | B51: 726.1 | C51: 1820 | D51: -0.0305740988 | E51: -0.03010924594 | F51: 0.0004648528618 | G51: 49 | H51: -0.06345930608 | I51: -0.02255639098 | J51: 0.0409029151 | K51: 899.699 | L51: 0.1147222298 | M51: 0.1447222298
A52: 1985-01-01 | B52: 773.4 | C52: 1944.1 | D52: 0.06514254235 | E52: 0.06818681319 | F52: 0.003044270837 | G52: 50 | H52: 0.01005615776 | I52: 0.05514246947 | J52: 0.04508631171 | K52: 908.958 | L52: 0.1180707775 | M52: 0.1480707775
A53: 1985-02-01 | B53: 792.3 | C53: 1995.5 | D53: 0.02443754849 | E53: 0.02643896919 | F53: 0.002001420702 | G53: 51 | H53: 0.07415943601 | I53: 0.1218867712 | J53: 0.04772733523 | K53: 918.526 | L53: 0.1200594096 | M53: 0.1500594096
A54: 1985-03-01 | B54: 829.7 | C54: 2101.5 | D54: 0.04720434179 | E54: 0.05311951892 | F54: 0.005915177128 | G54: 52 | H54: 0.1055296469 | I54: 0.1551781003 | J54: 0.04964845336 | K54: 929.946 | L54: 0.1217426862 | M54: 0.1517426862
A55: 1985-04-01 | B55: 875.1 | C55: 2231.9 | D55: 0.05471857298 | E55: 0.06205091601 | F55: 0.007332343034 | G55: 53 | H55: 0.1575396825 | I55: 0.209701897 | J55: 0.05216221448 | K55: 941.366 | L55: 0.1242164296 | M55: 0.1542164296
A56: 1985-05-01 | B56: 873.5 | C56: 2231.3 | D56: -0.001828362473 | E56: -0.0002688292486 | F56: 0.001559533224 | G56: 54 | H56: 0.3337914185 | I56: 0.3943010685 | J56: 0.06050965001 | K56: 952.786 | L56: 0.1266427492 | M56: 0.1566427492
A57: 1985-06-01 | B57: 860.8 | C57: 2205.8 | D57: -0.01453921007 | E57: -0.01142831533 | F57: 0.003110894743 | G57: 55 | H57: 0.3066180935 | I57: 0.365059719 | J57: 0.05844162554 | K57: 963.897 | L57: 0.1294759094 | M57: 0.1594759094
A58: 1985-07-01 | B58: 936.1 | C58: 2403.1 | D58: 0.0874767658 | E58: 0.08944600598 | F58: 0.001969240185 | G58: 56 | H58: 0.3733861502 | I58: 0.4345152818 | J58: 0.06112913152 | K58: 975.317 | L58: 0.1326171326 | M58: 0.1626171326
A59: 1985-08-01 | B59: 937.8 | C59: 2411.3 | D59: 0.001816045294 | E59: 0.003412259165 | F59: 0.001596213871 | G59: 57 | H59: 0.2790507365 | I59: 0.335900277 | J59: 0.05684954051 | K59: 987.663 | L59: 0.1371714836 | M59: 0.1671714836
A60: 1985-09-01 | B60: 987 | C60: 2545.9 | D60: 0.05246321177 | E60: 0.05582051176 | F60: 0.003357299985 | G60: 58 | H60: 0.3352272727 | I60: 0.3947080092 | J60: 0.05948073648 | K60: 1001.243 | L60: 0.1438646158 | M60: 0.1738646158
A61: 1985-10-01 | B61: 1027.1 | C61: 2670.1 | D61: 0.04062816616 | E61: 0.04878431989 | F61: 0.008156153727 | G61: 59 | H61: 0.3629246285 | I61: 0.4208705832 | J61: 0.05794595478 | K61: 1014.824 | L61: 0.1492494043 | M61: 0.1792494043
A62: 1985-11-01 | B62: 990.7 | C62: 2583 | D62: -0.03543958719 | E62: -0.0326205011 | F62: 0.002819086082 | G62: 60 | H62: 0.3226969292 | I62: 0.376498801 | J62: 0.05380187172 | K62: 1030.256 | L62: 0.1566189315 | M62: 0.1866189315
A63: 1985-12-01 | B63: 1003.8 | C63: 2621.9 | D63: 0.01322297365 | E63: 0.01506000774 | F63: 0.001837034088 | G63: 61 | H63: 0.3824542074 | I63: 0.4406043956 | J63: 0.05815018819 | K63: 1046.923 | L63: 0.1636369497 | M63: 0.1936369497
A64: 1986-01-01 | B64: 1075.4 | C64: 2815.5 | D64: 0.07132894999 | E64: 0.07383958198 | F64: 0.002510631992 | G64: 62 | H64: 0.390483579 | I64: 0.4482279718 | J64: 0.05774439281 | K64: 1063.28 | L64: 0.1697790217 | M64: 0.1997790217
A65: 1986-02-01 | B65: 1050.1 | C65: 2754.7 | D65: -0.02352612981 | E65: -0.02159474338 | F65: 0.001931386427 | G65: 63 | H65: 0.3253817998 | I65: 0.3804560261 | J65: 0.05507422624 | K65: 1079.33 | L65: 0.175067445 | M65: 0.205067445
A66: 1986-03-01 | B66: 1136.5 | C66: 2995.4 | D66: 0.0822778783 | E66: 0.08737793589 | F66: 0.005100057594 | G66: 64 | H66: 0.3697722068 | I66: 0.4253628361 | J66: 0.05559062925 | K66: 1093.528 | L66: 0.1759048375 | M66: 0.2059048375
A67: 1986-04-01 | B67: 1210.6 | C67: 3212.2 | D67: 0.06520017598 | E67: 0.07237764572 | F67: 0.007177469745 | G67: 65 | H67: 0.383384756 | I67: 0.4392221874 | J67: 0.05583743135 | K67: 1106.182 | L67: 0.1750817429 | M67: 0.2050817429
A68: 1986-05-01 | B68: 1241.3 | C68: 3297.6 | D68: 0.02535932595 | E68: 0.02658614034 | F68: 0.001226814386 | G68: 66 | H68: 0.4210646823 | I68: 0.4778828486 | J68: 0.05681816625 | K68: 1117.293 | L68: 0.1726589182 | M68: 0.2026589182
A69: 1986-06-01 | B69: 1180.1 | C69: 3143.1 | D69: =B69/B68-1 -> -0.04930314992 | E69: =C69/C68-1 -> -0.04685225619 | F69: =E69-D69 -> 0.002450893737 | G69: =G68+1 -> 67 | H69: 0.3709340149 | I69: 0.4249251972 | J69: 0.05399118234 | K69: 1129.022 | L69: 0.1713097976 | M69: 0.2013097976
A70: 1986-07-01 | B70: 1123.2 | C70: 2998.2 | D70: -0.04821625286 | E70: -0.04610098311 | F70: 0.002115269754 | G70: 68 | H70: 0.1998718086 | I70: 0.247638467 | J70: 0.04776665841 | K70: 1141.985 | L70: 0.1708859786 | M70: 0.2008859786
A71: 1986-08-01 | B71: 1192.3 | C71: 3187.2 | D71: 0.06152065527 | E71: 0.06303782269 | F71: 0.001517167423 | G71: 69 | H71: 0.2713798251 | I71: 0.321776635 | J71: 0.05039680989 | K71: 1157.726 | L71: 0.1721872744 | M71: 0.2021872744
A72: 1986-09-01 | B72: 1246.6 | C72: 3341.9 | D72: 0.0455422293 | E72: 0.04853790161 | F72: 0.002995672302 | G72: 70 | H72: 0.2630192503 | I72: 0.3126595703 | J72: 0.04964032004 | K72: 1174.392 | L72: 0.172934043 | M72: 0.202934043
A73: 1986-10-01 | B73: 1377.7 | C73: 3715.7 | D73: 0.1051660517 | E73: 0.111852539 | F73: 0.006686487314 | G73: 71 | H73: 0.3413494304 | I73: 0.3915958204 | J73: 0.05024638995 | K73: 1190.75 | L73: 0.1733561682 | M73: 0.2033561682
A74: 1986-11-01 | B74: 1379.6 | C74: 3732.3 | D74: 0.001379110111 | E74: 0.004467529671 | F74: 0.00308841956 | G74: 72 | H74: 0.3925507217 | I74: 0.4449477352 | J74: 0.05239701348 | K74: 1206.183 | L74: 0.1707604712 | M74: 0.2007604712
A75: 1986-12-01 | B75: 1473.1 | C75: 3991 | D75: 0.06777326761 | E75: 0.06931382793 | F75: 0.001540560321 | G75: 73 | H75: 0.467523411 | I75: 0.5221785728 | J75: 0.05465516175 | K75: 1221.615 | L75: 0.1668623194 | M75: 0.1968623194
A76: 1987-01-01 | B76: 1496.3 | C76: 4060.2 | D76: 0.01574910054 | E76: 0.01733901278 | F76: 0.001589912242 | G76: 74 | H76: 0.3913892505 | I76: 0.442088439 | J76: 0.05069918849 | K76: 1237.665 | L76: 0.1640066586 | M76: 0.1940066586
A77: 1987-02-01 | B77: 1614 | C77: 4385.102 | D77: 0.07866069638 | E77: 0.08002118122 | F77: 0.001360484838 | G77: 75 | H77: 0.5369964765 | I77: 0.5918619087 | J77: 0.05486543221 | K77: 1254.948 | L77: 0.1627101998 | M77: 0.1927101998
A78: 1987-03-01 | B78: 1689.9 | C78: 4601.602 | D78: 0.0470260223 | E78: 0.04937171359 | F78: 0.002345691284 | G78: 76 | H78: 0.486933568 | I78: 0.5362228751 | J78: 0.0492893071 | K78: 1271.616 | L78: 0.1628563695 | M78: 0.1928563695
A79: 1987-04-01 | B79: 1749.6 | C79: 4784.398 | D79: 0.03532753417 | E79: 0.03972442641 | F79: 0.004396892233 | G79: 77 | H79: 0.4452337684 | I79: 0.4894458626 | J79: 0.04421209427 | K79: 1290.134 | L79: 0.1662945157 | M79: 0.1962945157
A80: 1987-05-01 | B80: 1770.6 | C80: 4850.199 | D80: 0.01200274348 | E80: 0.01375324544 | F80: 0.001750501961 | G80: 78 | H80: =B80/B68-1 -> 0.4264077983 | I80: =C80/C68-1 -> 0.4708269651 | J80: =I80-H80 -> 0.04441916679 | K80: 1306.492 | L80: =K80/K68-1 -> 0.16933696 | M80: =L80+$M$1 -> 0.19933696
A81: 1987-06-01 | B81: 1764.1 | C81: 4840.801 | D81: -0.003671071953 | E81: -0.001937652455 | F81: 0.001733419498 | G81: 79 | H81: 0.4948733158 | I81: 0.5401358531 | J81: 0.04526253732 | K81: 1321.925 | L81: 0.1708584952 | M81: 0.2008584952
A82: 1987-07-01 | B82: 2030.4 | C82: 5580.602 | D82: 0.1509551613 | E82: 0.1528261542 | F82: 0.001870992912 | G82: 80 | H82: 0.8076923077 | I82: 0.8613174571 | J82: 0.05362514945 | K82: 1337.357 | L82: 0.1710810562 | M82: 0.2010810562
A83: 1987-08-01 | B83: 2150 | C83: 5914.699 | D83: 0.05890464933 | E83: 0.05986755551 | F83: 0.0009629061773 | G83: 81 | H83: 0.8032374402 | I83: 0.8557665035 | J83: 0.05252906327 | K83: 1352.172 | L83: 0.167955112 | M83: 0.197955112
A84: 1987-09-01 | B84: 2249.2 | C84: 6197.199 | D84: 0.04613953488 | E84: 0.04776236289 | F84: 0.001622828002 | G84: 82 | H84: 0.8042676079 | I84: 0.8543939077 | J84: 0.05012629976 | K84: 1366.987 | L84: 0.1639954972 | M84: 0.1939954972
A85: 1987-10-01 | B85: 1294.5 | C85: 3586.1 | D85: -0.4244620309 | E85: -0.4213353484 | F85: 0.003126682507 | G85: 83 | H85: -0.06039050592 | I85: -0.03487902683 | J85: 0.02551147908 | K85: 1377.172 | L85: 0.1565584716 | M85: 0.1865584716
A86: 1987-11-01 | B86: 1329.5 | C86: 3696.4 | D86: 0.0270374662 | E86: 0.03075764758 | F86: 0.003720181381 | G86: 84 | H86: -0.03631487388 | I86: -0.009618733757 | J86: 0.02669614012 | K86: 1393.53 | L86: 0.1553222024 | M86: 0.1853222024
A87: 1987-12-01 | B87: 1318.8 | C87: 3677.5 | D87: -0.008048138398 | E87: -0.005113083 | F87: 0.002935055398 | G87: 85 | H87: -0.1047450954 | I87: -0.07855174142 | J87: 0.02619335396 | K87: 1408.654 | L87: 0.1531079759 | M87: 0.1831079759
A88: 1988-01-01 | B88: 1257.1 | C88: 3510.5 | D88: -0.04678495602 | E88: -0.04541128484 | F88: 0.00137367118 | G88: 86 | H88: -0.1598609904 | I88: -0.1353874193 | J88: 0.0244735711 | K88: 1422.234 | L88: 0.1491267831 | M88: 0.1791267831
A89: 1988-02-01 | B89: 1250.7 | C89: 3499.9 | D89: -0.005091082651 | E89: -0.00301951289 | F89: 0.002071569761 | G89: 87 | H89: -0.2250929368 | I89: -0.2018657719 | J89: 0.02322716492 | K89: 1435.18 | L89: 0.143617106 | M89: 0.173617106
A90: 1988-03-01 | B90: 1415.6 | C90: 3975.3 | D90: 0.1318461661 | E90: 0.1358324524 | F90: 0.003986286209 | G90: 88 | H90: -0.1623172969 | I90: -0.1361052086 | J90: 0.0262120883 | K90: 1447.507 | L90: 0.1383208453 | M90: 0.1683208453
A91: 1988-04-01 | B91: 1456.9 | C91: 4120.5 | D91: 0.02917490817 | E91: 0.03652554524 | F91: 0.007350637076 | G91: 89 | H91: -0.1672953818 | I91: -0.1387631213 | J91: 0.02853226051 | K91: 1460.299 | L91: 0.1318971518 | M91: 0.1618971518
A92: 1988-05-01 | B92: 1566.9 | C92: 4446.602 | D92: 0.07550277988 | E92: 0.07914136634 | F92: 0.003638586464 | G92: 90 | H92: -0.1150457472 | I92: -0.083212462 | J92: 0.0318332852 | K92: 1473.357 | L92: 0.1277198789 | M92: 0.1577198789
A93: 1988-06-01 | B93: 1555 | C93: 4423.801 | D93: -0.007594613568 | E93: -0.005127735741 | F93: 0.002466877828 | G93: 91 | H93: -0.1185306955 | I93: -0.08614276852 | J93: 0.03238792702 | K93: 1488.392 | L93: 0.125927719 | M93: 0.155927719
A94: 1988-07-01 | B94: 1611.6 | C94: 4591.102 | D94: 0.03639871383 | E94: 0.03781838288 | F94: 0.001419669053 | G94: 92 | H94: -0.2062647754 | I94: -0.1773106199 | J94: 0.02895415552 | K94: 1503.894 | L94: 0.1245269588 | M94: 0.1545269588
A95: 1988-08-01 | B95: 1570.6 | C95: 4482 | D95: -0.02544055597 | E95: -0.02376379353 | F95: 0.00167676244 | G95: 93 | H95: -0.2694883721 | I95: -0.2422268656 | J95: 0.02726150645 | K95: 1520.954 | L95: 0.1248228776 | M95: 0.1548228776
A96: 1988-09-01 | B96: 1551.6 | C96: 4439.602 | D96: -0.01209728766 | E96: -0.009459616243 | F96: 0.002637671418 | G96: 94 | H96: -0.3101547217 | I96: -0.2836115155 | J96: 0.02654320622 | K96: 1537.104 | L96: 0.1244466846 | M96: 0.1544466846
A97: 1988-10-01 | B97: 1586.9 | C97: 4579.398 | D97: 0.02275070895 | E97: 0.0314884082 | F97: 0.00873769925 | G97: 95 | H97: 0.2258787177 | I97: 0.2769855832 | J97: 0.05110686557 | K97: 1554.754 | L97: 0.1289468563 | M97: 0.1589468563
A98: 1988-11-01 | B98: 1471.4 | C98: 4262.699 | D98: -0.0727834142 | E98: -0.06915734339 | F98: 0.003626070815 | G98: 96 | H98: 0.1067318541 | I98: 0.153202846 | J98: 0.04647099193 | K98: 1571.632 | L98: 0.1278063623 | M98: 0.1578063623
A99: 1988-12-01 | B99: 1487.2 | C99: 4334.898 | D99: 0.01073807258 | E99: 0.01693739108 | F99: 0.006199318492 | G99: 97 | H99: 0.1276918411 | I99: 0.1787622026 | J99: 0.05107036152 | K99: 1590.459 | L99: 0.1290629211 | M99: 0.1590629211
A100: 1989-01-01 | B100: 1550.8 | C100: 4528.199 | D100: 0.04276492738 | E100: 0.044591822 | F100: 0.001826894619 | G100: 98 | H100: 0.2336329648 | I100: 0.2899014385 | J100: 0.05626847378 | K100: 1611.12 | L100: 0.1328093689 | M100: 0.1628093689
A101: 1989-02-01 | B101: 1485.3 | C101: 4348.398 | D101: -0.04223626515 | E101: -0.03970695634 | F101: 0.002529308812 | G101: 99 | H101: 0.187574958 | I101: 0.2424349267 | J101: 0.05485996869 | K101: 1629.107 | L101: 0.1351238172 | M101: 0.1651238172
A102: 1989-03-01 | B102: 1459.6 | C102: 4297.199 | D102: -0.01730290177 | E102: -0.01177422122 | F102: 0.005528680552 | G102: 100 | H102: 0.03108222662 | I102: 0.0809747692 | J102: 0.04989254258 | K102: 1651.029 | L102: 0.140601738 | M102: 0.170601738
A103: 1989-04-01 | B103: 1500.6 | C103: 4459.898 | D103: 0.02808988764 | E103: 0.03786163964 | F103: 0.009771752 | G103: 101 | H103: 0.02999519528 | I103: 0.0823681592 | J103: 0.05237296393 | K103: 1673.417 | L103: 0.1459413449 | M103: 0.1759413449
A104: 1989-05-01 | B104: 1530 | C104: 4569.199 | D104: 0.01959216313 | E104: 0.02450751116 | F104: 0.004915348024 | G104: 102 | H104: -0.02354968409 | I104: 0.02757094069 | J104: 0.05112062478 | K104: 1697.445 | L104: 0.1520934845 | M104: 0.1820934845
A105: 1989-06-01 | B105: 1521.1 | C105: 4579.801 | D105: -0.005816993464 | E105: 0.002320319163 | F105: 0.008137312627 | G105: 103 | H105: -0.02180064309 | I105: 0.03526379238 | J105: 0.05706443547 | K105: 1722.727 | L105: 0.1574417223 | M105: 0.1874417223
A106: 1989-07-01 | B106: 1634.3 | C106: 4928.301 | D106: 0.07441982776 | E106: 0.07609500937 | F106: 0.001675181612 | G106: 104 | H106: 0.01408538099 | I106: 0.07344620093 | J106: 0.05936081995 | K106: 1748.675 | L106: 0.1627647959 | M106: 0.1927647959
A107: 1989-08-01 | B107: 1763.2 | C107: 5324.102 | D107: 0.07887168818 | E107: 0.08031185595 | F107: 0.001440167767 | G107: 105 | H107: 0.1226282949 | I107: 0.1878853191 | J107: 0.06525702413 | K107: 1775.48 | L107: 0.167346284 | M107: 0.197346284
A108: 1989-09-01 | B108: 1736 | C108: 5255.398 | D108: -0.01542649728 | E108: -0.01290433579 | F108: 0.002522161485 | G108: 106 | H108: 0.1188450632 | I108: 0.1837543095 | J108: 0.06490924635 | K108: 1799.604 | L108: 0.1707756925 | M108: 0.2007756925
A109: 1989-10-01 | B109: 1646.2 | C109: 5026.602 | D109: -0.0517281106 | E109: -0.04353542776 | F109: 0.008192682835 | G109: 107 | H109: 0.03736845422 | I109: 0.09765563072 | J109: 0.0602871765 | K109: 1828.184 | L109: 0.1758670504 | M109: 0.2058670504
A110: 1989-11-01 | B110: 1611.6 | C110: 4954.301 | D110: -0.0210181023 | E110: -0.01438367311 | F110: 0.006634429191 | G110: 108 | H110: 0.09528340356 | I110: 0.162245094 | J110: 0.06696169045 | K110: 1855.871 | L110: 0.180855951 | M110: 0.210855951
A111: 1989-12-01 | B111: 1649.8 | C111: 5089.199 | D111: 0.02370315215 | E111: 0.0272284627 | F111: 0.003525310556 | G111: 109 | H111: 0.1093329747 | I111: 0.1740066318 | J111: 0.06467365704 | K111: 1882.554 | L111: 0.1836545299 | M111: 0.2136545299
A112: 1990-01-01 | B112: 1677 | C112: 5182.398 | D112: 0.01648684689 | E112: 0.01831309799 | F112: 0.001826251104 | G112: 110 | H112: 0.08137735362 | I112: 0.1444722284 | J112: 0.06309487474 | K112: 1913.764 | L112: 0.1878469636 | M112: 0.2178469636
A113: 1990-02-01 | B113: 1573 | C113: 4867.398 | D113: -0.06201550388 | E113: -0.06078267242 | F113: 0.001232831453 | G113: 111 | H113: 0.05904531071 | I113: 0.1193543001 | J113: 0.06030898942 | K113: 1938.497 | L113: 0.1899138608 | M113: 0.2199138608
A114: 1990-03-01 | B114: 1535.8 | C114: 4786.102 | D114: -0.02364907819 | E114: -0.01670214764 | F114: 0.006946930558 | G114: 112 | H114: 0.05220608386 | I114: 0.113772483 | J114: 0.0615663991 | K114: 1965.638 | L114: 0.1905532853 | M114: 0.2205532853
A115: 1990-04-01 | B115: 1434.5 | C115: 4507.699 | D115: -0.06595910926 | E115: -0.05816904863 | F115: 0.007790060626 | G115: 113 | H115: -0.04404904705 | I115: 0.01071795812 | J115: 0.05476700517 | K115: 1991.279 | L115: 0.1899478731 | M115: 0.2199478731
A116: 1990-05-01 | B116: 1511.6 | C116: 4772.801 | D116: 0.05374695016 | E116: 0.05881093658 | F116: 0.005063986421 | G116: 114 | H116: -0.01202614379 | I116: 0.04455967009 | J116: 0.05658581388 | K116: 2016.671 | L116: 0.1880626471 | M116: 0.2180626471
A117: 1990-06-01 | B117: 1500.7 | C117: 4767.102 | D117: -0.007210902355 | E117: -0.001194057745 | F117: 0.00601684461 | G117: 115 | H117: -0.01341134705 | I117: 0.04089719182 | J117: 0.05430853887 | K117: 2040.252 | L117: 0.1843153326 | M117: 0.2143153326
A118: 1990-07-01 | B118: 1573.9 | C118: 5008.398 | D118: 0.04877723729 | E118: 0.05061691569 | F118: 0.001839678397 | G118: 116 | H118: -0.0369577189 | I118: 0.01625245698 | J118: 0.05321017588 | K118: 2066.851 | L118: 0.1819526213 | M118: 0.2119526213
A119: 1990-08-01 | B119: 1507.6 | C119: 4804.801 | D119: -0.04212465849 | E119: -0.04065112237 | F119: 0.001473536117 | G119: 117 | H119: -0.1449637024 | I119: -0.09753776318 | J119: 0.04742593918 | K119: 2093.686 | L119: 0.1792225201 | M119: 0.2092225201
A120: 1990-09-01 | B120: 1396.8 | C120: 4464.199 | D120: -0.07349429557 | E120: -0.07088784738 | F120: 0.002606448185 | G120: 118 | H120: -0.1953917051 | I120: -0.1505497776 | J120: 0.04484192749 | K120: 2115.777 | L120: 0.1756903185 | M120: 0.2056903185
A121: 1990-10-01 | B121: 1327.2 | C121: 4286.199 | D121: -0.04982817869 | E121: -0.03987277449 | F121: 0.009955404205 | G121: 119 | H121: -0.1937796137 | I121: -0.1472969215 | J121: 0.0464826922 | K121: 2142.486 | L121: 0.1719203319 | M121: 0.2019203319
A122: 1990-11-01 | B122: 1319.7 | C122: 4301 | D122: -0.005650994575 | E122: 0.003453176112 | F122: 0.009104170687 | G122: 120 | H122: -0.1811243485 | I122: -0.1318654236 | J122: 0.04925892487 | K122: 2165.101 | L122: 0.1666225724 | M122: 0.1966225724
A123: 1990-12-01 | B123: 1279.8 | C123: 4197.699 | D123: -0.03023414412 | E123: -0.02401790281 | F123: 0.00621624131 | G123: 121 | H123: -0.2242696084 | I123: -0.1751749146 | J123: 0.04909469388 | K123: 2188.379 | L123: 0.1624521793 | M123: 0.1924521793
A124: 1991-01-01 | B124: 1321.5 | C124: 4335.602 | D124: 0.03258321613 | E124: 0.03285204585 | F124: 0.0002688297195 | G124: 122 | H124: -0.2119856887 | I124: -0.1633984885 | J124: 0.04858720023 | K124: 2210.914 | L124: 0.1552699288 | M124: 0.1852699288
A125: 1991-02-01 | B125: 1405.6 | C125: 4622.102 | D125: 0.06363980325 | E125: 0.06608078878 | F125: 0.002440985527 | G125: 123 | H125: -0.1064208519 | I125: -0.05039571451 | J125: 0.05602513737 | K125: 2230.712 | L125: 0.1507430757 | M125: 0.1807430757
A126: 1991-03-01 | B126: 1444.2 | C126: 4775.801 | D126: 0.02746158224 | E126: 0.0332530524 | F126: 0.005791470157 | G126: 124 | H126: -0.05964318271 | I126: -0.002152273395 | J126: 0.05749090931 | K126: 2250.924 | L126: 0.1451365918 | M126: 0.1751365918
A127: 1991-04-01 | B127: 1534.2 | C127: 5092.699 | D127: 0.06231823847 | E127: 0.06635494234 | F127: 0.004036703873 | G127: 125 | H127: 0.06950156849 | I127: 0.1297779643 | J127: 0.06027639583 | K127: 2274.285 | L127: 0.1421227261 | M127: 0.1721227261
A128: 1991-05-01 | B128: 1510 | C128: 5038.301 | D128: -0.01577369313 | E128: -0.0106815659 | F128: 0.005092127226 | G128: 126 | H128: -0.00105848108 | I128: 0.05562771211 | J128: 0.05668619319 | K128: 2297.834 | L128: 0.1394193698 | M128: 0.1694193698
A129: 1991-06-01 | B129: 1506.2 | C129: 5046.602 | D129: -0.002516556291 | E129: 0.001647579214 | F129: 0.004164135505 | G129: 127 | H129: 0.003664956354 | I129: 0.05863100894 | J129: 0.05496605259 | K129: 2315.506 | L129: 0.1349117658 | M129: 0.1649117658
A130: 1991-07-01 | B130: 1572.3 | C130: 5273.898 | D130: 0.0438852742 | E130: 0.04503941464 | F130: 0.00115414044 | G130: 128 | H130: -0.00101658301 | I130: 0.05301096279 | J130: 0.0540275458 | K130: 2337.911 | L130: 0.1311463671 | M130: 0.1611463671
A131: 1991-08-01 | B131: 1540.4 | C131: 5173.5 | D131: -0.02028874897 | E131: -0.01903677318 | F131: 0.001251975787 | G131: 129 | H131: 0.02175643407 | I131: 0.07673554014 | J131: 0.05497910607 | K131: 2356.942 | L131: 0.1257380524 | M131: 0.1557380524
A132: 1991-09-01 | B132: 1562.1 | C132: 5257.5 | D132: 0.01408725006 | E132: 0.01623659032 | F132: 0.002149340251 | G132: 130 | H132: 0.1183419244 | I132: 0.1777028757 | J132: 0.0593609513 | K132: 2378.28 | L132: 0.1240693135 | M132: 0.1540693135
A133: 1991-10-01 | B133: 1683 | C133: 5700.102 | D133: =B133/B132-1 -> 0.07739581333 | E133: =C133/C132-1 -> 0.08418487874 | F133: =E133-D133 -> 0.006789065416 | G133: =G132+1 -> 131 | H133: 0.2680831826 | I133: 0.3298733913 | J133: 0.06179020868 | K133: 2399.105 | L133: 0.1197762786 | M133: 0.1497762786
A134: 1991-11-01 | B134: 1606.9 | C134: 5469.102 | D134: -0.04521687463 | E134: -0.04052559059 | F134: 0.004691284034 | G134: 132 | H134: 0.2176252179 | I134: 0.2715884678 | J134: 0.05396324995 | K134: 2415.506 | L134: 0.1156551126 | M134: 0.1456551126
A135: 1991-12-01 | B135: 1651.399 | C135: 5634.898 | D135: 0.0276924513 | E135: 0.03031503161 | F135: 0.002622580305 | G135: 133 | H135: 0.290357087 | I135: 0.3423778122 | J135: 0.05202072518 | K135: 2433.457 | L135: 0.1119906561 | M135: 0.1419906561
A136: 1992-01-01 | B136: 1622.7 | C136: 5544.199 | D136: -0.01737859839 | E136: -0.01609594353 | F136: 0.001282654859 | G136: 134 | H136: 0.227922815 | I136: 0.2787610579 | J136: 0.05083824288 | K136: 2449.964 | L136: 0.108122704 | M136: 0.138122704
A137: 1992-02-01 | B137: 1614.2 | C137: 5525.699 | D137: -0.005238183275 | E137: -0.003336821063 | F137: 0.001901362212 | G137: 135 | H137: 0.1484063745 | I137: 0.1954948203 | J137: 0.04708844582 | K137: 2464.289 | L137: 0.1047096174 | M137: 0.1347096174
A138: 1992-03-01 | B138: 1582.6 | C138: 5435.898 | D138: -0.01957626069 | E138: -0.01625151859 | F138: 0.0033247421 | G138: 136 | H138: 0.09583160227 | I138: 0.1382170237 | J138: 0.04238542143 | K138: 2480.269 | L138: 0.1018892686 | M138: 0.1318892686
A139: 1992-04-01 | B139: 1655.899 | C139: 5715.898 | D139: 0.04631555668 | E139: 0.05150942862 | F139: 0.005193871938 | G139: 137 | H139: 0.0793240777 | I139: 0.1223710649 | J139: 0.04304698724 | K139: 2497.326 | L139: 0.09807082226 | M139: 0.1280708223
A140: 1992-05-01 | B140: 1678.299 | C140: 5816.398 | D140: 0.01352739509 | E140: 0.01758253909 | F140: 0.004055143998 | G140: 138 | H140: 0.1114562914 | I140: 0.1544363864 | J140: 0.042980095 | K140: 2510.926 | L140: 0.0927360288 | M140: 0.1227360288
A141: 1992-06-01 | B141: 1644.699 | C141: 5720.102 | D141: -0.02002027052 | E141: -0.01655595095 | F141: 0.003464319573 | G141: 139 | H141: 0.09195259594 | I141: 0.1334561354 | J141: 0.0415035395 | K141: 2525.292 | L141: 0.09060049942 | M141: 0.1206004994
A142: 1992-07-01 | B142: 1617.7 | C142: 5631.5 | D142: -0.01641576969 | E142: -0.01548958393 | F142: 0.000926185767 | G142: 140 | H142: 0.02887489665 | I142: 0.06780601369 | J142: 0.03893111704 | K142: 2540.133 | L142: 0.08649687691 | M142: 0.1164968769
A143: 1992-08-01 | B143: 1547.2 | C143: 5392.5 | D143: -0.04358039191 | E143: -0.04243984729 | F143: 0.001140544627 | G143: 141 | H143: 0.004414437808 | I143: 0.04233111047 | J143: 0.03791667266 | K143: 2551.475 | L143: 0.0825361846 | M143: 0.1125361846
A144: 1992-09-01 | B144: 1485 | C144: 5198 | D144: -0.0402016546 | E144: -0.03606861382 | F144: 0.004133040786 | G144: 142 | H144: =B144/B132-1 -> -0.0493566353 | I144: =C144/C132-1 -> -0.01131716595 | J144: =I144-H144 -> 0.03803946935 | K144: 2563.723 | L144: =K144/K132-1 -> 0.07797357754 | M144: =L144+$M$1 -> 0.1079735775
A145: 1992-10-01 | B145: 1425.8 | C145: 5033.5 | D145: -0.03986531987 | E145: -0.03164678723 | F145: 0.008218532639 | G145: 143 | H145: -0.1528223411 | I145: -0.1169456266 | J145: 0.03587671447 | K145: 2576.059 | L145: 0.07375833905 | M145: 0.103758339
A146: 1992-11-01 | B146: 1448.1 | C146: 5124 | D146: 0.01564034226 | E146: 0.0179795371 | F146: 0.002339194837 | G146: 144 | H146: -0.09882382227 | I146: -0.06310030422 | J146: 0.03572351805 | K146: 2589.071 | L146: 0.07185450999 | M146: 0.10185451
A147: 1992-12-01 | B147: 1549.9 | C147: 5504.602 | D147: 0.0702990125 | E147: 0.0742782982 | F147: 0.003979285705 | G147: 145 | H147: -0.06146243276 | I147: -0.023123045 | J147: 0.03833938777 | K147: 2601.847 | L147: 0.0691978531 | M147: 0.0991978531
A148: 1993-01-01 | B148: 1528.2 | C148: 5429.301 | D148: -0.01400090328 | E148: -0.01367964478 | F148: 0.0003212585069 | G148: 146 | H148: -0.05823627288 | I148: -0.02072400359 | J148: 0.03751226928 | K148: 2614.152 | L148: 0.06701649494 | M148: 0.09701649494
A149: 1993-02-01 | B149: 1609.599 | C149: 5727.602 | D149: 0.05326462505 | E149: 0.05494280019 | F149: 0.001678175138 | G149: 147 | H149: -0.002850328336 | I149: 0.03653890666 | J149: 0.039389235 | K149: 2626.597 | L149: 0.06586402812 | M149: 0.09586402812
A150: 1993-03-01 | B150: 1667.4 | C150: 5968.102 | D150: 0.03591018633 | E150: 0.04198964942 | F150: 0.006079463095 | G150: 148 | H150: 0.05358271199 | I150: 0.09790544267 | J150: 0.04432273068 | K150: 2640.185 | L150: 0.06447526458 | M150: 0.09447526458
A151: 1993-04-01 | B151: 1681.5 | C151: 6036 | D151: 0.008456279237 | E151: 0.01137681628 | F151: 0.002920537044 | G151: 149 | H151: 0.015460484 | I151: 0.05600204902 | J151: 0.04054156502 | K151: 2651.906 | L151: 0.06189820632 | M151: 0.09189820632
A152: 1993-05-01 | B152: 1737.4 | C152: 6253.898 | D152: 0.03324412727 | E152: 0.03609973492 | F152: 0.002855607656 | G152: 150 | H152: 0.03521482167 | I152: 0.07521837398 | J152: 0.04000355231 | K152: 2663.444 | L152: 0.06074173432 | M152: 0.09074173432
A153: 1993-06-01 | B153: 1738.1 | C153: 6287.102 | D153: 0.0004029008864 | E153: 0.005309328678 | F153: 0.004906427792 | G153: 151 | H153: 0.0567891146 | I153: 0.09912410653 | J153: 0.04233499192 | K153: 2674.656 | L153: 0.05914721941 | M153: 0.08914721941
A154: 1993-07-01 | B154: 1844 | C154: 6675.398 | D154: 0.0609286002 | E154: 0.06176072855 | F154: 0.0008321283563 | G154: 152 | H154: 0.1398899672 | I154: 0.185367664 | J154: 0.0454776968 | K154: 2687.259 | L154: 0.0579205892 | M154: 0.0879205892
A155: 1993-08-01 | B155: 1962.199 | C155: 7109.801 | D155: 0.06409924078 | E155: 0.06507522098 | F155: 0.0009759802022 | G155: 153 | H155: 0.2682258273 | I155: 0.3184610107 | J155: 0.05023518336 | K155: 2698.571 | L155: 0.05765135853 | M155: 0.08765135853
A156: 1993-09-01 | B156: 1964.4 | C156: 7149.797 | D156: 0.001121700704 | E156: 0.005625473906 | F156: 0.004503773202 | G156: 154 | H156: 0.3228282828 | I156: 0.3754899962 | J156: 0.05266171332 | K156: 2709.124 | L156: 0.05671478549 | M156: 0.08671478549
A157: 1993-10-01 | B157: 2112.199 | C157: 7736.301 | D157: 0.07523874975 | E157: 0.08203086046 | F157: 0.006792110711 | G157: 155 | H157: 0.4814132417 | I157: 0.5369625509 | J157: 0.05554930922 | K157: 2719.837 | L157: 0.05581316266 | M157: 0.08581316266
A158: 1993-11-01 | B158: 2009.399 | C158: 7372.398 | D158: -0.0486696566 | E158: -0.04703837144 | F158: 0.001631285161 | G158: 156 | H158: 0.3876106622 | I158: 0.4387974239 | J158: 0.05118676164 | K158: 2731.037 | L158: 0.05483279524 | M158: 0.08483279524
A159: 1993-12-01 | B159: 2173.599 | C159: 8001.602 | D159: 0.08171597577 | E159: 0.0853459078 | F159: 0.003629932032 | G159: 157 | H159: 0.4024124137 | I159: 0.4536204434 | J159: 0.0512080297 | K159: 2742.083 | L159: 0.05389863432 | M159: 0.08389863432
A160: 1994-01-01 | B160: 2310.8 | C160: 8508.301 | D160: 0.06312157854 | E160: 0.06332469423 | F160: 0.0002031156867 | G160: 158 | H160: 0.5121057453 | I160: 0.5671079942 | J160: 0.05500224888 | K160: 2753.472 | L160: 0.05329452916 | M160: 0.08329452916
A161: 1994-02-01 | B161: 2180.1 | C161: 8037.801 | D161: -0.05656049853 | E161: -0.05529893689 | F161: 0.001261561643 | G161: 159 | H161: 0.3544367262 | I161: 0.4033448902 | J161: 0.04890816407 | K161: 2763.344 | L161: 0.05206242145 | M161: 0.08206242145
A162: 1994-03-01 | B162: 2053.099 | C162: 7614.5 | D162: -0.05825466722 | E162: -0.05266378205 | F162: 0.00559088517 | G162: 160 | H162: 0.2313176202 | I162: 0.2758662637 | J162: 0.04454864343 | K162: 2774.444 | L162: 0.05085211832 | M162: 0.08085211832
A163: 1994-04-01 | B163: 2066.1 | C163: 7671.895 | D163: 0.006332378517 | E163: 0.007537592751 | F163: 0.001205214234 | G163: 161 | H163: 0.2287243533 | I163: 0.2710230285 | J163: 0.04229867524 | K163: 2785.499 | L163: 0.05037621997 | M163: 0.08037621997
A164: 1994-05-01 | B164: 2081.799 | C164: 7760.102 | D164: 0.007598373748 | E164: 0.01149742013 | F164: 0.003899046381 | G164: 162 | H164: 0.1982266605 | I164: 0.2408424314 | J164: 0.04261577087 | K164: 2797.454 | L164: 0.05031455514 | M164: 0.08031455514
A165: 1994-06-01 | B165: 1989.099 | C165: 7447.602 | D165: -0.04452879457 | E165: -0.04027008923 | F165: 0.004258705333 | G165: 163 | H165: 0.1444099879 | I165: 0.1845842488 | J165: 0.04017426091 | K165: 2806.579 | L165: 0.04932335224 | M165: 0.07932335224
A166: 1994-07-01 | B166: 2061.499 | C166: 7724.496 | D166: 0.03639838942 | E166: 0.037178947 | F166: 0.0007805575737 | G166: 164 | H166: 0.1179495662 | I166: 0.157158869 | J166: 0.03920930287 | K166: 2819.648 | L166: 0.04926544111 | M166: 0.07926544111
A167: 1994-08-01 | B167: 2122.099 | C167: 7959 | D167: 0.02939608508 | E167: 0.03035848552 | F167: 0.0009624004427 | G167: 165 | H167: 0.08149020563 | I167: 0.1194406144 | J167: 0.03795040881 | K167: 2832.396 | L167: 0.04959106134 | M167: 0.07959106134
A168: 1994-09-01 | B168: 2028.7 | C168: 7650.301 | D168: -0.04401255549 | E168: -0.03878615404 | F168: 0.005226401454 | G168: 166 | H168: 0.03273264101 | I168: 0.07000254693 | J168: 0.03726990592 | K168: 2844.712 | L168: 0.05004865041 | M168: 0.08004865041
A169: 1994-10-01 | B169: 2044.8 | C169: 7749 | D169: 0.007936116725 | E169: 0.01290132244 | F169: 0.00496520572 | G169: 167 | H169: -0.03190939869 | I169: 0.00164148215 | J169: 0.03355088084 | K169: 2857.886 | L169: 0.05075635047 | M169: 0.08075635047
A170: 1994-11-01 | B170: 1890.7 | C170: 7189.8 | D170: -0.07536189358 | E170: -0.07216415021 | F170: 0.003197743371 | G170: 168 | H170: -0.05907189165 | I170: -0.02476778926 | J170: 0.03430410239 | K170: 2873.013 | L170: 0.0519861137 | M170: 0.0819861137
A171: 1994-12-01 | B171: 1912.7 | C171: 7307.8 | D171: 0.01163590205 | E171: 0.01641213942 | F171: 0.004776237373 | G171: 169 | H171: -0.1200308797 | I171: -0.08670788675 | J171: 0.03332299292 | K171: 2888.485 | L171: 0.05339079816 | M171: 0.08339079816
A172: 1995-01-01 | B172: 1830.6 | C172: 6997 | D172: -0.04292361583 | E172: -0.04252989956 | F172: 0.0003937162716 | G172: 170 | H172: -0.2078068201 | I172: -0.1776266496 | J172: 0.0301801706 | K172: 2909.205 | L172: 0.0565587738 | M172: 0.0865587738
A173: 1995-02-01 | B173: 1920 | C173: 7351.6 | D173: 0.04883644707 | E173: 0.05067886237 | F173: 0.001842415303 | G173: 171 | H173: -0.1193064538 | I173: -0.08537173289 | J173: 0.03393472094 | K173: 2928.627 | L173: 0.05981267624 | M173: 0.08981267624
A174: 1995-03-01 | B174: 1906.5 | C174: 7356.3 | D174: -0.00703125 | E174: 0.0006393166113 | F174: 0.007670566611 | G174: 172 | H174: -0.07140376572 | I174: -0.03390898943 | J174: 0.03749477629 | K174: 2947.644 | L174: 0.0624269223 | M174: 0.0924269223
A175: 1995-04-01 | B175: 2050.2 | C175: 7929.1 | D175: 0.07537372148 | E175: 0.07786523116 | F175: 0.002491509683 | G175: 173 | H175: -0.007695658487 | I175: 0.03352561525 | J175: 0.04122127374 | K175: 2966.152 | L175: 0.06485480698 | M175: 0.09485480698
A176: 1995-05-01 | B176: 2019.5 | C176: 7834.7 | D176: -0.01497414886 | E176: -0.01190551261 | F176: 0.003068636258 | G176: 174 | H176: -0.02992555958 | I176: 0.009613017973 | J176: 0.03953857755 | K176: 2987.586 | L176: 0.06796608631 | M176: 0.09796608631
A177: 1995-06-01 | B177: 2000.84 | C177: 7872.5 | D177: -0.009239910869 | E177: 0.00482469016 | F177: 0.01406460103 | G177: 175 | H177: 0.005902672517 | I177: 0.05705165233 | J177: 0.05114897981 | K177: 3005.971 | L177: 0.07104449937 | M177: 0.1010444994
A178: 1995-07-01 | B178: 2116.1 | C178: 8259.3 | D178: 0.05760580556 | E178: 0.04913305811 | F178: -0.008472747448 | G178: 176 | H178: 0.02648606669 | I178: 0.06923480833 | J178: 0.04274874164 | K178: 3025.151 | L178: 0.07288250165 | M178: 0.1028825016
A179: 1995-08-01 | B179: 2133 | C179: 8337.3 | D179: 0.007986390057 | E179: 0.009443899604 | F179: 0.001457509547 | G179: 177 | H179: 0.005136895121 | I179: 0.04753109687 | J179: 0.04239420175 | K179: 3044.714 | L179: 0.07496056342 | M179: 0.1049605634
A180: 1995-09-01 | B180: 2135.7 | C180: 8399.3 | D180: 0.001265822785 | E180: 0.007436460245 | F180: 0.00617063746 | G180: 178 | H180: 0.052743136 | I180: 0.09790451382 | J180: 0.04516137782 | K180: 3062.628 | L180: 0.0766038882 | M180: 0.1066038882
A181: 1995-10-01 | B181: 2073.7 | C181: 8202.8 | D181: -0.02903029452 | E181: -0.02339480671 | F181: 0.005635487807 | G181: 179 | H181: 0.01413341158 | I181: 0.05856239515 | J181: 0.04442898357 | K181: 3082.819 | L181: 0.07870607855 | M181: 0.1087060785
A182: 1995-11-01 | B182: 2158.8 | C182: 8566.1 | D182: 0.0410377586 | E182: 0.04428975472 | F182: 0.003251996122 | G182: 180 | H182: 0.1417993336 | I182: 0.1914239617 | J182: 0.04962462814 | K182: 3101.872 | L182: 0.07965818463 | M182: 0.1096581846
A183: 1995-12-01 | B183: 2203 | C183: 8783.1 | D183: 0.02047433759 | E183: 0.02533241498 | F183: 0.00485807739 | G183: 181 | H183: 0.1517749778 | I183: 0.2018801828 | J183: 0.05010520504 | K183: 3119.91 | L183: 0.08011985522 | M183: 0.1101198552
A184: 1996-01-01 | B184: 2288.5 | C184: 9128.7 | D184: 0.03881071266 | E184: 0.03934829388 | F184: 0.000537581218 | G184: 182 | H184: 0.2501365672 | I184: 0.3046591396 | J184: 0.05452257239 | K184: 3140.765 | L184: 0.07959562836 | M184: 0.1095956284
A185: 1996-02-01 | B185: 2290 | C185: 9164.1 | D185: 0.0006554511689 | E185: 0.003877879654 | F185: 0.003222428485 | G185: 183 | H185: 0.1927083333 | I185: 0.2465449698 | J185: 0.05383663647 | K185: 3159.247 | L185: 0.07874679841 | M185: 0.1087467984
A186: 1996-03-01 | B186: 2225.6 | C186: 8954.9 | D186: -0.02812227074 | E186: -0.02282821008 | F186: 0.005294060662 | G186: 184 | H186: 0.1673747705 | I186: 0.2173103326 | J186: 0.04993556212 | K186: 3179.15 | L186: 0.07853933514 | M186: 0.1085393351
A187: 1996-04-01 | B187: 2316.8 | C187: 9347.5 | D187: 0.04097771387 | E187: 0.04384191895 | F187: 0.002864205074 | G187: 185 | H187: 0.130036094 | I187: 0.1788853716 | J187: 0.04884927757 | K187: 3198.871 | L187: 0.07845821792 | M187: 0.1084582179
A188: 1996-05-01 | B188: 2266.1 | C188: 9173.1 | D188: -0.0218836326 | E188: -0.01865739503 | F188: 0.003226237571 | G188: 186 | H188: 0.122109433 | I188: 0.1708297701 | J188: 0.0487203371 | K188: 3219.277 | L188: 0.07755124037 | M188: 0.1075512404
A189: 1996-06-01 | B189: 2242.1 | C189: 9119 | D189: -0.01059088301 | E189: -0.005897679083 | F189: 0.004693203931 | G189: 187 | H189: 0.1205793567 | I189: 0.1583359797 | J189: 0.03775662301 | K189: 3239.03 | L189: 0.07753201877 | M189: 0.1075320188
A190: 1996-07-01 | B190: 2180.3 | C190: 8869.5 | D190: -0.02756344498 | E190: -0.02736045619 | F190: 0.0002029887942 | G190: 188 | H190: 0.03033883087 | I190: 0.07388035306 | J190: 0.04354152219 | K190: 3261.897 | L190: 0.078259234 | M190: 0.108259234
A191: 1996-08-01 | B191: 2268.7 | C191: 9259.7 | D191: 0.04054487915 | E191: 0.04399346074 | F191: 0.003448581591 | G191: 189 | H191: 0.06361931552 | I191: 0.1106353376 | J191: 0.04701602206 | K191: 3280.834 | L191: 0.07755079787 | M191: 0.1075507979
A192: 1996-09-01 | B192: 2290.4 | C192: 9393.5 | D192: 0.00956494909 | E192: 0.01444971219 | F192: 0.004884763104 | G192: 190 | H192: 0.07243526713 | I192: 0.1183670068 | J192: 0.04593173965 | K192: 3300.194 | L192: 0.07756932935 | M192: 0.1075693293
A193: 1996-10-01 | B193: 2350.2 | C193: 9697.8 | D193: 0.0261089766 | E193: 0.03239474104 | F193: 0.006285764446 | G193: 191 | H193: 0.1333365482 | I193: 0.1822548398 | J193: 0.04891829161 | K193: 3319.622 | L193: 0.07681378634 | M193: 0.1068137863
A194: 1996-11-01 | B194: 2388.6 | C194: 9866.6 | D194: 0.01633903498 | E194: 0.01740600961 | F194: 0.001066974635 | G194: 192 | H194: 0.1064480267 | I194: 0.151819381 | J194: 0.04537135437 | K194: 3337.532 | L194: 0.07597347666 | M194: 0.1059734767
A195: 1996-12-01 | B195: 2424.6 | C195: 10065.2 | D195: 0.01507159005 | E195: 0.02012851438 | F195: 0.005056924329 | G195: 193 | H195: 0.1005901044 | I195: 0.1459735173 | J195: 0.04538341292 | K195: 3357.367 | L195: 0.07611020831 | M195: 0.1061102083
A196: 1997-01-01 | B196: 2423.7 | C196: 10069 | D196: -0.0003711952487 | E196: 0.0003775384493 | F196: 0.000748733698 | G196: 194 | H196: 0.05907799869 | I196: 0.103004809 | J196: 0.04392681032 | K196: 3374.809 | L196: 0.07451815083 | M196: 0.1045181508
A197: 1997-02-01 | B197: 2449.9 | C197: 10217.5 | D197: =B197/B196-1 -> 0.01080991872 | E197: =C197/C196-1 -> 0.01474823716 | F197: =E197-D197 -> 0.003938318444 | G197: =G196+1 -> 195 | H197: 0.06982532751 | I197: 0.1149485492 | J197: 0.04512322172 | K197: 3389.121 | L197: 0.07276227531 | M197: 0.1027622753
A198: 1997-03-01 | B198: 2422.3 | C198: 10150.8 | D198: -0.01126576595 | E198: -0.006528015659 | F198: 0.00473775029 | G198: 196 | H198: 0.08838066139 | I198: 0.1335469966 | J198: 0.04516633522 | K198: 3406.194 | L198: 0.07141657361 | M198: 0.1014165736
A199: 1997-04-01 | B199: 2488 | C199: 10454.6 | D199: 0.02712298229 | E199: 0.02992867557 | F199: 0.002805693283 | G199: 197 | H199: 0.07389502762 | I199: 0.118438085 | J199: 0.04454305743 | K199: 3423.394 | L199: 0.07018820077 | M199: 0.1001882008
A200: 1997-05-01 | B200: 2610.5 | C200: 10992.6 | D200: 0.04923633441 | E200: 0.05146060108 | F200: 0.00222426667 | G200: 198 | H200: 0.1519791713 | I200: 0.1983517023 | J200: 0.046372531 | K200: 3441.938 | L200: 0.06916490877 | M200: 0.09916490877
... 338 more rows

Sheet Results
Q4: (hide)
A5: Prepared for: | C5: =Assumptions!B5 -> {Client Name} | G5: =NOW() -> 2025-10-02T09:57:56.310
A6: Prepared by: | C6: =Assumptions!B6 -> {Adviser Name}
C7: =Assumptions!B7 -> {Adviser Group} | G7: =IF(Assumptions!K19="",""," There is a problem with the assumptions you have entered! ") -> 
J8: Entry fees | N8: =entry_exit_fee -> 0
D9: Start | E9: ="Each month"&IF(Gearing_type=2,"*","") -> Each month | J9: Franking Level | N9: =FrankingLevel -> 0.75
C10: Capital | D10: =Capital -> 100000 | E10: =capital_month -> 1000 | J10: Reinvestment of income | N10: =IF(Reinvest=1,"Yes","No") -> Yes
C11: Loan | D11: =loan -> 100000 | E11: =Loan_month -> 1000 | J11: Annual increase in capital and loan investment | N11: =annual_index -> 0
C12: Total Invested | D12: =SUM(D10:D11) -> 200000 | E12: =SUM(E10:E11) -> 2000 | J12: Maximum loan amount (if applicable) | N12: =IF(ISNUMBER(Loan_max),Loan_max,"") -> 
J13: Continue investing capital each month if maximum loan reached ? | N13: =IF(continue_invest=1,"Yes","No") -> Yes
C14: Time horizon for projection | E14: =time_horizon -> 20 | F14: years | J14: Annualised capital growth | N14: =Assumptions!$G$114 -> 0
J15: Annualised income | N15: =Assumptions!$H$114 -> 0
J16: Average interest rate | N16: =Assumptions!$I$114 -> 0
J17: Average other taxable income | N17: =Assumptions!$J$114 -> 0
A18: =IF(product_type=1,"Margin Loan Facility","Investment Funds Multiplier")&": Annual Cashflows and Portfolio Snapshot" -> Margin Loan Facility: Annual Cashflows and Portfolio Snapshot | J18: Capitalise interest to the loan | N18: =IF(capitalise_interest=1,"Yes","No") -> No
A20: Year | B20: Gearing ratio | C20: Investment Value start of year | D20: Loan start of year | E20: =IF(capitalise_interest=1,"Interest accrued","Interest payable") -> Interest payable | F20: Investment Income | G20: Tax on Investment Income | H20: Own equity contributed | I20: Additional borrowings | J20: Investment value end of year | K20: Loan end of year | L20: =IF(Reinvest=1,"Net income for reinvestment","Net income received") -> Net income for reinvestment | M20: Capital Gains Tax if realised | N20: Net Proceeds if realised
A21: 1 | B21: ='Detailed Calcs'!H7 -> 0.5 | C21: ='Detailed Calcs'!F7 -> 200000 | D21: ='Detailed Calcs'!C7 -> 100000 | E21: ='Detailed Calcs'!D7 -> 0 | F21: ='Detailed Calcs'!J7 -> 0 | G21: ='Detailed Calcs'!W7 -> 0 | H21: ='Detailed Calcs'!O7 -> 11000 | I21: ='Detailed Calcs'!P7 -> 11000 | J21: ='Detailed Calcs'!AB7 -> 222000 | K21: ='Detailed Calcs'!AA7 -> 111000 | L21: ='Detailed Calcs'!Y7 -> 0 | M21: =IF(Q21,'Detailed Calcs'!AH7-'Detailed Calcs'!W7,"") -> 0 | N21: ='Detailed Calcs'!AJ7 -> 111000 | Q21: TRUE
A22: =IF(ISNUMBER(A21),IF(Q22,A21+1,""),"") -> 2 | B22: ='Detailed Calcs'!H8 -> 0.5 | C22: ='Detailed Calcs'!F8 -> 222000 | D22: ='Detailed Calcs'!C8 -> 111000 | E22: ='Detailed Calcs'!D8 -> 0 | F22: ='Detailed Calcs'!J8 -> 0 | G22: ='Detailed Calcs'!W8 -> 0 | H22: ='Detailed Calcs'!O8 -> 12000 | I22: ='Detailed Calcs'!P8 -> 12000 | J22: ='Detailed Calcs'!AB8 -> 246000 | K22: ='Detailed Calcs'!AA8 -> 123000 | L22: ='Detailed Calcs'!Y8 -> 0 | M22: =IF(Q22,'Detailed Calcs'!AH8-'Detailed Calcs'!W8,"") -> 0 | N22: ='Detailed Calcs'!AJ8 -> 123000 | Q22: =IF(Q21,IF(A21+1>time_horizon,FALSE,TRUE),FALSE) -> TRUE
A23: =IF(ISNUMBER(A22),IF(Q23,A22+1,""),"") -> 3 | B23: ='Detailed Calcs'!H9 -> 0.5 | C23: ='Detailed Calcs'!F9 -> 246000 | D23: ='Detailed Calcs'!C9 -> 123000 | E23: ='Detailed Calcs'!D9 -> 0 | F23: ='Detailed Calcs'!J9 -> 0 | G23: ='Detailed Calcs'!W9 -> 0 | H23: ='Detailed Calcs'!O9 -> 12000 | I23: ='Detailed Calcs'!P9 -> 12000 | J23: ='Detailed Calcs'!AB9 -> 270000 | K23: ='Detailed Calcs'!AA9 -> 135000 | L23: ='Detailed Calcs'!Y9 -> 0 | M23: =IF(Q23,'Detailed Calcs'!AH9-'Detailed Calcs'!W9,"") -> 0 | N23: ='Detailed Calcs'!AJ9 -> 135000 | Q23: =IF(Q22,IF(A22+1>time_horizon,FALSE,TRUE),FALSE) -> TRUE
A24: 4 | B24: ='Detailed Calcs'!H10 -> 0.5 | C24: ='Detailed Calcs'!F10 -> 270000 | D24: ='Detailed Calcs'!C10 -> 135000 | E24: ='Detailed Calcs'!D10 -> 0 | F24: ='Detailed Calcs'!J10 -> 0 | G24: ='Detailed Calcs'!W10 -> 0 | H24: ='Detailed Calcs'!O10 -> 12000 | I24: ='Detailed Calcs'!P10 -> 12000 | J24: ='Detailed Calcs'!AB10 -> 294000 | K24: ='Detailed Calcs'!AA10 -> 147000 | L24: ='Detailed Calcs'!Y10 -> 0 | M24: =IF(Q24,'Detailed Calcs'!AH10-'Detailed Calcs'!W10,"") -> 0 | N24: ='Detailed Calcs'!AJ10 -> 147000 | Q24: TRUE
A25: 5 | B25: ='Detailed Calcs'!H11 -> 0.5 | C25: ='Detailed Calcs'!F11 -> 294000 | D25: ='Detailed Calcs'!C11 -> 147000 | E25: ='Detailed Calcs'!D11 -> 0 | F25: ='Detailed Calcs'!J11 -> 0 | G25: ='Detailed Calcs'!W11 -> 0 | H25: ='Detailed Calcs'!O11 -> 12000 | I25: ='Detailed Calcs'!P11 -> 12000 | J25: ='Detailed Calcs'!AB11 -> 318000 | K25: ='Detailed Calcs'!AA11 -> 159000 | L25: ='Detailed Calcs'!Y11 -> 0 | M25: =IF(Q25,'Detailed Calcs'!AH11-'Detailed Calcs'!W11,"") -> 0 | N25: ='Detailed Calcs'!AJ11 -> 159000 | Q25: TRUE
A26: 6 | B26: ='Detailed Calcs'!H12 -> 0.5 | C26: ='Detailed Calcs'!F12 -> 318000 | D26: ='Detailed Calcs'!C12 -> 159000 | E26: ='Detailed Calcs'!D12 -> 0 | F26: ='Detailed Calcs'!J12 -> 0 | G26: ='Detailed Calcs'!W12 -> 0 | H26: ='Detailed Calcs'!O12 -> 12000 | I26: ='Detailed Calcs'!P12 -> 12000 | J26: ='Detailed Calcs'!AB12 -> 342000 | K26: ='Detailed Calcs'!AA12 -> 171000 | L26: ='Detailed Calcs'!Y12 -> 0 | M26: =IF(Q26,'Detailed Calcs'!AH12-'Detailed Calcs'!W12,"") -> 0 | N26: ='Detailed Calcs'!AJ12 -> 171000 | Q26: TRUE
A27: 7 | B27: ='Detailed Calcs'!H13 -> 0.5 | C27: ='Detailed Calcs'!F13 -> 342000 | D27: ='Detailed Calcs'!C13 -> 171000 | E27: ='Detailed Calcs'!D13 -> 0 | F27: ='Detailed Calcs'!J13 -> 0 | G27: ='Detailed Calcs'!W13 -> 0 | H27: ='Detailed Calcs'!O13 -> 12000 | I27: ='Detailed Calcs'!P13 -> 12000 | J27: ='Detailed Calcs'!AB13 -> 366000 | K27: ='Detailed Calcs'!AA13 -> 183000 | L27: ='Detailed Calcs'!Y13 -> 0 | M27: =IF(Q27,'Detailed Calcs'!AH13-'Detailed Calcs'!W13,"") -> 0 | N27: ='Detailed Calcs'!AJ13 -> 183000 | Q27: TRUE
A28: 8 | B28: ='Detailed Calcs'!H14 -> 0.5 | C28: ='Detailed Calcs'!F14 -> 366000 | D28: ='Detailed Calcs'!C14 -> 183000 | E28: ='Detailed Calcs'!D14 -> 0 | F28: ='Detailed Calcs'!J14 -> 0 | G28: ='Detailed Calcs'!W14 -> 0 | H28: ='Detailed Calcs'!O14 -> 12000 | I28: ='Detailed Calcs'!P14 -> 12000 | J28: ='Detailed Calcs'!AB14 -> 390000 | K28: ='Detailed Calcs'!AA14 -> 195000 | L28: ='Detailed Calcs'!Y14 -> 0 | M28: =IF(Q28,'Detailed Calcs'!AH14-'Detailed Calcs'!W14,"") -> 0 | N28: ='Detailed Calcs'!AJ14 -> 195000 | Q28: TRUE
A29: 9 | B29: ='Detailed Calcs'!H15 -> 0.5 | C29: ='Detailed Calcs'!F15 -> 390000 | D29: ='Detailed Calcs'!C15 -> 195000 | E29: ='Detailed Calcs'!D15 -> 0 | F29: ='Detailed Calcs'!J15 -> 0 | G29: ='Detailed Calcs'!W15 -> 0 | H29: ='Detailed Calcs'!O15 -> 12000 | I29: ='Detailed Calcs'!P15 -> 12000 | J29: ='Detailed Calcs'!AB15 -> 414000 | K29: ='Detailed Calcs'!AA15 -> 207000 | L29: ='Detailed Calcs'!Y15 -> 0 | M29: =IF(Q29,'Detailed Calcs'!AH15-'Detailed Calcs'!W15,"") -> 0 | N29: ='Detailed Calcs'!AJ15 -> 207000 | Q29: TRUE
A30: 10 | B30: ='Detailed Calcs'!H16 -> 0.5 | C30: ='Detailed Calcs'!F16 -> 414000 | D30: ='Detailed Calcs'!C16 -> 207000 | E30: ='Detailed Calcs'!D16 -> 0 | F30: ='Detailed Calcs'!J16 -> 0 | G30: ='Detailed Calcs'!W16 -> 0 | H30: ='Detailed Calcs'!O16 -> 12000 | I30: ='Detailed Calcs'!P16 -> 12000 | J30: ='Detailed Calcs'!AB16 -> 438000 | K30: ='Detailed Calcs'!AA16 -> 219000 | L30: ='Detailed Calcs'!Y16 -> 0 | M30: =IF(Q30,'Detailed Calcs'!AH16-'Detailed Calcs'!W16,"") -> 0 | N30: ='Detailed Calcs'!AJ16 -> 219000 | Q30: TRUE
A31: 11 | B31: ='Detailed Calcs'!H17 -> 0.5 | C31: ='Detailed Calcs'!F17 -> 438000 | D31: ='Detailed Calcs'!C17 -> 219000 | E31: ='Detailed Calcs'!D17 -> 0 | F31: ='Detailed Calcs'!J17 -> 0 | G31: ='Detailed Calcs'!W17 -> 0 | H31: ='Detailed Calcs'!O17 -> 12000 | I31: ='Detailed Calcs'!P17 -> 12000 | J31: ='Detailed Calcs'!AB17 -> 462000 | K31: ='Detailed Calcs'!AA17 -> 231000 | L31: ='Detailed Calcs'!Y17 -> 0 | M31: =IF(Q31,'Detailed Calcs'!AH17-'Detailed Calcs'!W17,"") -> 0 | N31: ='Detailed Calcs'!AJ17 -> 231000 | Q31: TRUE
A32: 12 | B32: ='Detailed Calcs'!H18 -> 0.5 | C32: ='Detailed Calcs'!F18 -> 462000 | D32: ='Detailed Calcs'!C18 -> 231000 | E32: ='Detailed Calcs'!D18 -> 0 | F32: ='Detailed Calcs'!J18 -> 0 | G32: ='Detailed Calcs'!W18 -> 0 | H32: ='Detailed Calcs'!O18 -> 12000 | I32: ='Detailed Calcs'!P18 -> 12000 | J32: ='Detailed Calcs'!AB18 -> 486000 | K32: ='Detailed Calcs'!AA18 -> 243000 | L32: ='Detailed Calcs'!Y18 -> 0 | M32: =IF(Q32,'Detailed Calcs'!AH18-'Detailed Calcs'!W18,"") -> 0 | N32: ='Detailed Calcs'!AJ18 -> 243000 | Q32: TRUE
A33: 13 | B33: ='Detailed Calcs'!H19 -> 0.5 | C33: ='Detailed Calcs'!F19 -> 486000 | D33: ='Detailed Calcs'!C19 -> 243000 | E33: ='Detailed Calcs'!D19 -> 0 | F33: ='Detailed Calcs'!J19 -> 0 | G33: ='Detailed Calcs'!W19 -> 0 | H33: ='Detailed Calcs'!O19 -> 12000 | I33: ='Detailed Calcs'!P19 -> 12000 | J33: ='Detailed Calcs'!AB19 -> 510000 | K33: ='Detailed Calcs'!AA19 -> 255000 | L33: ='Detailed Calcs'!Y19 -> 0 | M33: =IF(Q33,'Detailed Calcs'!AH19-'Detailed Calcs'!W19,"") -> 0 | N33: ='Detailed Calcs'!AJ19 -> 255000 | Q33: TRUE
A34: 14 | B34: ='Detailed Calcs'!H20 -> 0.5 | C34: ='Detailed Calcs'!F20 -> 510000 | D34: ='Detailed Calcs'!C20 -> 255000 | E34: ='Detailed Calcs'!D20 -> 0 | F34: ='Detailed Calcs'!J20 -> 0 | G34: ='Detailed Calcs'!W20 -> 0 | H34: ='Detailed Calcs'!O20 -> 12000 | I34: ='Detailed Calcs'!P20 -> 12000 | J34: ='Detailed Calcs'!AB20 -> 534000 | K34: ='Detailed Calcs'!AA20 -> 267000 | L34: ='Detailed Calcs'!Y20 -> 0 | M34: =IF(Q34,'Detailed Calcs'!AH20-'Detailed Calcs'!W20,"") -> 0 | N34: ='Detailed Calcs'!AJ20 -> 267000 | Q34: TRUE
A35: 15 | B35: ='Detailed Calcs'!H21 -> 0.5 | C35: ='Detailed Calcs'!F21 -> 534000 | D35: ='Detailed Calcs'!C21 -> 267000 | E35: ='Detailed Calcs'!D21 -> 0 | F35: ='Detailed Calcs'!J21 -> 0 | G35: ='Detailed Calcs'!W21 -> 0 | H35: ='Detailed Calcs'!O21 -> 12000 | I35: ='Detailed Calcs'!P21 -> 12000 | J35: ='Detailed Calcs'!AB21 -> 558000 | K35: ='Detailed Calcs'!AA21 -> 279000 | L35: ='Detailed Calcs'!Y21 -> 0 | M35: =IF(Q35,'Detailed Calcs'!AH21-'Detailed Calcs'!W21,"") -> 0 | N35: ='Detailed Calcs'!AJ21 -> 279000 | Q35: TRUE
A36: 16 | B36: ='Detailed Calcs'!H22 -> 0.5 | C36: ='Detailed Calcs'!F22 -> 558000 | D36: ='Detailed Calcs'!C22 -> 279000 | E36: ='Detailed Calcs'!D22 -> 0 | F36: ='Detailed Calcs'!J22 -> 0 | G36: ='Detailed Calcs'!W22 -> 0 | H36: ='Detailed Calcs'!O22 -> 12000 | I36: ='Detailed Calcs'!P22 -> 12000 | J36: ='Detailed Calcs'!AB22 -> 582000 | K36: ='Detailed Calcs'!AA22 -> 291000 | L36: ='Detailed Calcs'!Y22 -> 0 | M36: =IF(Q36,'Detailed Calcs'!AH22-'Detailed Calcs'!W22,"") -> 0 | N36: ='Detailed Calcs'!AJ22 -> 291000 | Q36: TRUE
A37: 17 | B37: ='Detailed Calcs'!H23 -> 0.5 | C37: ='Detailed Calcs'!F23 -> 582000 | D37: ='Detailed Calcs'!C23 -> 291000 | E37: ='Detailed Calcs'!D23 -> 0 | F37: ='Detailed Calcs'!J23 -> 0 | G37: ='Detailed Calcs'!W23 -> 0 | H37: ='Detailed Calcs'!O23 -> 12000 | I37: ='Detailed Calcs'!P23 -> 12000 | J37: ='Detailed Calcs'!AB23 -> 606000 | K37: ='Detailed Calcs'!AA23 -> 303000 | L37: ='Detailed Calcs'!Y23 -> 0 | M37: =IF(Q37,'Detailed Calcs'!AH23-'Detailed Calcs'!W23,"") -> 0 | N37: ='Detailed Calcs'!AJ23 -> 303000 | Q37: TRUE
A38: 18 | B38: ='Detailed Calcs'!H24 -> 0.5 | C38: ='Detailed Calcs'!F24 -> 606000 | D38: ='Detailed Calcs'!C24 -> 303000 | E38: ='Detailed Calcs'!D24 -> 0 | F38: ='Detailed Calcs'!J24 -> 0 | G38: ='Detailed Calcs'!W24 -> 0 | H38: ='Detailed Calcs'!O24 -> 12000 | I38: ='Detailed Calcs'!P24 -> 12000 | J38: ='Detailed Calcs'!AB24 -> 630000 | K38: ='Detailed Calcs'!AA24 -> 315000 | L38: ='Detailed Calcs'!Y24 -> 0 | M38: =IF(Q38,'Detailed Calcs'!AH24-'Detailed Calcs'!W24,"") -> 0 | N38: ='Detailed Calcs'!AJ24 -> 315000 | Q38: TRUE
A39: 19 | B39: ='Detailed Calcs'!H25 -> 0.5 | C39: ='Detailed Calcs'!F25 -> 630000 | D39: ='Detailed Calcs'!C25 -> 315000 | E39: ='Detailed Calcs'!D25 -> 0 | F39: ='Detailed Calcs'!J25 -> 0 | G39: ='Detailed Calcs'!W25 -> 0 | H39: ='Detailed Calcs'!O25 -> 12000 | I39: ='Detailed Calcs'!P25 -> 12000 | J39: ='Detailed Calcs'!AB25 -> 654000 | K39: ='Detailed Calcs'!AA25 -> 327000 | L39: ='Detailed Calcs'!Y25 -> 0 | M39: =IF(Q39,'Detailed Calcs'!AH25-'Detailed Calcs'!W25,"") -> 0 | N39: ='Detailed Calcs'!AJ25 -> 327000 | Q39: TRUE
A40: 20 | B40: ='Detailed Calcs'!H26 -> 0.5 | C40: ='Detailed Calcs'!F26 -> 654000 | D40: ='Detailed Calcs'!C26 -> 327000 | E40: ='Detailed Calcs'!D26 -> 0 | F40: ='Detailed Calcs'!J26 -> 0 | G40: ='Detailed Calcs'!W26 -> 0 | H40: ='Detailed Calcs'!O26 -> 12000 | I40: ='Detailed Calcs'!P26 -> 12000 | J40: ='Detailed Calcs'!AB26 -> 678000 | K40: ='Detailed Calcs'!AA26 -> 339000 | L40: ='Detailed Calcs'!Y26 -> 0 | M40: =IF(Q40,'Detailed Calcs'!AH26-'Detailed Calcs'!W26,"") -> 0 | N40: ='Detailed Calcs'!AJ26 -> 339000 | Q40: TRUE
A44: Technical Tools: Gearing Projector
A46: Prepared for: | C46: =Assumptions!B5 -> {Client Name} | G46: =NOW() -> 2025-10-02T09:57:56.310
A47: Prepared by: | C47: =Assumptions!B6 -> {Adviser Name}
C48: =Assumptions!B7 -> {Adviser Group}
J49: Entry fees | N49: =entry_exit_fee -> 0
D50: Start | E50: ="Each month"&IF(Gearing_type=2,"*","") -> Each month | J50: Franking Level | N50: =FrankingLevel -> 0.75
C51: Capital | D51: =Capital -> 100000 | E51: =capital_month -> 1000 | J51: Reinvestment of income | N51: =IF(Reinvest=1,"Yes","No") -> Yes
C52: Loan | D52: =loan -> 100000 | E52: =Loan_month -> 1000 | J52: Annual increase in capital and loan investment | N52: =annual_index -> 0
C53: Total Invested | D53: =SUM(D51:D52) -> 200000 | E53: =SUM(E51:E52) -> 2000 | J53: Maximum loan amount (if applicable) | N53: =IF(ISNUMBER(Loan_max),Loan_max,"") -> 
J54: Continue investing capital each month if maximum loan reached ? | N54: =IF(continue_invest=1,"Yes","No") -> Yes
C55: Time horizon for projection | E55: =time_horizon -> 20 | F55: years | J55: Annualised capital growth | N55: =Assumptions!$G$114 -> 0
J56: Annualised income | N56: =Assumptions!$H$114 -> 0
J57: Average interest rate | N57: =Assumptions!$I$114 -> 0
J58: Average other taxable income | N58: =Assumptions!$J$114 -> 0
J59: Capitalise interest | N59: =IF(capitalise_interest=1,"Yes","No") -> No
A61: Geared vs ungeared investment: Portfolio Value and Net Proceeds
C64: Ungeared investment | H64: Geared investment
A65: Year | C65: Total Capital contributed | D65: Portfolio value end of year | E65: Net proceeds | F65: =IF(Reinvest=1,"","Net income received in previous years") ->  | H65: Total Capital contributed | I65: Total Borrowings | J65: Gross total interest paid | K65: Portfolio value end of year | L65: Net proceeds | M65: =IF(Reinvest=1,"","Net income received in previous years") ->  | N65: Net cashflow from investment
A66: 1 | C66: =Capital+'Detailed Calcs'!O31 -> 111000 | D66: ='Detailed Calcs'!AB31 -> 111000 | E66: ='Detailed Calcs'!AJ31 -> 111000 | H66: =Capital+'Detailed Calcs'!O7 -> 111000 | I66: =loan+'Detailed Calcs'!P7 -> 111000 | J66: =SUM('Detailed Calcs'!D$7:D7) -> 0 | K66: ='Detailed Calcs'!AB7 -> 222000 | L66: ='Detailed Calcs'!AJ7 -> 111000 | N66: ='Detailed Calcs'!X7 -> 0 | Q66: TRUE
A67: =IF(ISNUMBER(A66),IF(Q67,A66+1,""),"") -> 2 | C67: =IF(Q67,'Detailed Calcs'!O32+C66,"") -> 123000 | D67: ='Detailed Calcs'!AB32 -> 123000 | E67: ='Detailed Calcs'!AJ32 -> 123000 | F67: =IF(Reinvest=2,IF(Q67,SUM('Detailed Calcs'!Y$31:Y31),""),"") ->  | H67: =IF(Q67,'Detailed Calcs'!O8+H66,"") -> 123000 | I67: =IF(Q67,'Detailed Calcs'!P8+I66,"") -> 123000 | J67: =IF(Q67,SUM('Detailed Calcs'!D$7:D8),"") -> 0 | K67: ='Detailed Calcs'!AB8 -> 246000 | L67: ='Detailed Calcs'!AJ8 -> 123000 | M67: =IF(Reinvest=2,IF(Q67,SUM('Detailed Calcs'!Y$7:Y7),""),"") ->  | N67: ='Detailed Calcs'!X8 -> 0 | Q67: =IF(Q66,IF(A66+1>time_horizon,FALSE,TRUE),FALSE) -> TRUE
A68: 3 | C68: =IF(Q68,'Detailed Calcs'!O33+C67,"") -> 135000 | D68: ='Detailed Calcs'!AB33 -> 135000 | E68: ='Detailed Calcs'!AJ33 -> 135000 | F68: =IF(Reinvest=2,IF(Q68,SUM('Detailed Calcs'!Y$31:Y32),""),"") ->  | H68: =IF(Q68,'Detailed Calcs'!O9+H67,"") -> 135000 | I68: =IF(Q68,'Detailed Calcs'!P9+I67,"") -> 135000 | J68: =IF(Q68,SUM('Detailed Calcs'!D$7:D9),"") -> 0 | K68: ='Detailed Calcs'!AB9 -> 270000 | L68: ='Detailed Calcs'!AJ9 -> 135000 | M68: =IF(Reinvest=2,IF(Q68,SUM('Detailed Calcs'!Y$7:Y8),""),"") ->  | N68: ='Detailed Calcs'!X9 -> 0 | Q68: =IF(Q67,IF(A67+1>time_horizon,FALSE,TRUE),FALSE) -> TRUE
A69: 4 | C69: =IF(Q69,'Detailed Calcs'!O34+C68,"") -> 147000 | D69: ='Detailed Calcs'!AB34 -> 147000 | E69: ='Detailed Calcs'!AJ34 -> 147000 | F69: =IF(Reinvest=2,IF(Q69,SUM('Detailed Calcs'!Y$31:Y33),""),"") ->  | H69: =IF(Q69,'Detailed Calcs'!O10+H68,"") -> 147000 | I69: =IF(Q69,'Detailed Calcs'!P10+I68,"") -> 147000 | J69: =IF(Q69,SUM('Detailed Calcs'!D$7:D10),"") -> 0 | K69: ='Detailed Calcs'!AB10 -> 294000 | L69: ='Detailed Calcs'!AJ10 -> 147000 | M69: =IF(Reinvest=2,IF(Q69,SUM('Detailed Calcs'!Y$7:Y9),""),"") ->  | N69: ='Detailed Calcs'!X10 -> 0 | Q69: TRUE
A70: 5 | C70: =IF(Q70,'Detailed Calcs'!O35+C69,"") -> 159000 | D70: ='Detailed Calcs'!AB35 -> 159000 | E70: ='Detailed Calcs'!AJ35 -> 159000 | F70: =IF(Reinvest=2,IF(Q70,SUM('Detailed Calcs'!Y$31:Y34),""),"") ->  | H70: =IF(Q70,'Detailed Calcs'!O11+H69,"") -> 159000 | I70: =IF(Q70,'Detailed Calcs'!P11+I69,"") -> 159000 | J70: =IF(Q70,SUM('Detailed Calcs'!D$7:D11),"") -> 0 | K70: ='Detailed Calcs'!AB11 -> 318000 | L70: ='Detailed Calcs'!AJ11 -> 159000 | M70: =IF(Reinvest=2,IF(Q70,SUM('Detailed Calcs'!Y$7:Y10),""),"") ->  | N70: ='Detailed Calcs'!X11 -> 0 | Q70: TRUE
A71: 6 | C71: =IF(Q71,'Detailed Calcs'!O36+C70,"") -> 171000 | D71: ='Detailed Calcs'!AB36 -> 171000 | E71: ='Detailed Calcs'!AJ36 -> 171000 | F71: =IF(Reinvest=2,IF(Q71,SUM('Detailed Calcs'!Y$31:Y35),""),"") ->  | H71: =IF(Q71,'Detailed Calcs'!O12+H70,"") -> 171000 | I71: =IF(Q71,'Detailed Calcs'!P12+I70,"") -> 171000 | J71: =IF(Q71,SUM('Detailed Calcs'!D$7:D12),"") -> 0 | K71: ='Detailed Calcs'!AB12 -> 342000 | L71: ='Detailed Calcs'!AJ12 -> 171000 | M71: =IF(Reinvest=2,IF(Q71,SUM('Detailed Calcs'!Y$7:Y11),""),"") ->  | N71: ='Detailed Calcs'!X12 -> 0 | Q71: TRUE
A72: 7 | C72: =IF(Q72,'Detailed Calcs'!O37+C71,"") -> 183000 | D72: ='Detailed Calcs'!AB37 -> 183000 | E72: ='Detailed Calcs'!AJ37 -> 183000 | F72: =IF(Reinvest=2,IF(Q72,SUM('Detailed Calcs'!Y$31:Y36),""),"") ->  | H72: =IF(Q72,'Detailed Calcs'!O13+H71,"") -> 183000 | I72: =IF(Q72,'Detailed Calcs'!P13+I71,"") -> 183000 | J72: =IF(Q72,SUM('Detailed Calcs'!D$7:D13),"") -> 0 | K72: ='Detailed Calcs'!AB13 -> 366000 | L72: ='Detailed Calcs'!AJ13 -> 183000 | M72: =IF(Reinvest=2,IF(Q72,SUM('Detailed Calcs'!Y$7:Y12),""),"") ->  | N72: ='Detailed Calcs'!X13 -> 0 | Q72: TRUE
A73: 8 | C73: =IF(Q73,'Detailed Calcs'!O38+C72,"") -> 195000 | D73: ='Detailed Calcs'!AB38 -> 195000 | E73: ='Detailed Calcs'!AJ38 -> 195000 | F73: =IF(Reinvest=2,IF(Q73,SUM('Detailed Calcs'!Y$31:Y37),""),"") ->  | H73: =IF(Q73,'Detailed Calcs'!O14+H72,"") -> 195000 | I73: =IF(Q73,'Detailed Calcs'!P14+I72,"") -> 195000 | J73: =IF(Q73,SUM('Detailed Calcs'!D$7:D14),"") -> 0 | K73: ='Detailed Calcs'!AB14 -> 390000 | L73: ='Detailed Calcs'!AJ14 -> 195000 | M73: =IF(Reinvest=2,IF(Q73,SUM('Detailed Calcs'!Y$7:Y13),""),"") ->  | N73: ='Detailed Calcs'!X14 -> 0 | Q73: TRUE
A74: 9 | C74: =IF(Q74,'Detailed Calcs'!O39+C73,"") -> 207000 | D74: ='Detailed Calcs'!AB39 -> 207000 | E74: ='Detailed Calcs'!AJ39 -> 207000 | F74: =IF(Reinvest=2,IF(Q74,SUM('Detailed Calcs'!Y$31:Y38),""),"") ->  | H74: =IF(Q74,'Detailed Calcs'!O15+H73,"") -> 207000 | I74: =IF(Q74,'Detailed Calcs'!P15+I73,"") -> 207000 | J74: =IF(Q74,SUM('Detailed Calcs'!D$7:D15),"") -> 0 | K74: ='Detailed Calcs'!AB15 -> 414000 | L74: ='Detailed Calcs'!AJ15 -> 207000 | M74: =IF(Reinvest=2,IF(Q74,SUM('Detailed Calcs'!Y$7:Y14),""),"") ->  | N74: ='Detailed Calcs'!X15 -> 0 | Q74: TRUE
A75: 10 | C75: =IF(Q75,'Detailed Calcs'!O40+C74,"") -> 219000 | D75: ='Detailed Calcs'!AB40 -> 219000 | E75: ='Detailed Calcs'!AJ40 -> 219000 | F75: =IF(Reinvest=2,IF(Q75,SUM('Detailed Calcs'!Y$31:Y39),""),"") ->  | H75: =IF(Q75,'Detailed Calcs'!O16+H74,"") -> 219000 | I75: =IF(Q75,'Detailed Calcs'!P16+I74,"") -> 219000 | J75: =IF(Q75,SUM('Detailed Calcs'!D$7:D16),"") -> 0 | K75: ='Detailed Calcs'!AB16 -> 438000 | L75: ='Detailed Calcs'!AJ16 -> 219000 | M75: =IF(Reinvest=2,IF(Q75,SUM('Detailed Calcs'!Y$7:Y15),""),"") ->  | N75: ='Detailed Calcs'!X16 -> 0 | Q75: TRUE
A76: 11 | C76: =IF(Q76,'Detailed Calcs'!O41+C75,"") -> 231000 | D76: ='Detailed Calcs'!AB41 -> 231000 | E76: ='Detailed Calcs'!AJ41 -> 231000 | F76: =IF(Reinvest=2,IF(Q76,SUM('Detailed Calcs'!Y$31:Y40),""),"") ->  | H76: =IF(Q76,'Detailed Calcs'!O17+H75,"") -> 231000 | I76: =IF(Q76,'Detailed Calcs'!P17+I75,"") -> 231000 | J76: =IF(Q76,SUM('Detailed Calcs'!D$7:D17),"") -> 0 | K76: ='Detailed Calcs'!AB17 -> 462000 | L76: ='Detailed Calcs'!AJ17 -> 231000 | M76: =IF(Reinvest=2,IF(Q76,SUM('Detailed Calcs'!Y$7:Y16),""),"") ->  | N76: ='Detailed Calcs'!X17 -> 0 | Q76: TRUE
A77: 12 | C77: =IF(Q77,'Detailed Calcs'!O42+C76,"") -> 243000 | D77: ='Detailed Calcs'!AB42 -> 243000 | E77: ='Detailed Calcs'!AJ42 -> 243000 | F77: =IF(Reinvest=2,IF(Q77,SUM('Detailed Calcs'!Y$31:Y41),""),"") ->  | H77: =IF(Q77,'Detailed Calcs'!O18+H76,"") -> 243000 | I77: =IF(Q77,'Detailed Calcs'!P18+I76,"") -> 243000 | J77: =IF(Q77,SUM('Detailed Calcs'!D$7:D18),"") -> 0 | K77: ='Detailed Calcs'!AB18 -> 486000 | L77: ='Detailed Calcs'!AJ18 -> 243000 | M77: =IF(Reinvest=2,IF(Q77,SUM('Detailed Calcs'!Y$7:Y17),""),"") ->  | N77: ='Detailed Calcs'!X18 -> 0 | Q77: TRUE
A78: 13 | C78: =IF(Q78,'Detailed Calcs'!O43+C77,"") -> 255000 | D78: ='Detailed Calcs'!AB43 -> 255000 | E78: ='Detailed Calcs'!AJ43 -> 255000 | F78: =IF(Reinvest=2,IF(Q78,SUM('Detailed Calcs'!Y$31:Y42),""),"") ->  | H78: =IF(Q78,'Detailed Calcs'!O19+H77,"") -> 255000 | I78: =IF(Q78,'Detailed Calcs'!P19+I77,"") -> 255000 | J78: =IF(Q78,SUM('Detailed Calcs'!D$7:D19),"") -> 0 | K78: ='Detailed Calcs'!AB19 -> 510000 | L78: ='Detailed Calcs'!AJ19 -> 255000 | M78: =IF(Reinvest=2,IF(Q78,SUM('Detailed Calcs'!Y$7:Y18),""),"") ->  | N78: ='Detailed Calcs'!X19 -> 0 | Q78: TRUE
A79: 14 | C79: =IF(Q79,'Detailed Calcs'!O44+C78,"") -> 267000 | D79: ='Detailed Calcs'!AB44 -> 267000 | E79: ='Detailed Calcs'!AJ44 -> 267000 | F79: =IF(Reinvest=2,IF(Q79,SUM('Detailed Calcs'!Y$31:Y43),""),"") ->  | H79: =IF(Q79,'Detailed Calcs'!O20+H78,"") -> 267000 | I79: =IF(Q79,'Detailed Calcs'!P20+I78,"") -> 267000 | J79: =IF(Q79,SUM('Detailed Calcs'!D$7:D20),"") -> 0 | K79: ='Detailed Calcs'!AB20 -> 534000 | L79: ='Detailed Calcs'!AJ20 -> 267000 | M79: =IF(Reinvest=2,IF(Q79,SUM('Detailed Calcs'!Y$7:Y19),""),"") ->  | N79: ='Detailed Calcs'!X20 -> 0 | Q79: TRUE
A80: 15 | C80: =IF(Q80,'Detailed Calcs'!O45+C79,"") -> 279000 | D80: ='Detailed Calcs'!AB45 -> 279000 | E80: ='Detailed Calcs'!AJ45 -> 279000 | F80: =IF(Reinvest=2,IF(Q80,SUM('Detailed Calcs'!Y$31:Y44),""),"") ->  | H80: =IF(Q80,'Detailed Calcs'!O21+H79,"") -> 279000 | I80: =IF(Q80,'Detailed Calcs'!P21+I79,"") -> 279000 | J80: =IF(Q80,SUM('Detailed Calcs'!D$7:D21),"") -> 0 | K80: ='Detailed Calcs'!AB21 -> 558000 | L80: ='Detailed Calcs'!AJ21 -> 279000 | M80: =IF(Reinvest=2,IF(Q80,SUM('Detailed Calcs'!Y$7:Y20),""),"") ->  | N80: ='Detailed Calcs'!X21 -> 0 | Q80: TRUE
A81: 16 | C81: =IF(Q81,'Detailed Calcs'!O46+C80,"") -> 291000 | D81: ='Detailed Calcs'!AB46 -> 291000 | E81: ='Detailed Calcs'!AJ46 -> 291000 | F81: =IF(Reinvest=2,IF(Q81,SUM('Detailed Calcs'!Y$31:Y45),""),"") ->  | H81: =IF(Q81,'Detailed Calcs'!O22+H80,"") -> 291000 | I81: =IF(Q81,'Detailed Calcs'!P22+I80,"") -> 291000 | J81: =IF(Q81,SUM('Detailed Calcs'!D$7:D22),"") -> 0 | K81: ='Detailed Calcs'!AB22 -> 582000 | L81: ='Detailed Calcs'!AJ22 -> 291000 | M81: =IF(Reinvest=2,IF(Q81,SUM('Detailed Calcs'!Y$7:Y21),""),"") ->  | N81: ='Detailed Calcs'!X22 -> 0 | Q81: TRUE
A82: 17 | C82: =IF(Q82,'Detailed Calcs'!O47+C81,"") -> 303000 | D82: ='Detailed Calcs'!AB47 -> 303000 | E82: ='Detailed Calcs'!AJ47 -> 303000 | F82: =IF(Reinvest=2,IF(Q82,SUM('Detailed Calcs'!Y$31:Y46),""),"") ->  | H82: =IF(Q82,'Detailed Calcs'!O23+H81,"") -> 303000 | I82: =IF(Q82,'Detailed Calcs'!P23+I81,"") -> 303000 | J82: =IF(Q82,SUM('Detailed Calcs'!D$7:D23),"") -> 0 | K82: ='Detailed Calcs'!AB23 -> 606000 | L82: ='Detailed Calcs'!AJ23 -> 303000 | M82: =IF(Reinvest=2,IF(Q82,SUM('Detailed Calcs'!Y$7:Y22),""),"") ->  | N82: ='Detailed Calcs'!X23 -> 0 | Q82: TRUE
A83: 18 | C83: =IF(Q83,'Detailed Calcs'!O48+C82,"") -> 315000 | D83: ='Detailed Calcs'!AB48 -> 315000 | E83: ='Detailed Calcs'!AJ48 -> 315000 | F83: =IF(Reinvest=2,IF(Q83,SUM('Detailed Calcs'!Y$31:Y47),""),"") ->  | H83: =IF(Q83,'Detailed Calcs'!O24+H82,"") -> 315000 | I83: =IF(Q83,'Detailed Calcs'!P24+I82,"") -> 315000 | J83: =IF(Q83,SUM('Detailed Calcs'!D$7:D24),"") -> 0 | K83: ='Detailed Calcs'!AB24 -> 630000 | L83: ='Detailed Calcs'!AJ24 -> 315000 | M83: =IF(Reinvest=2,IF(Q83,SUM('Detailed Calcs'!Y$7:Y23),""),"") ->  | N83: ='Detailed Calcs'!X24 -> 0 | Q83: TRUE
A84: 19 | C84: =IF(Q84,'Detailed Calcs'!O49+C83,"") -> 327000 | D84: ='Detailed Calcs'!AB49 -> 327000 | E84: ='Detailed Calcs'!AJ49 -> 327000 | F84: =IF(Reinvest=2,IF(Q84,SUM('Detailed Calcs'!Y$31:Y48),""),"") ->  | H84: =IF(Q84,'Detailed Calcs'!O25+H83,"") -> 327000 | I84: =IF(Q84,'Detailed Calcs'!P25+I83,"") -> 327000 | J84: =IF(Q84,SUM('Detailed Calcs'!D$7:D25),"") -> 0 | K84: ='Detailed Calcs'!AB25 -> 654000 | L84: ='Detailed Calcs'!AJ25 -> 327000 | M84: =IF(Reinvest=2,IF(Q84,SUM('Detailed Calcs'!Y$7:Y24),""),"") ->  | N84: ='Detailed Calcs'!X25 -> 0 | Q84: TRUE
A85: 20 | C85: =IF(Q85,'Detailed Calcs'!O50+C84,"") -> 339000 | D85: ='Detailed Calcs'!AB50 -> 339000 | E85: ='Detailed Calcs'!AJ50 -> 339000 | F85: =IF(Reinvest=2,IF(Q85,SUM('Detailed Calcs'!Y$31:Y49),""),"") ->  | H85: =IF(Q85,'Detailed Calcs'!O26+H84,"") -> 339000 | I85: =IF(Q85,'Detailed Calcs'!P26+I84,"") -> 339000 | J85: =IF(Q85,SUM('Detailed Calcs'!D$7:D26),"") -> 0 | K85: ='Detailed Calcs'!AB26 -> 678000 | L85: ='Detailed Calcs'!AJ26 -> 339000 | M85: =IF(Reinvest=2,IF(Q85,SUM('Detailed Calcs'!Y$7:Y25),""),"") ->  | N85: ='Detailed Calcs'!X26 -> 0 | Q85: TRUE
C87: Internal rate of return, ungeared investment | E87: ='Detailed Calcs'!FX3 -> -1.865174681e-14 | F87: p.a. | H87: Internal rate of return, geared investment | L87: ='Detailed Calcs'!FT3 -> -1.865174681e-14 | M87: p.a.
Q89: Message if reinvest = no
A90: Table shows the net proceeds if investment was cashed at the end of each year. Net proceeds is cash in hand after allowing for capital gains tax and repayment of loan (includes sales | Q90: =IF(Reinvest=1,"","Reinvestment of income was NOT selected here. In addition to the net proceeds above, the geared and ungeared investor received varying amounts of net income in previous years, as indicated in the column next to net proceeds.") -> 
A91: proceeds and current year income less income tax).

Sheet Detailed Calcs
FT1: =IRR(FT6:FT246,-0.2) -> -2.220446049e-16 | FU1: =(1+FT1)^12-1 -> -2.664535259e-15
CF2: =CE8+Loan_month*(1+annual_index)^($A8-1) -> 113000 | FR2: Internal rate of return cashflows and calculation:
CF3: =CE8+FV(annual_index,$A8-1,,-Loan_month) -> 113000 | EX3: End of year - income for year | FR3: Geared IRR | FT3: =(1+FT5)^12-1 -> -1.865174681e-14 | FV3: Ungeared IRR | FX3: =(1+FX5)^12-1 -> -1.865174681e-14
EX4: End of year- tax benefit less R/I of income, if next year included in projection | FT4: Cashflows | FX4: Cashflows
A5: Geared | AN5: Value | AO5: Cashflows invested during month (new loan + new capital amounts - exclude capitalised interest loan increase) | BC5: Units purchased (start of month) | BQ5: Income received on investments made during year | CF5: 2 | CG5: 3 | CH5: 4 | CI5: 5 | CJ5: 6 | CK5: 7 | CL5: 8 | CM5: 9 | CN5: 10 | CO5: 11 | CP5: 12 | CR5: Capitalised interest - end of month | DE5: Capital invested during month - start of month = end of preceding month | DR5: Interest incurred by month | ED5: Investment income by month | EP5: Total | EX5: End of term: Proceeds, loan repayment, CGT & income tax | FE5: Cashflows for Internal rate of return calculation | FT5: =IRR(FT6:FT246,0.00001) -> -1.554312234e-15 | FX5: =IRR(FX6:FX246,0.00001) -> -1.554312234e-15 | GA5: Example
A6: Year | B6: Capital start of year | C6: Loan at start of year | D6: Interest payable | E6: Reinvestment | F6: Total Investment Value Start of year | G6: No. of units start of year | H6: Loan to Investment Ratio | I6: Entry fees | J6: Income Received | K6: Franking Credits | L6: Unit Price start of year | M6: Unit Price end of year | N6: Units purchased over year | O6: Own Equity contributed during year | P6: Additional borrowings during year | Q6: Total Invested over year | R6: Other Taxable Income | S6: Total Assessable Income | T6: MTR | U6: Tax + Medicare Levy on total assessable income | V6: Tax + Medicare Levy on Other Income | W6: Tax + ML payable on investment, net of franking credits | X6: Net cashflow from Investment | Y6: Funds available for Reinvestment | Z6: Capital at end of year | AA6: Loan at end of year | AB6: Sale of units | AC6: Capital Gain net of costs | AD6: Gain on units held for less than 12 months | AE6: Assessable Capital Gain | AF6: Total Taxable Income | AG6: Tax + ML | AH6: Tax + ML on investment | AI6: Profit from investment | AJ6: Net realised portfolio value end of year after loan repaid | AN6: 0 | AO6: 1 | AP6: 2 | AQ6: 3 | AR6: 4 | AS6: 5 | AT6: 6 | AU6: 7 | AV6: 8 | AW6: 9 | AX6: 10 | AY6: 11 | AZ6: 12 | BA6: Total Cash invested | BC6: 1 | BD6: 2 | BE6: 3 | BF6: 4 | BG6: 5 | BH6: 6 | BI6: 7 | BJ6: 8 | BK6: 9 | BL6: 10 | BM6: 11 | BN6: 12 | BO6: Total | BP6: Check Average Price paid for units | BQ6: 1 | BR6: 2 | BS6: 3 | BT6: 4 | BU6: 5 | BV6: 6 | BW6: 7 | BX6: 8 | BY6: 9 | BZ6: 10 | CA6: 11 | CB6: 12 | CC6: Total | CD6: Check average yield | CE6: Loan at start of month 1 | CF6: start 2 | CG6: start 3 | CH6: start 4 | CI6: start 5 | CJ6: start 6 | CK6: start 7 | CL6: start 8 | CM6: start 9 | CN6: start 10 | CO6: start 11 | CP6: start 12 | CQ6: End of month 12 | CR6: 1 | CS6: 2 | CT6: 3 | CU6: 4 | CV6: 5 | CW6: 6 | CX6: 7 | CY6: 8 | CZ6: 9 | DA6: 10 | DB6: 11 | DC6: 12 | DD6: Total for year | DE6: 1 | DF6: 2 | DG6: 3 | DH6: 4 | DI6: 5 | DJ6: 6 | DK6: 7 | DL6: 8 | DM6: 9 | DN6: 10 | DO6: 11 | DP6: 12 | DQ6: Total | DR6: 1 | DS6: 2 | DT6: 3 | DU6: 4 | DV6: 5 | DW6: 6 | DX6: 7 | DY6: 8 | DZ6: 9 | EA6: 10 | EB6: 11 | EC6: 12 | ED6: 1 | EE6: 2 | EF6: 3 | EG6: 4 | EH6: 5 | EI6: 6 | EJ6: 7 | EK6: 8 | EL6: 9 | EM6: 10 | EN6: 11 | EO6: 12 | EP6: Total | EQ6: 1 | ER6: 2 | ES6: 3 | ET6: 4 | EU6: 5 | EV6: 6 | EW6: 7 | EX6: 8 | EY6: 9 | EZ6: 10 | FA6: 11 | FB6: 12 | FC6: Year included in projection | FE6: 1 | FF6: 2 | FG6: 3 | FH6: 4 | FI6: 5 | FJ6: 6 | FK6: 7 | FL6: 8 | FM6: 9 | FN6: 10 | FO6: 11 | FP6: 12 | FS6: 0 | FT6: =-Capital -> -100000 | FW6: 0 | FX6: =-Capital -> -100000 | GA6: Months in row years | GN6: Months
A7: 1 | B7: =Capital -> 100000 | C7: =loan -> 100000 | D7: =SUM(CE7:CP7)/12*INDEX(interest,A7) -> 0 | F7: =(B7+C7)*(1-entry_exit_fee) -> 200000 | G7: =F7/L7 -> 200000 | H7: =IF(F7=0,0,C7/F7) -> 0.5 | I7: =(B7+C7+Q7)*entry_exit_fee -> 0 | J7: =F7*INDEX(DividendIncome,$A7)+$CC7 -> 0 | K7: =J7*FrankingLevel*Co_tax_rate/(1-Co_tax_rate) -> 0 | L7: =1 -> 1 | M7: =L7*(1+INDEX(CapitalGain,$A7)) -> 1 | N7: =BO7 -> 22000 | O7: =DQ7 -> 11000 | P7: =BA7-DQ7+DD7 -> 11000 | Q7: =BA7 -> 22000 | R7: =INDEX(OTI,$A7) -> 0 | S7: =-D7+J7+K7+R7 -> 0 | T7: =IF(S7>0,MTR_Y1(S7),0) -> 0 | U7: =MAX(Tax_Y1(S7),0)+medicare(S7) -> 0 | V7: =Tax_Y1(R7)+medicare(R7) -> 0 | W7: =U7-V7-K7 -> 0 | X7: =IF(capitalise_interest=1,0,-D7)+J7-W7 -> 0 | Y7: =J7-W7 -> 0 | Z7: =B7+SUM(DE7:DP7) -> 111000 | AA7: =CQ7 -> 111000 | AB7: =(G7+N7)*M7 -> 222000 | AC7: =AB7-Capital-loan-SUM($E$7:E7)-SUM($Q$7:Q7) -> 0 | AD7: =N7*M7-Q7 -> 0 | AE7: =AD7+1/2*(AC7-AD7) -> 0 | AF7: =S7+AE7 -> 0 | AG7: =MAX(Tax_Y1(AF7),0)+medicare(AF7) -> 0 | AH7: =AG7-V7-K7 -> 0 | AI7: =-D7+J7-AH7+AC7 -> 0 | AJ7: =J7+AB7-AH7-AA7 -> 111000 | AM7: 1 | AN7: =G7 -> 200000 | AO7: 0 | AP7: =IF($FC7=1,CF7-CE7-CR7+DF7,"") -> 2000 | AQ7: =IF($FC7=1,CG7-CF7-CS7+DG7,"") -> 2000 | AR7: =IF($FC7=1,CH7-CG7-CT7+DH7,"") -> 2000 | AS7: =IF($FC7=1,CI7-CH7-CU7+DI7,"") -> 2000 | AT7: =IF($FC7=1,CJ7-CI7-CV7+DJ7,"") -> 2000 | AU7: =IF($FC7=1,CK7-CJ7-CW7+DK7,"") -> 2000 | AV7: =IF($FC7=1,CL7-CK7-CX7+DL7,"") -> 2000 | AW7: =IF($FC7=1,CM7-CL7-CY7+DM7,"") -> 2000 | AX7: =IF($FC7=1,CN7-CM7-CZ7+DN7,"") -> 2000 | AY7: =IF($FC7=1,CO7-CN7-DA7+DO7,"") -> 2000 | AZ7: =IF($FC7=1,CP7-CO7-DB7+DP7,"") -> 2000 | BA7: =SUM(AO7:AZ7) -> 22000 | BB7: 0 | BC7: =IF($FC7=1,AO7/(IF(Smooth_Fluctuate=1,$L7*(1+INDEX(CapitalGain,$A7))^((BC$6-1)/12),INDEX(hist_index,Start_Ref+$BA7+BC$6-1,2)/INDEX(hist_index,Start_Ref,2))),"")*(1-entry_exit_fee) -> 0 | BD7: 2000 | BE7: 2000 | BF7: 2000 | BG7: 2000 | BH7: 2000 | BI7: 2000 | BJ7: 2000 | BK7: 2000 | BL7: 2000 | BM7: 2000 | BN7: 2000 | BO7: =SUM(BC7:BN7) -> 22000 | BP7: =IF(BO7<>0,BA7/BO7,"") -> 1 | BQ7: =IF($FC7=1,(1-entry_exit_fee)*AO7*IF(Smooth_Fluctuate=1,((1+INDEX(DividendIncome,$A7))^((12-BQ$6+1)/12)-1),INDEX(hist_index,Start_Ref+$BA7+12,3)/INDEX(hist_index,Start_Ref+$BA7+BQ$6-1,3)-INDEX(hist_index,Start_Ref+$BA7+12,2)/INDEX(hist_index,Start_Ref+$BA7+BQ$6-1,2)),"") -> 0 | BR7: =IF($FC7=1,(1-entry_exit_fee)*AP7*IF(Smooth_Fluctuate=1,((1+INDEX(DividendIncome,$A7))^((12-BR$6+1)/12)-1),INDEX(hist_index,Start_Ref+$BA7+12,3)/INDEX(hist_index,Start_Ref+$BA7+BR$6-1,3)-INDEX(hist_index,Start_Ref+$BA7+12,2)/INDEX(hist_index,Start_Ref+$BA7+BR$6-1,2)),"") -> 0 | BS7: =IF($FC7=1,(1-entry_exit_fee)*AQ7*IF(Smooth_Fluctuate=1,((1+INDEX(DividendIncome,$A7))^((12-BS$6+1)/12)-1),INDEX(hist_index,Start_Ref+$BA7+12,3)/INDEX(hist_index,Start_Ref+$BA7+BS$6-1,3)-INDEX(hist_index,Start_Ref+$BA7+12,2)/INDEX(hist_index,Start_Ref+$BA7+BS$6-1,2)),"") -> 0 | BT7: =IF($FC7=1,(1-entry_exit_fee)*AR7*IF(Smooth_Fluctuate=1,((1+INDEX(DividendIncome,$A7))^((12-BT$6+1)/12)-1),INDEX(hist_index,Start_Ref+$BA7+12,3)/INDEX(hist_index,Start_Ref+$BA7+BT$6-1,3)-INDEX(hist_index,Start_Ref+$BA7+12,2)/INDEX(hist_index,Start_Ref+$BA7+BT$6-1,2)),"") -> 0 | BU7: =IF($FC7=1,(1-entry_exit_fee)*AS7*IF(Smooth_Fluctuate=1,((1+INDEX(DividendIncome,$A7))^((12-BU$6+1)/12)-1),INDEX(hist_index,Start_Ref+$BA7+12,3)/INDEX(hist_index,Start_Ref+$BA7+BU$6-1,3)-INDEX(hist_index,Start_Ref+$BA7+12,2)/INDEX(hist_index,Start_Ref+$BA7+BU$6-1,2)),"") -> 0 | BV7: =IF($FC7=1,(1-entry_exit_fee)*AT7*IF(Smooth_Fluctuate=1,((1+INDEX(DividendIncome,$A7))^((12-BV$6+1)/12)-1),INDEX(hist_index,Start_Ref+$BA7+12,3)/INDEX(hist_index,Start_Ref+$BA7+BV$6-1,3)-INDEX(hist_index,Start_Ref+$BA7+12,2)/INDEX(hist_index,Start_Ref+$BA7+BV$6-1,2)),"") -> 0 | BW7: =IF($FC7=1,(1-entry_exit_fee)*AU7*IF(Smooth_Fluctuate=1,((1+INDEX(DividendIncome,$A7))^((12-BW$6+1)/12)-1),INDEX(hist_index,Start_Ref+$BA7+12,3)/INDEX(hist_index,Start_Ref+$BA7+BW$6-1,3)-INDEX(hist_index,Start_Ref+$BA7+12,2)/INDEX(hist_index,Start_Ref+$BA7+BW$6-1,2)),"") -> 0 | BX7: =IF($FC7=1,(1-entry_exit_fee)*AV7*IF(Smooth_Fluctuate=1,((1+INDEX(DividendIncome,$A7))^((12-BX$6+1)/12)-1),INDEX(hist_index,Start_Ref+$BA7+12,3)/INDEX(hist_index,Start_Ref+$BA7+BX$6-1,3)-INDEX(hist_index,Start_Ref+$BA7+12,2)/INDEX(hist_index,Start_Ref+$BA7+BX$6-1,2)),"") -> 0 | BY7: =IF($FC7=1,(1-entry_exit_fee)*AW7*IF(Smooth_Fluctuate=1,((1+INDEX(DividendIncome,$A7))^((12-BY$6+1)/12)-1),INDEX(hist_index,Start_Ref+$BA7+12,3)/INDEX(hist_index,Start_Ref+$BA7+BY$6-1,3)-INDEX(hist_index,Start_Ref+$BA7+12,2)/INDEX(hist_index,Start_Ref+$BA7+BY$6-1,2)),"") -> 0 | BZ7: =IF($FC7=1,(1-entry_exit_fee)*AX7*IF(Smooth_Fluctuate=1,((1+INDEX(DividendIncome,$A7))^((12-BZ$6+1)/12)-1),INDEX(hist_index,Start_Ref+$BA7+12,3)/INDEX(hist_index,Start_Ref+$BA7+BZ$6-1,3)-INDEX(hist_index,Start_Ref+$BA7+12,2)/INDEX(hist_index,Start_Ref+$BA7+BZ$6-1,2)),"") -> 0 | CA7: =IF($FC7=1,(1-entry_exit_fee)*AY7*IF(Smooth_Fluctuate=1,((1+INDEX(DividendIncome,$A7))^((12-CA$6+1)/12)-1),INDEX(hist_index,Start_Ref+$BA7+12,3)/INDEX(hist_index,Start_Ref+$BA7+CA$6-1,3)-INDEX(hist_index,Start_Ref+$BA7+12,2)/INDEX(hist_index,Start_Ref+$BA7+CA$6-1,2)),"") -> 0 | CB7: =IF($FC7=1,(1-entry_exit_fee)*AZ7*IF(Smooth_Fluctuate=1,((1+INDEX(DividendIncome,$A7))^((12-CB$6+1)/12)-1),INDEX(hist_index,Start_Ref+$BA7+12,3)/INDEX(hist_index,Start_Ref+$BA7+CB$6-1,3)-INDEX(hist_index,Start_Ref+$BA7+12,2)/INDEX(hist_index,Start_Ref+$BA7+CB$6-1,2)),"") -> 0 | CC7: =SUM(BQ7:CB7) -> 0 | CD7: =IF(CC7<>0,$CC7/$BA7*2,"") ->  | CE7: =IF($FC7=1,C7,"") -> 100000 | CF7: =IF($FC7=1,CR7+IF(ISNUMBER(Loan_max),MIN(CE7+IF(Gearing_type=2,IF(CF5>=quickstart_month,FV(annual_index,$A7-1,,-Loan_month),0),FV(annual_index,$A7-1,,-Loan_month)),Loan_max),CE7+IF(Gearing_type=2,IF(CF5>=quickstart_month,FV(annual_index,$A7-1,,-Loan_month),0),FV(annual_index,$A7-1,,-Loan_month))),"") -> 101000 | CG7: 102000 | CH7: 103000 | CI7: 104000 | CJ7: 105000 | CK7: 106000 | CL7: 107000 | CM7: 108000 | CN7: 109000 | CO7: 110000 | CP7: 111000 | CQ7: =IF($FC7,CP7+DC7,"") -> 111000 | CR7: =IF($FC7=1,IF(capitalise_interest=1,CE7*INDEX(interest,$A7)/12,0),0) -> 0 | CS7: =IF($FC7=1,IF(capitalise_interest=1,CF7*INDEX(interest,$A7)/12,0),0) -> 0 | CT7: =IF($FC7=1,IF(capitalise_interest=1,CG7*INDEX(interest,$A7)/12,0),0) -> 0 | CU7: =IF($FC7=1,IF(capitalise_interest=1,CH7*INDEX(interest,$A7)/12,0),0) -> 0 | CV7: =IF($FC7=1,IF(capitalise_interest=1,CI7*INDEX(interest,$A7)/12,0),0) -> 0 | CW7: =IF($FC7=1,IF(capitalise_interest=1,CJ7*INDEX(interest,$A7)/12,0),0) -> 0 | CX7: =IF($FC7=1,IF(capitalise_interest=1,CK7*INDEX(interest,$A7)/12,0),0) -> 0 | CY7: =IF($FC7=1,IF(capitalise_interest=1,CL7*INDEX(interest,$A7)/12,0),0) -> 0 | CZ7: =IF($FC7=1,IF(capitalise_interest=1,CM7*INDEX(interest,$A7)/12,0),0) -> 0 | DA7: =IF($FC7=1,IF(capitalise_interest=1,CN7*INDEX(interest,$A7)/12,0),0) -> 0 | DB7: =IF($FC7=1,IF(capitalise_interest=1,CO7*INDEX(interest,$A7)/12,0),0) -> 0 | DC7: =IF($FC7=1,IF(capitalise_interest=1,CP7*INDEX(interest,$A7)/12,0),0) -> 0 | DD7: =IF($FC7,SUM(CR7:DC7),"") -> 0 | DE7: 0 | DF7: =IF($FC7=1,IF(CF7>CE7,capital_month*(1+annual_index)^($A7-1),IF(continue_invest=1,capital_month*(1+annual_index)^($A7-1),0)),0) -> 1000 | DG7: =IF($FC7=1,IF(CG7>CF7,capital_month*(1+annual_index)^($A7-1),IF(continue_invest=1,capital_month*(1+annual_index)^($A7-1),0)),0) -> 1000 | DH7: =IF($FC7=1,IF(CH7>CG7,capital_month*(1+annual_index)^($A7-1),IF(continue_invest=1,capital_month*(1+annual_index)^($A7-1),0)),0) -> 1000 | DI7: =IF($FC7=1,IF(CI7>CH7,capital_month*(1+annual_index)^($A7-1),IF(continue_invest=1,capital_month*(1+annual_index)^($A7-1),0)),0) -> 1000 | DJ7: =IF($FC7=1,IF(CJ7>CI7,capital_month*(1+annual_index)^($A7-1),IF(continue_invest=1,capital_month*(1+annual_index)^($A7-1),0)),0) -> 1000 | DK7: =IF($FC7=1,IF(CK7>CJ7,capital_month*(1+annual_index)^($A7-1),IF(continue_invest=1,capital_month*(1+annual_index)^($A7-1),0)),0) -> 1000 | DL7: =IF($FC7=1,IF(CL7>CK7,capital_month*(1+annual_index)^($A7-1),IF(continue_invest=1,capital_month*(1+annual_index)^($A7-1),0)),0) -> 1000 | DM7: =IF($FC7=1,IF(CM7>CL7,capital_month*(1+annual_index)^($A7-1),IF(continue_invest=1,capital_month*(1+annual_index)^($A7-1),0)),0) -> 1000 | DN7: =IF($FC7=1,IF(CN7>CM7,capital_month*(1+annual_index)^($A7-1),IF(continue_invest=1,capital_month*(1+annual_index)^($A7-1),0)),0) -> 1000 | DO7: =IF($FC7=1,IF(CO7>CN7,capital_month*(1+annual_index)^($A7-1),IF(continue_invest=1,capital_month*(1+annual_index)^($A7-1),0)),0) -> 1000 | DP7: =IF($FC7=1,IF(CP7>CO7,capital_month*(1+annual_index)^($A7-1),IF(continue_invest=1,capital_month*(1+annual_index)^($A7-1),0)),0) -> 1000 | DQ7: =SUM(DE7:DP7) -> 11000 | DR7: =IF($FC7=1,CE7*INDEX(interest,$A7)/12,0) -> 0 | DS7: =IF($FC7=1,CF7*INDEX(interest,$A7)/12,0) -> 0 | DT7: =IF($FC7=1,CG7*INDEX(interest,$A7)/12,0) -> 0 | DU7: =IF($FC7=1,CH7*INDEX(interest,$A7)/12,0) -> 0 | DV7: =IF($FC7=1,CI7*INDEX(interest,$A7)/12,0) -> 0 | DW7: =IF($FC7=1,CJ7*INDEX(interest,$A7)/12,0) -> 0 | DX7: =IF($FC7=1,CK7*INDEX(interest,$A7)/12,0) -> 0 | DY7: =IF($FC7=1,CL7*INDEX(interest,$A7)/12,0) -> 0 | DZ7: =IF($FC7=1,CM7*INDEX(interest,$A7)/12,0) -> 0 | EA7: =IF($FC7=1,CN7*INDEX(interest,$A7)/12,0) -> 0 | EB7: =IF($FC7=1,CO7*INDEX(interest,$A7)/12,0) -> 0 | EC7: =IF($FC7=1,CP7*INDEX(interest,$A7)/12,0) -> 0 | ED7: =IF($FC7,BQ7+$F7*INDEX(DividendIncome,$A7)/12,0) -> 0 | EE7: =IF($FC7,BR7+$F7*INDEX(DividendIncome,$A7)/12,0) -> 0 | EF7: =IF($FC7,BS7+$F7*INDEX(DividendIncome,$A7)/12,0) -> 0 | EG7: =IF($FC7,BT7+$F7*INDEX(DividendIncome,$A7)/12,0) -> 0 | EH7: =IF($FC7,BU7+$F7*INDEX(DividendIncome,$A7)/12,0) -> 0 | EI7: =IF($FC7,BV7+$F7*INDEX(DividendIncome,$A7)/12,0) -> 0 | EJ7: =IF($FC7,BW7+$F7*INDEX(DividendIncome,$A7)/12,0) -> 0 | EK7: =IF($FC7,BX7+$F7*INDEX(DividendIncome,$A7)/12,0) -> 0 | EL7: =IF($FC7,BY7+$F7*INDEX(DividendIncome,$A7)/12,0) -> 0 | EM7: =IF($FC7,BZ7+$F7*INDEX(DividendIncome,$A7)/12,0) -> 0 | EN7: =IF($FC7,CA7+$F7*INDEX(DividendIncome,$A7)/12,0) -> 0 | EO7: =IF($FC7,CB7+$F7*INDEX(DividendIncome,$A7)/12,0) -> 0 | EP7: =IF(FC7,SUM(ED7:EO7),0) -> 0 | FB7: =IF(A7=time_horizon,AB7-AA7-AH7,0)+IF(FC8=1,-W7-E8,0)+EP7 -> 0 | FC7: =IF(A7>time_horizon,0,1) -> 1 | FE7: =-DF7-DR7+CR7 -> -1000 | FF7: =-DG7-DS7+CS7 -> -1000 | FG7: =-DH7-DT7+CT7 -> -1000 | FH7: =-DI7-DU7+CU7 -> -1000 | FI7: =-DJ7-DV7+CV7 -> -1000 | FJ7: =-DK7-DW7+CW7 -> -1000 | FK7: =-DL7-DX7+CX7 -> -1000 | FL7: =-DM7-DY7+CY7 -> -1000 | FM7: =-DN7-DZ7+CZ7 -> -1000 | FN7: =-DO7-EA7+DA7 -> -1000 | FO7: =-DP7-EB7+DB7 -> -1000 | FP7: =IF(FC8=1,-DE8,0)-EC7+DC7+FB7 -> -1000 | FS7: 1 | FT7: =FE7 -> -1000 | FW7: 1 | FX7: =FE31 -> -1000 | GA7: 1 | GB7: 2 | GC7: 3 | GD7: 4 | GE7: 5 | GF7: 6 | GG7: 7 | GH7: 8 | GI7: 9 | GJ7: 10 | GK7: 11 | GL7: 12 | GN7: =GA7 -> 1
A8: 2 | B8: =IF($FC8=1,Z7,"") -> 111000 | C8: =IF($FC8=1,AA7,"") -> 111000 | D8: =IF($FC8=1,SUM(CE8:CP8)/12*INDEX(interest,A8),"") -> 0 | E8: =IF($FC8=1,IF(Reinvest=1,Y7,0),"") -> 0 | F8: =IF($FC8=1,G8*L8,"") -> 222000 | G8: =IF($FC8=1,G7+E8/L8*(1-entry_exit_fee)+N7,"") -> 222000 | H8: =IF($FC8=1,IF(F8=0,0,C8/F8),"") -> 0.5 | I8: =IF(FC8=1,(E8+Q8)*entry_exit_fee,"") -> 0 | J8: =IF($FC8=1,F8*INDEX(DividendIncome,$A8)+$CC8,"") -> 0 | K8: =IF($FC8=1,J8*FrankingLevel*Co_tax_rate/(1-Co_tax_rate),"") -> 0 | L8: =IF($FC8=1,M7,"") -> 1 | M8: =IF($FC8=1,L8*(1+INDEX(CapitalGain,$A8)),"") -> 1 | N8: =IF(FC8=1,BO8,"") -> 24000 | O8: =IF(FC8=1,DQ8,"") -> 12000 | P8: =IF(FC8=1,BA8-DQ8+DD8,"") -> 12000 | Q8: =IF(FC8=1,BA8,"") -> 24000 | R8: =IF(FC8=1,INDEX(OTI,$A8),"") -> 0 | S8: =IF(FC8=1,-D8+J8+K8+R8,"") -> 0 | T8: =IF(FC8=1,IF(S8>0,MTR_Y2(S8),0),"") -> 0 | U8: =IF(FC8=1,MAX(Tax_Y2(S8),0)+medicare(S8),"") -> 0 | V8: =IF(FC8=1,Tax_Y2(R8)+medicare(R8),"") -> 0 | W8: =IF(FC8=1,U8-V8-K8,"") -> 0 | X8: =IF($FC8,IF(capitalise_interest=1,0,-D8)+J8-W8,"") -> 0 | Y8: =IF(FC8=1,J8-W8,"") -> 0 | Z8: =IF(FC8=1,Z7+SUM(DE8:DP8),"") -> 123000 | AA8: =IF($FC8,CQ8,"") -> 123000 | AB8: =IF(FC8=1,(G8+N8)*M8,"") -> 246000 | AC8: =IF(FC8=1,AB8-Capital-loan-SUM($E$7:E8)-SUM($Q$7:Q8),"") -> 0 | AD8: =IF(FC8=1,N8*M8-Q8,"") -> 0 | AE8: =IF(FC8=1,AD8+1/2*(AC8-AD8),"") -> 0 | AF8: =IF(FC8=1,S8+AE8,"") -> 0 | AG8: =IF(FC8=1,MAX(Tax_Y2(AF8),0)+medicare(AF8),"") -> 0 | AH8: =IF(FC8=1,AG8-V8-K8,"") -> 0 | AI8: =IF(FC8=1,-D8+J8-AH8+AC8,"") -> 0 | AJ8: =IF(FC8=1,J8+AB8-AH8-AA8,"") -> 123000 | AM8: 2 | AN8: 222000 | AO8: =IF($FC8=1,CE8-CQ7+DE8,"") -> 2000 | AP8: =IF($FC8=1,CF8-CE8-CR8+DF8,"") -> 2000 | AQ8: 2000 | AR8: 2000 | AS8: 2000 | AT8: 2000 | AU8: 2000 | AV8: 2000 | AW8: 2000 | AX8: 2000 | AY8: 2000 | AZ8: 2000 | BA8: =SUM(AO8:AZ8) -> 24000 | BB8: 12 | BC8: =IF($FC8=1,(1-entry_exit_fee)*AO8/(IF(Smooth_Fluctuate=1,$L8*(1+INDEX(CapitalGain,$A8))^((BC$6-1)/12),INDEX(hist_index,Start_Ref+$BA8+BC$6-1,2)/INDEX(hist_index,Start_Ref,2))),"") -> 2000 | BD8: =IF($FC8=1,(1-entry_exit_fee)*AP8/(IF(Smooth_Fluctuate=1,$L8*(1+INDEX(CapitalGain,$A8))^((BD$6-1)/12),INDEX(hist_index,Start_Ref+$BA8+BD$6-1,2)/INDEX(hist_index,Start_Ref,2))),"") -> 2000 | BE8: =IF($FC8=1,(1-entry_exit_fee)*AQ8/(IF(Smooth_Fluctuate=1,$L8*(1+INDEX(CapitalGain,$A8))^((BE$6-1)/12),INDEX(hist_index,Start_Ref+$BA8+BE$6-1,2)/INDEX(hist_index,Start_Ref,2))),"") -> 2000 | BF8: =IF($FC8=1,(1-entry_exit_fee)*AR8/(IF(Smooth_Fluctuate=1,$L8*(1+INDEX(CapitalGain,$A8))^((BF$6-1)/12),INDEX(hist_index,Start_Ref+$BA8+BF$6-1,2)/INDEX(hist_index,Start_Ref,2))),"") -> 2000 | BG8: =IF($FC8=1,(1-entry_exit_fee)*AS8/(IF(Smooth_Fluctuate=1,$L8*(1+INDEX(CapitalGain,$A8))^((BG$6-1)/12),INDEX(hist_index,Start_Ref+$BA8+BG$6-1,2)/INDEX(hist_index,Start_Ref,2))),"") -> 2000 | BH8: =IF($FC8=1,(1-entry_exit_fee)*AT8/(IF(Smooth_Fluctuate=1,$L8*(1+INDEX(CapitalGain,$A8))^((BH$6-1)/12),INDEX(hist_index,Start_Ref+$BA8+BH$6-1,2)/INDEX(hist_index,Start_Ref,2))),"") -> 2000 | BI8: =IF($FC8=1,(1-entry_exit_fee)*AU8/(IF(Smooth_Fluctuate=1,$L8*(1+INDEX(CapitalGain,$A8))^((BI$6-1)/12),INDEX(hist_index,Start_Ref+$BA8+BI$6-1,2)/INDEX(hist_index,Start_Ref,2))),"") -> 2000 | BJ8: =IF($FC8=1,(1-entry_exit_fee)*AV8/(IF(Smooth_Fluctuate=1,$L8*(1+INDEX(CapitalGain,$A8))^((BJ$6-1)/12),INDEX(hist_index,Start_Ref+$BA8+BJ$6-1,2)/INDEX(hist_index,Start_Ref,2))),"") -> 2000 | BK8: =IF($FC8=1,(1-entry_exit_fee)*AW8/(IF(Smooth_Fluctuate=1,$L8*(1+INDEX(CapitalGain,$A8))^((BK$6-1)/12),INDEX(hist_index,Start_Ref+$BA8+BK$6-1,2)/INDEX(hist_index,Start_Ref,2))),"") -> 2000 | BL8: =IF($FC8=1,(1-entry_exit_fee)*AX8/(IF(Smooth_Fluctuate=1,$L8*(1+INDEX(CapitalGain,$A8))^((BL$6-1)/12),INDEX(hist_index,Start_Ref+$BA8+BL$6-1,2)/INDEX(hist_index,Start_Ref,2))),"") -> 2000 | BM8: =IF($FC8=1,(1-entry_exit_fee)*AY8/(IF(Smooth_Fluctuate=1,$L8*(1+INDEX(CapitalGain,$A8))^((BM$6-1)/12),INDEX(hist_index,Start_Ref+$BA8+BM$6-1,2)/INDEX(hist_index,Start_Ref,2))),"") -> 2000 | BN8: =IF($FC8=1,(1-entry_exit_fee)*AZ8/(IF(Smooth_Fluctuate=1,$L8*(1+INDEX(CapitalGain,$A8))^((BN$6-1)/12),INDEX(hist_index,Start_Ref+$BA8+BN$6-1,2)/INDEX(hist_index,Start_Ref,2))),"") -> 2000 | BO8: =SUM(BC8:BN8) -> 24000 | BP8: =IF(BO8<>0,BA8/BO8,"") -> 1 | BQ8: 0 | BR8: 0 | BS8: 0 | BT8: 0 | BU8: 0 | BV8: 0 | BW8: 0 | BX8: 0 | BY8: 0 | BZ8: 0 | CA8: 0 | CB8: 0 | CC8: =SUM(BQ8:CB8) -> 0 | CD8: =IF(CC8<>0,$CC8/$BA8*2,"") ->  | CE8: =IF($FC8=1,IF(ISNUMBER(Loan_max),MIN(CQ7+Loan_month*(1+annual_index)^($A8-1),Loan_max),CQ7+Loan_month*(1+annual_index)^($A8-1)),"") -> 112000 | CF8: =IF($FC8=1,CR8+IF(ISNUMBER(Loan_max),MIN(CE8+FV(annual_index,$A8-1,,-Loan_month),Loan_max),CE8+FV(annual_index,$A8-1,,-Loan_month)),"") -> 113000 | CG8: =IF($FC8=1,CS8+IF(ISNUMBER(Loan_max),MIN(CF8+FV(annual_index,$A8-1,,-Loan_month),Loan_max),CF8+FV(annual_index,$A8-1,,-Loan_month)),"") -> 114000 | CH8: =IF($FC8=1,CT8+IF(ISNUMBER(Loan_max),MIN(CG8+FV(annual_index,$A8-1,,-Loan_month),Loan_max),CG8+FV(annual_index,$A8-1,,-Loan_month)),"") -> 115000 | CI8: =IF($FC8=1,CU8+IF(ISNUMBER(Loan_max),MIN(CH8+FV(annual_index,$A8-1,,-Loan_month),Loan_max),CH8+FV(annual_index,$A8-1,,-Loan_month)),"") -> 116000 | CJ8: =IF($FC8=1,CV8+IF(ISNUMBER(Loan_max),MIN(CI8+FV(annual_index,$A8-1,,-Loan_month),Loan_max),CI8+FV(annual_index,$A8-1,,-Loan_month)),"") -> 117000 | CK8: =IF($FC8=1,CW8+IF(ISNUMBER(Loan_max),MIN(CJ8+FV(annual_index,$A8-1,,-Loan_month),Loan_max),CJ8+FV(annual_index,$A8-1,,-Loan_month)),"") -> 118000 | CL8: =IF($FC8=1,CX8+IF(ISNUMBER(Loan_max),MIN(CK8+FV(annual_index,$A8-1,,-Loan_month),Loan_max),CK8+FV(annual_index,$A8-1,,-Loan_month)),"") -> 119000 | CM8: =IF($FC8=1,CY8+IF(ISNUMBER(Loan_max),MIN(CL8+FV(annual_index,$A8-1,,-Loan_month),Loan_max),CL8+FV(annual_index,$A8-1,,-Loan_month)),"") -> 120000 | CN8: =IF($FC8=1,CZ8+IF(ISNUMBER(Loan_max),MIN(CM8+FV(annual_index,$A8-1,,-Loan_month),Loan_max),CM8+FV(annual_index,$A8-1,,-Loan_month)),"") -> 121000 | CO8: =IF($FC8=1,DA8+IF(ISNUMBER(Loan_max),MIN(CN8+FV(annual_index,$A8-1,,-Loan_month),Loan_max),CN8+FV(annual_index,$A8-1,,-Loan_month)),"") -> 122000 | CP8: =IF($FC8=1,DB8+IF(ISNUMBER(Loan_max),MIN(CO8+FV(annual_index,$A8-1,,-Loan_month),Loan_max),CO8+FV(annual_index,$A8-1,,-Loan_month)),"") -> 123000 | CQ8: =IF($FC8,CP8+DC8,"") -> 123000 | CR8: =IF($FC8=1,IF(capitalise_interest=1,CE8*INDEX(interest,$A8)/12,0),0) -> 0 | CS8: 0 | CT8: 0 | CU8: 0 | CV8: 0 | CW8: 0 | CX8: 0 | CY8: 0 | CZ8: 0 | DA8: 0 | DB8: 0 | DC8: 0 | DD8: =IF($FC8,SUM(CR8:DC8),"") -> 0 | DE8: =IF($FC8=1,IF(CE8>CP7,capital_month*(1+annual_index)^($A8-1),IF(continue_invest=1,capital_month*(1+annual_index)^($A8-1),0)),0) -> 1000 | DF8: =IF($FC8=1,IF(CF8>CE8,capital_month*(1+annual_index)^($A8-1),IF(continue_invest=1,capital_month*(1+annual_index)^($A8-1),0)),0) -> 1000 | DG8: 1000 | DH8: 1000 | DI8: 1000 | DJ8: 1000 | DK8: 1000 | DL8: 1000 | DM8: 1000 | DN8: 1000 | DO8: 1000 | DP8: 1000 | DQ8: =SUM(DE8:DP8) -> 12000 | DR8: =IF($FC8=1,CE8*INDEX(interest,$A8)/12,0) -> 0 | DS8: 0 | DT8: 0 | DU8: 0 | DV8: 0 | DW8: 0 | DX8: 0 | DY8: 0 | DZ8: 0 | EA8: 0 | EB8: 0 | EC8: 0 | ED8: =IF($FC8,BQ8+$F8*INDEX(DividendIncome,$A8)/12,0) -> 0 | EE8: 0 | EF8: 0 | EG8: 0 | EH8: 0 | EI8: 0 | EJ8: 0 | EK8: 0 | EL8: 0 | EM8: 0 | EN8: 0 | EO8: 0 | EP8: 0 | FB8: =IF(A8=time_horizon,AB8-AA8-AH8,0)+IF(FC9=1,-W8-E9,0)+EP8 -> 0 | FC8: =IF(A8>time_horizon,0,1) -> 1 | FE8: =-DF8-DR8+CR8 -> -1000 | FF8: -1000 | FG8: -1000 | FH8: -1000 | FI8: -1000 | FJ8: -1000 | FK8: -1000 | FL8: -1000 | FM8: -1000 | FN8: -1000 | FO8: -1000 | FP8: =IF(FC9=1,-DE9,0)-EC8+DC8+FB8 -> -1000 | FS8: 2 | FT8: =FF7 -> -1000 | FW8: 2 | FX8: =FF31 -> -1000 | GA8: =GA7+12 -> 13 | GB8: =GB7+12 -> 14 | GC8: =GC7+12 -> 15 | GD8: =GD7+12 -> 16 | GE8: =GE7+12 -> 17 | GF8: =GF7+12 -> 18 | GG8: =GG7+12 -> 19 | GH8: =GH7+12 -> 20 | GI8: =GI7+12 -> 21 | GJ8: =GJ7+12 -> 22 | GK8: =GK7+12 -> 23 | GL8: =GL7+12 -> 24 | GN8: =GB7 -> 2
A9: 3 | B9: 123000 | C9: 123000 | D9: 0 | E9: 0 | F9: 246000 | G9: 246000 | H9: =IF($FC9=1,IF(F9=0,0,C9/F9),"") -> 0.5 | I9: 0 | J9: 0 | K9: 0 | L9: 1 | M9: 1 | N9: 24000 | O9: =IF(FC9=1,DQ9,"") -> 12000 | P9: =IF(FC9=1,BA9-DQ9+DD9,"") -> 12000 | Q9: 24000 | R9: 0 | S9: 0 | T9: =IF(FC9=1,IF(S9>0,MTR_Y2(S9),0),"") -> 0 | U9: 0 | V9: 0 | W9: 0 | X9: =IF($FC9,IF(capitalise_interest=1,0,-D9)+J9-W9,"") -> 0 | Y9: 0 | Z9: 135000 | AA9: =IF($FC9,CQ9,"") -> 135000 | AB9: 270000 | AC9: =IF(FC9=1,AB9-Capital-loan-SUM($E$7:E9)-SUM($Q$7:Q9),"") -> 0 | AD9: 0 | AE9: 0 | AF9: 0 | AG9: 0 | AH9: 0 | AI9: 0 | AJ9: 135000 | AM9: 3 | AN9: 246000 | AO9: =IF($FC9=1,CE9-CQ8+DE9,"") -> 2000 | AP9: 2000 | AQ9: 2000 | AR9: 2000 | AS9: 2000 | AT9: 2000 | AU9: 2000 | AV9: 2000 | AW9: 2000 | AX9: 2000 | AY9: 2000 | AZ9: 2000 | BA9: 24000 | BB9: 24 | BC9: 2000 | BD9: 2000 | BE9: 2000 | BF9: 2000 | BG9: 2000 | BH9: 2000 | BI9: 2000 | BJ9: 2000 | BK9: 2000 | BL9: 2000 | BM9: 2000 | BN9: 2000 | BO9: 24000 | BP9: 1 | BQ9: 0 | BR9: 0 | BS9: 0 | BT9: 0 | BU9: 0 | BV9: 0 | BW9: 0 | BX9: 0 | BY9: 0 | BZ9: 0 | CA9: 0 | CB9: 0 | CC9: 0 | CE9: =IF($FC9=1,IF(ISNUMBER(Loan_max),MIN(CQ8+Loan_month*(1+annual_index)^($A9-1),Loan_max),CQ8+Loan_month*(1+annual_index)^($A9-1)),"") -> 124000 | CF9: 125000 | CG9: 126000 | CH9: 127000 | CI9: 128000 | CJ9: 129000 | CK9: 130000 | CL9: 131000 | CM9: 132000 | CN9: 133000 | CO9: 134000 | CP9: 135000 | CQ9: 135000 | CR9: 0 | CS9: 0 | CT9: 0 | CU9: 0 | CV9: 0 | CW9: 0 | CX9: 0 | CY9: 0 | CZ9: 0 | DA9: 0 | DB9: 0 | DC9: 0 | DD9: 0 | DE9: =IF($FC9=1,IF(CE9>CP8,capital_month*(1+annual_index)^($A9-1),IF(continue_invest=1,capital_month*(1+annual_index)^($A9-1),0)),0) -> 1000 | DF9: 1000 | DG9: 1000 | DH9: 1000 | DI9: 1000 | DJ9: 1000 | DK9: 1000 | DL9: 1000 | DM9: 1000 | DN9: 1000 | DO9: 1000 | DP9: 1000 | DQ9: 12000 | DR9: 0 | DS9: 0 | DT9: 0 | DU9: 0 | DV9: 0 | DW9: 0 | DX9: 0 | DY9: 0 | DZ9: 0 | EA9: 0 | EB9: 0 | EC9: 0 | ED9: 0 | EE9: 0 | EF9: 0 | EG9: 0 | EH9: 0 | EI9: 0 | EJ9: 0 | EK9: 0 | EL9: 0 | EM9: 0 | EN9: 0 | EO9: 0 | EP9: 0 | FB9: 0 | FC9: 1 | FE9: -1000 | FF9: -1000 | FG9: -1000 | FH9: -1000 | FI9: -1000 | FJ9: -1000 | FK9: -1000 | FL9: -1000 | FM9: -1000 | FN9: -1000 | FO9: -1000 | FP9: -1000 | FS9: 3 | FT9: =FG7 -> -1000 | FW9: 3 | FX9: =FG31 -> -1000 | GA9: =GA8+12 -> 25 | GB9: 26 | GC9: 27 | GD9: 28 | GE9: 29 | GF9: 30 | GG9: 31 | GH9: 32 | GI9: 33 | GJ9: 34 | GK9: 35 | GL9: 36 | GN9: =GC7 -> 3
A10: 4 | B10: 135000 | C10: 135000 | D10: 0 | E10: 0 | F10: 270000 | G10: 270000 | H10: =IF($FC10=1,IF(F10=0,0,C10/F10),"") -> 0.5 | I10: 0 | J10: 0 | K10: 0 | L10: 1 | M10: 1 | N10: 24000 | O10: 12000 | P10: 12000 | Q10: 24000 | R10: 0 | S10: 0 | T10: =IF(FC10=1,IF(S10>0,MTR_Y2(S10),0),"") -> 0 | U10: 0 | V10: 0 | W10: 0 | X10: 0 | Y10: 0 | Z10: 147000 | AA10: 147000 | AB10: 294000 | AC10: =IF(FC10=1,AB10-Capital-loan-SUM($E$7:E10)-SUM($Q$7:Q10),"") -> 0 | AD10: 0 | AE10: 0 | AF10: 0 | AG10: 0 | AH10: 0 | AI10: 0 | AJ10: 147000 | AM10: 4 | AN10: 270000 | AO10: 2000 | AP10: 2000 | AQ10: 2000 | AR10: 2000 | AS10: 2000 | AT10: 2000 | AU10: 2000 | AV10: 2000 | AW10: 2000 | AX10: 2000 | AY10: 2000 | AZ10: 2000 | BA10: 24000 | BB10: 36 | BC10: 2000 | BD10: 2000 | BE10: 2000 | BF10: 2000 | BG10: 2000 | BH10: 2000 | BI10: 2000 | BJ10: 2000 | BK10: 2000 | BL10: 2000 | BM10: 2000 | BN10: 2000 | BO10: 24000 | BP10: 1 | BQ10: 0 | BR10: 0 | BS10: 0 | BT10: 0 | BU10: 0 | BV10: 0 | BW10: 0 | BX10: 0 | BY10: 0 | BZ10: 0 | CA10: 0 | CB10: 0 | CC10: 0 | CE10: 136000 | CF10: 137000 | CG10: 138000 | CH10: 139000 | CI10: 140000 | CJ10: 141000 | CK10: 142000 | CL10: 143000 | CM10: 144000 | CN10: 145000 | CO10: 146000 | CP10: 147000 | CQ10: 147000 | CR10: 0 | CS10: 0 | CT10: 0 | CU10: 0 | CV10: 0 | CW10: 0 | CX10: 0 | CY10: 0 | CZ10: 0 | DA10: 0 | DB10: 0 | DC10: 0 | DD10: 0 | DE10: 1000 | DF10: 1000 | DG10: 1000 | DH10: 1000 | DI10: 1000 | DJ10: 1000 | DK10: 1000 | DL10: 1000 | DM10: 1000 | DN10: 1000 | DO10: 1000 | DP10: 1000 | DQ10: 12000 | DR10: 0 | DS10: 0 | DT10: 0 | DU10: 0 | DV10: 0 | DW10: 0 | DX10: 0 | DY10: 0 | DZ10: 0 | EA10: 0 | EB10: 0 | EC10: 0 | ED10: 0 | EE10: 0 | EF10: 0 | EG10: 0 | EH10: 0 | EI10: 0 | EJ10: 0 | EK10: 0 | EL10: 0 | EM10: 0 | EN10: 0 | EO10: 0 | EP10: 0 | FB10: 0 | FC10: 1 | FE10: -1000 | FF10: -1000 | FG10: -1000 | FH10: -1000 | FI10: -1000 | FJ10: -1000 | FK10: -1000 | FL10: -1000 | FM10: -1000 | FN10: -1000 | FO10: -1000 | FP10: -1000 | FS10: 4 | FT10: =FH7 -> -1000 | FW10: 4 | FX10: =FH31 -> -1000 | GA10: 37 | GB10: 38 | GC10: 39 | GD10: 40 | GE10: 41 | GF10: 42 | GG10: 43 | GH10: 44 | GI10: 45 | GJ10: 46 | GK10: 47 | GL10: 48 | GN10: =GD7 -> 4
A11: 5 | B11: 147000 | C11: 147000 | D11: 0 | E11: 0 | F11: 294000 | G11: 294000 | H11: 0.5 | I11: 0 | J11: 0 | K11: 0 | L11: 1 | M11: 1 | N11: 24000 | O11: 12000 | P11: 12000 | Q11: 24000 | R11: 0 | S11: 0 | T11: 0 | U11: 0 | V11: 0 | W11: 0 | X11: 0 | Y11: 0 | Z11: 159000 | AA11: 159000 | AB11: 318000 | AC11: =IF(FC11=1,AB11-Capital-loan-SUM($E$7:E11)-SUM($Q$7:Q11),"") -> 0 | AD11: 0 | AE11: 0 | AF11: 0 | AG11: 0 | AH11: 0 | AI11: 0 | AJ11: 159000 | AM11: 5 | AN11: 294000 | AO11: 2000 | AP11: 2000 | AQ11: 2000 | AR11: 2000 | AS11: 2000 | AT11: 2000 | AU11: 2000 | AV11: 2000 | AW11: 2000 | AX11: 2000 | AY11: 2000 | AZ11: 2000 | BA11: 24000 | BB11: 48 | BC11: 2000 | BD11: 2000 | BE11: 2000 | BF11: 2000 | BG11: 2000 | BH11: 2000 | BI11: 2000 | BJ11: 2000 | BK11: 2000 | BL11: 2000 | BM11: 2000 | BN11: 2000 | BO11: 24000 | BP11: 1 | BQ11: 0 | BR11: 0 | BS11: 0 | BT11: 0 | BU11: 0 | BV11: 0 | BW11: 0 | BX11: 0 | BY11: 0 | BZ11: 0 | CA11: 0 | CB11: 0 | CC11: 0 | CE11: 148000 | CF11: 149000 | CG11: 150000 | CH11: 151000 | CI11: 152000 | CJ11: 153000 | CK11: 154000 | CL11: 155000 | CM11: 156000 | CN11: 157000 | CO11: 158000 | CP11: 159000 | CQ11: 159000 | CR11: 0 | CS11: 0 | CT11: 0 | CU11: 0 | CV11: 0 | CW11: 0 | CX11: 0 | CY11: 0 | CZ11: 0 | DA11: 0 | DB11: 0 | DC11: 0 | DD11: 0 | DE11: 1000 | DF11: 1000 | DG11: 1000 | DH11: 1000 | DI11: 1000 | DJ11: 1000 | DK11: 1000 | DL11: 1000 | DM11: 1000 | DN11: 1000 | DO11: 1000 | DP11: 1000 | DQ11: 12000 | DR11: 0 | DS11: 0 | DT11: 0 | DU11: 0 | DV11: 0 | DW11: 0 | DX11: 0 | DY11: 0 | DZ11: 0 | EA11: 0 | EB11: 0 | EC11: 0 | ED11: 0 | EE11: 0 | EF11: 0 | EG11: 0 | EH11: 0 | EI11: 0 | EJ11: 0 | EK11: 0 | EL11: 0 | EM11: 0 | EN11: 0 | EO11: 0 | EP11: 0 | FB11: 0 | FC11: 1 | FE11: -1000 | FF11: -1000 | FG11: -1000 | FH11: -1000 | FI11: -1000 | FJ11: -1000 | FK11: -1000 | FL11: -1000 | FM11: -1000 | FN11: -1000 | FO11: -1000 | FP11: -1000 | FS11: 5 | FT11: =FI7 -> -1000 | FW11: 5 | FX11: =FI31 -> -1000 | GA11: 49 | GB11: 50 | GC11: 51 | GD11: 52 | GE11: 53 | GF11: 54 | GG11: 55 | GH11: 56 | GI11: 57 | GJ11: 58 | GK11: 59 | GL11: 60 | GN11: =GE7 -> 5
A12: 6 | B12: 159000 | C12: 159000 | D12: 0 | E12: 0 | F12: 318000 | G12: 318000 | H12: 0.5 | I12: 0 | J12: 0 | K12: 0 | L12: 1 | M12: 1 | N12: 24000 | O12: 12000 | P12: 12000 | Q12: 24000 | R12: 0 | S12: 0 | T12: 0 | U12: 0 | V12: 0 | W12: 0 | X12: 0 | Y12: 0 | Z12: 171000 | AA12: 171000 | AB12: 342000 | AC12: =IF(FC12=1,AB12-Capital-loan-SUM($E$7:E12)-SUM($Q$7:Q12),"") -> 0 | AD12: 0 | AE12: 0 | AF12: 0 | AG12: 0 | AH12: 0 | AI12: 0 | AJ12: 171000 | AM12: 6 | AN12: 318000 | AO12: 2000 | AP12: 2000 | AQ12: 2000 | AR12: 2000 | AS12: 2000 | AT12: 2000 | AU12: 2000 | AV12: 2000 | AW12: 2000 | AX12: 2000 | AY12: 2000 | AZ12: 2000 | BA12: 24000 | BB12: 60 | BC12: 2000 | BD12: 2000 | BE12: 2000 | BF12: 2000 | BG12: 2000 | BH12: 2000 | BI12: 2000 | BJ12: 2000 | BK12: 2000 | BL12: 2000 | BM12: 2000 | BN12: 2000 | BO12: 24000 | BP12: 1 | BQ12: 0 | BR12: 0 | BS12: 0 | BT12: 0 | BU12: 0 | BV12: 0 | BW12: 0 | BX12: 0 | BY12: 0 | BZ12: 0 | CA12: 0 | CB12: 0 | CC12: 0 | CE12: 160000 | CF12: 161000 | CG12: 162000 | CH12: 163000 | CI12: 164000 | CJ12: 165000 | CK12: 166000 | CL12: 167000 | CM12: 168000 | CN12: 169000 | CO12: 170000 | CP12: 171000 | CQ12: 171000 | CR12: 0 | CS12: 0 | CT12: 0 | CU12: 0 | CV12: 0 | CW12: 0 | CX12: 0 | CY12: 0 | CZ12: 0 | DA12: 0 | DB12: 0 | DC12: 0 | DD12: 0 | DE12: 1000 | DF12: 1000 | DG12: 1000 | DH12: 1000 | DI12: 1000 | DJ12: 1000 | DK12: 1000 | DL12: 1000 | DM12: 1000 | DN12: 1000 | DO12: 1000 | DP12: 1000 | DQ12: 12000 | DR12: 0 | DS12: 0 | DT12: 0 | DU12: 0 | DV12: 0 | DW12: 0 | DX12: 0 | DY12: 0 | DZ12: 0 | EA12: 0 | EB12: 0 | EC12: 0 | ED12: 0 | EE12: 0 | EF12: 0 | EG12: 0 | EH12: 0 | EI12: 0 | EJ12: 0 | EK12: 0 | EL12: 0 | EM12: 0 | EN12: 0 | EO12: 0 | EP12: 0 | FB12: 0 | FC12: 1 | FE12: -1000 | FF12: -1000 | FG12: -1000 | FH12: -1000 | FI12: -1000 | FJ12: -1000 | FK12: -1000 | FL12: -1000 | FM12: -1000 | FN12: -1000 | FO12: -1000 | FP12: -1000 | FS12: 6 | FT12: =FJ7 -> -1000 | FW12: 6 | FX12: =FJ31 -> -1000 | GA12: 61 | GB12: 62 | GC12: 63 | GD12: 64 | GE12: 65 | GF12: 66 | GG12: 67 | GH12: 68 | GI12: 69 | GJ12: 70 | GK12: 71 | GL12: 72 | GN12: =GF7 -> 6
A13: 7 | B13: 171000 | C13: 171000 | D13: 0 | E13: 0 | F13: 342000 | G13: 342000 | H13: 0.5 | I13: 0 | J13: 0 | K13: 0 | L13: 1 | M13: 1 | N13: 24000 | O13: 12000 | P13: 12000 | Q13: 24000 | R13: 0 | S13: 0 | T13: 0 | U13: 0 | V13: 0 | W13: 0 | X13: 0 | Y13: 0 | Z13: 183000 | AA13: 183000 | AB13: 366000 | AC13: =IF(FC13=1,AB13-Capital-loan-SUM($E$7:E13)-SUM($Q$7:Q13),"") -> 0 | AD13: 0 | AE13: 0 | AF13: 0 | AG13: 0 | AH13: 0 | AI13: 0 | AJ13: 183000 | AM13: 7 | AN13: 342000 | AO13: 2000 | AP13: 2000 | AQ13: 2000 | AR13: 2000 | AS13: 2000 | AT13: 2000 | AU13: 2000 | AV13: 2000 | AW13: 2000 | AX13: 2000 | AY13: 2000 | AZ13: 2000 | BA13: 24000 | BB13: 72 | BC13: 2000 | BD13: 2000 | BE13: 2000 | BF13: 2000 | BG13: 2000 | BH13: 2000 | BI13: 2000 | BJ13: 2000 | BK13: 2000 | BL13: 2000 | BM13: 2000 | BN13: 2000 | BO13: 24000 | BP13: 1 | BQ13: 0 | BR13: 0 | BS13: 0 | BT13: 0 | BU13: 0 | BV13: 0 | BW13: 0 | BX13: 0 | BY13: 0 | BZ13: 0 | CA13: 0 | CB13: 0 | CC13: 0 | CE13: 172000 | CF13: 173000 | CG13: 174000 | CH13: 175000 | CI13: 176000 | CJ13: 177000 | CK13: 178000 | CL13: 179000 | CM13: 180000 | CN13: 181000 | CO13: 182000 | CP13: 183000 | CQ13: 183000 | CR13: 0 | CS13: 0 | CT13: 0 | CU13: 0 | CV13: 0 | CW13: 0 | CX13: 0 | CY13: 0 | CZ13: 0 | DA13: 0 | DB13: 0 | DC13: 0 | DD13: 0 | DE13: 1000 | DF13: 1000 | DG13: 1000 | DH13: 1000 | DI13: 1000 | DJ13: 1000 | DK13: 1000 | DL13: 1000 | DM13: 1000 | DN13: 1000 | DO13: 1000 | DP13: 1000 | DQ13: 12000 | DR13: 0 | DS13: 0 | DT13: 0 | DU13: 0 | DV13: 0 | DW13: 0 | DX13: 0 | DY13: 0 | DZ13: 0 | EA13: 0 | EB13: 0 | EC13: 0 | ED13: 0 | EE13: 0 | EF13: 0 | EG13: 0 | EH13: 0 | EI13: 0 | EJ13: 0 | EK13: 0 | EL13: 0 | EM13: 0 | EN13: 0 | EO13: 0 | EP13: 0 | FB13: 0 | FC13: 1 | FE13: -1000 | FF13: -1000 | FG13: -1000 | FH13: -1000 | FI13: -1000 | FJ13: -1000 | FK13: -1000 | FL13: -1000 | FM13: -1000 | FN13: -1000 | FO13: -1000 | FP13: -1000 | FS13: 7 | FT13: =FK7 -> -1000 | FW13: 7 | FX13: =FK31 -> -1000 | GA13: 73 | GB13: 74 | GC13: 75 | GD13: 76 | GE13: 77 | GF13: 78 | GG13: 79 | GH13: 80 | GI13: 81 | GJ13: 82 | GK13: 83 | GL13: 84 | GN13: =GG7 -> 7
A14: 8 | B14: 183000 | C14: 183000 | D14: 0 | E14: 0 | F14: 366000 | G14: 366000 | H14: 0.5 | I14: 0 | J14: 0 | K14: 0 | L14: 1 | M14: 1 | N14: 24000 | O14: 12000 | P14: 12000 | Q14: 24000 | R14: 0 | S14: 0 | T14: 0 | U14: 0 | V14: 0 | W14: 0 | X14: 0 | Y14: 0 | Z14: 195000 | AA14: 195000 | AB14: 390000 | AC14: =IF(FC14=1,AB14-Capital-loan-SUM($E$7:E14)-SUM($Q$7:Q14),"") -> 0 | AD14: 0 | AE14: 0 | AF14: 0 | AG14: 0 | AH14: 0 | AI14: 0 | AJ14: 195000 | AM14: 8 | AN14: 366000 | AO14: 2000 | AP14: 2000 | AQ14: 2000 | AR14: 2000 | AS14: 2000 | AT14: 2000 | AU14: 2000 | AV14: 2000 | AW14: 2000 | AX14: 2000 | AY14: 2000 | AZ14: 2000 | BA14: 24000 | BB14: 84 | BC14: 2000 | BD14: 2000 | BE14: 2000 | BF14: 2000 | BG14: 2000 | BH14: 2000 | BI14: 2000 | BJ14: 2000 | BK14: 2000 | BL14: 2000 | BM14: 2000 | BN14: 2000 | BO14: 24000 | BP14: 1 | BQ14: 0 | BR14: 0 | BS14: 0 | BT14: 0 | BU14: 0 | BV14: 0 | BW14: 0 | BX14: 0 | BY14: 0 | BZ14: 0 | CA14: 0 | CB14: 0 | CC14: 0 | CE14: 184000 | CF14: 185000 | CG14: 186000 | CH14: 187000 | CI14: 188000 | CJ14: 189000 | CK14: 190000 | CL14: 191000 | CM14: 192000 | CN14: 193000 | CO14: 194000 | CP14: 195000 | CQ14: 195000 | CR14: 0 | CS14: 0 | CT14: 0 | CU14: 0 | CV14: 0 | CW14: 0 | CX14: 0 | CY14: 0 | CZ14: 0 | DA14: 0 | DB14: 0 | DC14: 0 | DD14: 0 | DE14: 1000 | DF14: 1000 | DG14: 1000 | DH14: 1000 | DI14: 1000 | DJ14: 1000 | DK14: 1000 | DL14: 1000 | DM14: 1000 | DN14: 1000 | DO14: 1000 | DP14: 1000 | DQ14: 12000 | DR14: 0 | DS14: 0 | DT14: 0 | DU14: 0 | DV14: 0 | DW14: 0 | DX14: 0 | DY14: 0 | DZ14: 0 | EA14: 0 | EB14: 0 | EC14: 0 | ED14: 0 | EE14: 0 | EF14: 0 | EG14: 0 | EH14: 0 | EI14: 0 | EJ14: 0 | EK14: 0 | EL14: 0 | EM14: 0 | EN14: 0 | EO14: 0 | EP14: 0 | FB14: 0 | FC14: 1 | FE14: -1000 | FF14: -1000 | FG14: -1000 | FH14: -1000 | FI14: -1000 | FJ14: -1000 | FK14: -1000 | FL14: -1000 | FM14: -1000 | FN14: -1000 | FO14: -1000 | FP14: -1000 | FS14: 8 | FT14: =FL7 -> -1000 | FW14: 8 | FX14: =FL31 -> -1000 | GA14: 85 | GB14: 86 | GC14: 87 | GD14: 88 | GE14: 89 | GF14: 90 | GG14: 91 | GH14: 92 | GI14: 93 | GJ14: 94 | GK14: 95 | GL14: 96 | GN14: =GH7 -> 8
A15: 9 | B15: 195000 | C15: 195000 | D15: 0 | E15: 0 | F15: 390000 | G15: 390000 | H15: 0.5 | I15: 0 | J15: 0 | K15: 0 | L15: 1 | M15: 1 | N15: 24000 | O15: 12000 | P15: 12000 | Q15: 24000 | R15: 0 | S15: 0 | T15: 0 | U15: 0 | V15: 0 | W15: 0 | X15: 0 | Y15: 0 | Z15: 207000 | AA15: 207000 | AB15: 414000 | AC15: =IF(FC15=1,AB15-Capital-loan-SUM($E$7:E15)-SUM($Q$7:Q15),"") -> 0 | AD15: 0 | AE15: 0 | AF15: 0 | AG15: 0 | AH15: 0 | AI15: 0 | AJ15: 207000 | AM15: 9 | AN15: 390000 | AO15: 2000 | AP15: 2000 | AQ15: 2000 | AR15: 2000 | AS15: 2000 | AT15: 2000 | AU15: 2000 | AV15: 2000 | AW15: 2000 | AX15: 2000 | AY15: 2000 | AZ15: 2000 | BA15: 24000 | BB15: 96 | BC15: 2000 | BD15: 2000 | BE15: 2000 | BF15: 2000 | BG15: 2000 | BH15: 2000 | BI15: 2000 | BJ15: 2000 | BK15: 2000 | BL15: 2000 | BM15: 2000 | BN15: 2000 | BO15: 24000 | BP15: 1 | BQ15: 0 | BR15: 0 | BS15: 0 | BT15: 0 | BU15: 0 | BV15: 0 | BW15: 0 | BX15: 0 | BY15: 0 | BZ15: 0 | CA15: 0 | CB15: 0 | CC15: 0 | CE15: 196000 | CF15: 197000 | CG15: 198000 | CH15: 199000 | CI15: 200000 | CJ15: 201000 | CK15: 202000 | CL15: 203000 | CM15: 204000 | CN15: 205000 | CO15: 206000 | CP15: 207000 | CQ15: 207000 | CR15: 0 | CS15: 0 | CT15: 0 | CU15: 0 | CV15: 0 | CW15: 0 | CX15: 0 | CY15: 0 | CZ15: 0 | DA15: 0 | DB15: 0 | DC15: 0 | DD15: 0 | DE15: 1000 | DF15: 1000 | DG15: 1000 | DH15: 1000 | DI15: 1000 | DJ15: 1000 | DK15: 1000 | DL15: 1000 | DM15: 1000 | DN15: 1000 | DO15: 1000 | DP15: 1000 | DQ15: 12000 | DR15: 0 | DS15: 0 | DT15: 0 | DU15: 0 | DV15: 0 | DW15: 0 | DX15: 0 | DY15: 0 | DZ15: 0 | EA15: 0 | EB15: 0 | EC15: 0 | ED15: 0 | EE15: 0 | EF15: 0 | EG15: 0 | EH15: 0 | EI15: 0 | EJ15: 0 | EK15: 0 | EL15: 0 | EM15: 0 | EN15: 0 | EO15: 0 | EP15: 0 | FB15: 0 | FC15: 1 | FE15: -1000 | FF15: -1000 | FG15: -1000 | FH15: -1000 | FI15: -1000 | FJ15: -1000 | FK15: -1000 | FL15: -1000 | FM15: -1000 | FN15: -1000 | FO15: -1000 | FP15: -1000 | FS15: 9 | FT15: =FM7 -> -1000 | FW15: 9 | FX15: =FM31 -> -1000 | GA15: 97 | GB15: 98 | GC15: 99 | GD15: 100 | GE15: 101 | GF15: 102 | GG15: 103 | GH15: 104 | GI15: 105 | GJ15: 106 | GK15: 107 | GL15: 108 | GN15: =GI7 -> 9
A16: 10 | B16: 207000 | C16: 207000 | D16: 0 | E16: 0 | F16: 414000 | G16: 414000 | H16: 0.5 | I16: 0 | J16: 0 | K16: 0 | L16: 1 | M16: 1 | N16: 24000 | O16: 12000 | P16: 12000 | Q16: 24000 | R16: 0 | S16: 0 | T16: 0 | U16: 0 | V16: 0 | W16: 0 | X16: 0 | Y16: 0 | Z16: 219000 | AA16: 219000 | AB16: 438000 | AC16: =IF(FC16=1,AB16-Capital-loan-SUM($E$7:E16)-SUM($Q$7:Q16),"") -> 0 | AD16: 0 | AE16: 0 | AF16: 0 | AG16: 0 | AH16: 0 | AI16: 0 | AJ16: 219000 | AM16: 10 | AN16: 414000 | AO16: 2000 | AP16: 2000 | AQ16: 2000 | AR16: 2000 | AS16: 2000 | AT16: 2000 | AU16: 2000 | AV16: 2000 | AW16: 2000 | AX16: 2000 | AY16: 2000 | AZ16: 2000 | BA16: =SUM(AO16:AZ16) -> 24000 | BB16: 97 | BC16: 2000 | BD16: 2000 | BE16: 2000 | BF16: 2000 | BG16: 2000 | BH16: 2000 | BI16: 2000 | BJ16: 2000 | BK16: 2000 | BL16: 2000 | BM16: 2000 | BN16: 2000 | BO16: =SUM(BC16:BN16) -> 24000 | BP16: 1 | BQ16: 0 | BR16: 0 | BS16: 0 | BT16: 0 | BU16: 0 | BV16: 0 | BW16: 0 | BX16: 0 | BY16: 0 | BZ16: 0 | CA16: 0 | CB16: 0 | CC16: =SUM(BQ16:CB16) -> 0 | CE16: 208000 | CF16: 209000 | CG16: 210000 | CH16: 211000 | CI16: 212000 | CJ16: 213000 | CK16: 214000 | CL16: 215000 | CM16: 216000 | CN16: 217000 | CO16: 218000 | CP16: 219000 | CQ16: 219000 | CR16: 0 | CS16: 0 | CT16: 0 | CU16: 0 | CV16: 0 | CW16: 0 | CX16: 0 | CY16: 0 | CZ16: 0 | DA16: 0 | DB16: 0 | DC16: 0 | DD16: 0 | DE16: 1000 | DF16: 1000 | DG16: 1000 | DH16: 1000 | DI16: 1000 | DJ16: 1000 | DK16: 1000 | DL16: 1000 | DM16: 1000 | DN16: 1000 | DO16: 1000 | DP16: 1000 | DQ16: 12000 | DR16: 0 | DS16: 0 | DT16: 0 | DU16: 0 | DV16: 0 | DW16: 0 | DX16: 0 | DY16: 0 | DZ16: 0 | EA16: 0 | EB16: 0 | EC16: 0 | ED16: 0 | EE16: 0 | EF16: 0 | EG16: 0 | EH16: 0 | EI16: 0 | EJ16: 0 | EK16: 0 | EL16: 0 | EM16: 0 | EN16: 0 | EO16: 0 | EP16: 0 | FB16: 0 | FC16: 1 | FE16: -1000 | FF16: -1000 | FG16: -1000 | FH16: -1000 | FI16: -1000 | FJ16: -1000 | FK16: -1000 | FL16: -1000 | FM16: -1000 | FN16: -1000 | FO16: -1000 | FP16: -1000 | FS16: 10 | FT16: =FN7 -> -1000 | FW16: 10 | FX16: =FN31 -> -1000 | GA16: 109 | GB16: 110 | GC16: 111 | GD16: 112 | GE16: 113 | GF16: 114 | GG16: 115 | GH16: 116 | GI16: 117 | GJ16: 118 | GK16: 119 | GL16: 120 | GN16: =GJ7 -> 10
A17: 11 | B17: 219000 | C17: 219000 | D17: 0 | E17: 0 | F17: 438000 | G17: 438000 | H17: 0.5 | I17: 0 | J17: 0 | K17: 0 | L17: 1 | M17: 1 | N17: 24000 | O17: 12000 | P17: 12000 | Q17: 24000 | R17: 0 | S17: 0 | T17: 0 | U17: 0 | V17: 0 | W17: 0 | X17: 0 | Y17: 0 | Z17: 231000 | AA17: 231000 | AB17: 462000 | AC17: =IF(FC17=1,AB17-Capital-loan-SUM($E$7:E17)-SUM($Q$7:Q17),"") -> 0 | AD17: 0 | AE17: 0 | AF17: 0 | AG17: 0 | AH17: 0 | AI17: 0 | AJ17: 231000 | AM17: 11 | AN17: 438000 | AO17: 2000 | AP17: 2000 | AQ17: 2000 | AR17: 2000 | AS17: 2000 | AT17: 2000 | AU17: 2000 | AV17: 2000 | AW17: 2000 | AX17: 2000 | AY17: 2000 | AZ17: 2000 | BA17: 24000 | BB17: 98 | BC17: 2000 | BD17: 2000 | BE17: 2000 | BF17: 2000 | BG17: 2000 | BH17: 2000 | BI17: 2000 | BJ17: 2000 | BK17: 2000 | BL17: 2000 | BM17: 2000 | BN17: 2000 | BO17: 24000 | BP17: 1 | BQ17: 0 | BR17: 0 | BS17: 0 | BT17: 0 | BU17: 0 | BV17: 0 | BW17: 0 | BX17: 0 | BY17: 0 | BZ17: 0 | CA17: 0 | CB17: 0 | CC17: 0 | CE17: 220000 | CF17: 221000 | CG17: 222000 | CH17: 223000 | CI17: 224000 | CJ17: 225000 | CK17: 226000 | CL17: 227000 | CM17: 228000 | CN17: 229000 | CO17: 230000 | CP17: 231000 | CQ17: 231000 | CR17: 0 | CS17: 0 | CT17: 0 | CU17: 0 | CV17: 0 | CW17: 0 | CX17: 0 | CY17: 0 | CZ17: 0 | DA17: 0 | DB17: 0 | DC17: 0 | DD17: 0 | DE17: 1000 | DF17: 1000 | DG17: 1000 | DH17: 1000 | DI17: 1000 | DJ17: 1000 | DK17: 1000 | DL17: 1000 | DM17: 1000 | DN17: 1000 | DO17: 1000 | DP17: 1000 | DQ17: 12000 | DR17: 0 | DS17: 0 | DT17: 0 | DU17: 0 | DV17: 0 | DW17: 0 | DX17: 0 | DY17: 0 | DZ17: 0 | EA17: 0 | EB17: 0 | EC17: 0 | ED17: 0 | EE17: 0 | EF17: 0 | EG17: 0 | EH17: 0 | EI17: 0 | EJ17: 0 | EK17: 0 | EL17: 0 | EM17: 0 | EN17: 0 | EO17: 0 | EP17: 0 | FB17: 0 | FC17: 1 | FE17: -1000 | FF17: -1000 | FG17: -1000 | FH17: -1000 | FI17: -1000 | FJ17: -1000 | FK17: -1000 | FL17: -1000 | FM17: -1000 | FN17: -1000 | FO17: -1000 | FP17: -1000 | FS17: 11 | FT17: =FO7 -> -1000 | FW17: 11 | FX17: =FO31 -> -1000 | GA17: 121 | GB17: 122 | GC17: 123 | GD17: 124 | GE17: 125 | GF17: 126 | GG17: 127 | GH17: 128 | GI17: 129 | GJ17: 130 | GK17: 131 | GL17: 132 | GN17: =GK7 -> 11
A18: 12 | B18: 231000 | C18: 231000 | D18: 0 | E18: 0 | F18: 462000 | G18: 462000 | H18: 0.5 | I18: 0 | J18: 0 | K18: 0 | L18: 1 | M18: 1 | N18: 24000 | O18: 12000 | P18: 12000 | Q18: 24000 | R18: 0 | S18: 0 | T18: 0 | U18: 0 | V18: 0 | W18: 0 | X18: 0 | Y18: 0 | Z18: 243000 | AA18: 243000 | AB18: 486000 | AC18: =IF(FC18=1,AB18-Capital-loan-SUM($E$7:E18)-SUM($Q$7:Q18),"") -> 0 | AD18: 0 | AE18: 0 | AF18: 0 | AG18: 0 | AH18: 0 | AI18: 0 | AJ18: 243000 | AM18: 12 | AN18: 462000 | AO18: 2000 | AP18: 2000 | AQ18: 2000 | AR18: 2000 | AS18: 2000 | AT18: 2000 | AU18: 2000 | AV18: 2000 | AW18: 2000 | AX18: 2000 | AY18: 2000 | AZ18: 2000 | BA18: 24000 | BB18: 99 | BC18: 2000 | BD18: 2000 | BE18: 2000 | BF18: 2000 | BG18: 2000 | BH18: 2000 | BI18: 2000 | BJ18: 2000 | BK18: 2000 | BL18: 2000 | BM18: 2000 | BN18: 2000 | BO18: 24000 | BP18: 1 | BQ18: 0 | BR18: 0 | BS18: 0 | BT18: 0 | BU18: 0 | BV18: 0 | BW18: 0 | BX18: 0 | BY18: 0 | BZ18: 0 | CA18: 0 | CB18: 0 | CC18: 0 | CE18: 232000 | CF18: 233000 | CG18: 234000 | CH18: 235000 | CI18: 236000 | CJ18: 237000 | CK18: 238000 | CL18: 239000 | CM18: 240000 | CN18: 241000 | CO18: 242000 | CP18: 243000 | CQ18: 243000 | CR18: 0 | CS18: 0 | CT18: 0 | CU18: 0 | CV18: 0 | CW18: 0 | CX18: 0 | CY18: 0 | CZ18: 0 | DA18: 0 | DB18: 0 | DC18: 0 | DD18: 0 | DE18: 1000 | DF18: 1000 | DG18: 1000 | DH18: 1000 | DI18: 1000 | DJ18: 1000 | DK18: 1000 | DL18: 1000 | DM18: 1000 | DN18: 1000 | DO18: 1000 | DP18: 1000 | DQ18: 12000 | DR18: 0 | DS18: 0 | DT18: 0 | DU18: 0 | DV18: 0 | DW18: 0 | DX18: 0 | DY18: 0 | DZ18: 0 | EA18: 0 | EB18: 0 | EC18: 0 | ED18: 0 | EE18: 0 | EF18: 0 | EG18: 0 | EH18: 0 | EI18: 0 | EJ18: 0 | EK18: 0 | EL18: 0 | EM18: 0 | EN18: 0 | EO18: 0 | EP18: 0 | FB18: 0 | FC18: 1 | FE18: -1000 | FF18: -1000 | FG18: -1000 | FH18: -1000 | FI18: -1000 | FJ18: -1000 | FK18: -1000 | FL18: -1000 | FM18: -1000 | FN18: -1000 | FO18: -1000 | FP18: -1000 | FS18: 12 | FT18: =FP7 -> -1000 | FW18: 12 | FX18: =FP31 -> -1000 | GA18: 133 | GB18: 134 | GC18: 135 | GD18: 136 | GE18: 137 | GF18: 138 | GG18: 139 | GH18: 140 | GI18: 141 | GJ18: 142 | GK18: 143 | GL18: 144 | GN18: =GL7 -> 12
A19: 13 | B19: 243000 | C19: 243000 | D19: 0 | E19: 0 | F19: 486000 | G19: 486000 | H19: 0.5 | I19: 0 | J19: 0 | K19: 0 | L19: 1 | M19: 1 | N19: 24000 | O19: 12000 | P19: 12000 | Q19: 24000 | R19: 0 | S19: 0 | T19: 0 | U19: 0 | V19: 0 | W19: 0 | X19: 0 | Y19: 0 | Z19: 255000 | AA19: 255000 | AB19: 510000 | AC19: =IF(FC19=1,AB19-Capital-loan-SUM($E$7:E19)-SUM($Q$7:Q19),"") -> 0 | AD19: 0 | AE19: 0 | AF19: 0 | AG19: 0 | AH19: 0 | AI19: 0 | AJ19: 255000 | AM19: 13 | AN19: 486000 | AO19: 2000 | AP19: 2000 | AQ19: 2000 | AR19: 2000 | AS19: 2000 | AT19: 2000 | AU19: 2000 | AV19: 2000 | AW19: 2000 | AX19: 2000 | AY19: 2000 | AZ19: 2000 | BA19: 24000 | BB19: 100 | BC19: 2000 | BD19: 2000 | BE19: 2000 | BF19: 2000 | BG19: 2000 | BH19: 2000 | BI19: 2000 | BJ19: 2000 | BK19: 2000 | BL19: 2000 | BM19: 2000 | BN19: 2000 | BO19: 24000 | BP19: 1 | BQ19: 0 | BR19: 0 | BS19: 0 | BT19: 0 | BU19: 0 | BV19: 0 | BW19: 0 | BX19: 0 | BY19: 0 | BZ19: 0 | CA19: 0 | CB19: 0 | CC19: 0 | CE19: 244000 | CF19: 245000 | CG19: 246000 | CH19: 247000 | CI19: 248000 | CJ19: 249000 | CK19: 250000 | CL19: 251000 | CM19: 252000 | CN19: 253000 | CO19: 254000 | CP19: 255000 | CQ19: 255000 | CR19: 0 | CS19: 0 | CT19: 0 | CU19: 0 | CV19: 0 | CW19: 0 | CX19: 0 | CY19: 0 | CZ19: 0 | DA19: 0 | DB19: 0 | DC19: 0 | DD19: 0 | DE19: 1000 | DF19: 1000 | DG19: 1000 | DH19: 1000 | DI19: 1000 | DJ19: 1000 | DK19: 1000 | DL19: 1000 | DM19: 1000 | DN19: 1000 | DO19: 1000 | DP19: 1000 | DQ19: 12000 | DR19: 0 | DS19: 0 | DT19: 0 | DU19: 0 | DV19: 0 | DW19: 0 | DX19: 0 | DY19: 0 | DZ19: 0 | EA19: 0 | EB19: 0 | EC19: 0 | ED19: 0 | EE19: 0 | EF19: 0 | EG19: 0 | EH19: 0 | EI19: 0 | EJ19: 0 | EK19: 0 | EL19: 0 | EM19: 0 | EN19: 0 | EO19: 0 | EP19: 0 | FB19: 0 | FC19: 1 | FE19: -1000 | FF19: -1000 | FG19: -1000 | FH19: -1000 | FI19: -1000 | FJ19: -1000 | FK19: -1000 | FL19: -1000 | FM19: -1000 | FN19: -1000 | FO19: -1000 | FP19: -1000 | FS19: 13 | FT19: =FE8 -> -1000 | FW19: 13 | FX19: =FE32 -> -1000 | GA19: 145 | GB19: 146 | GC19: 147 | GD19: 148 | GE19: 149 | GF19: 150 | GG19: 151 | GH19: 152 | GI19: 153 | GJ19: 154 | GK19: 155 | GL19: 156 | GN19: =GA8 -> 13
A20: 14 | B20: 255000 | C20: 255000 | D20: 0 | E20: 0 | F20: 510000 | G20: 510000 | H20: 0.5 | I20: 0 | J20: 0 | K20: 0 | L20: 1 | M20: 1 | N20: 24000 | O20: 12000 | P20: 12000 | Q20: 24000 | R20: 0 | S20: 0 | T20: 0 | U20: 0 | V20: 0 | W20: 0 | X20: 0 | Y20: 0 | Z20: 267000 | AA20: 267000 | AB20: 534000 | AC20: =IF(FC20=1,AB20-Capital-loan-SUM($E$7:E20)-SUM($Q$7:Q20),"") -> 0 | AD20: 0 | AE20: 0 | AF20: 0 | AG20: 0 | AH20: 0 | AI20: 0 | AJ20: 267000 | AM20: 14 | AN20: 510000 | AO20: 2000 | AP20: 2000 | AQ20: 2000 | AR20: 2000 | AS20: 2000 | AT20: 2000 | AU20: 2000 | AV20: 2000 | AW20: 2000 | AX20: 2000 | AY20: 2000 | AZ20: 2000 | BA20: 24000 | BB20: 101 | BC20: 2000 | BD20: 2000 | BE20: 2000 | BF20: 2000 | BG20: 2000 | BH20: 2000 | BI20: 2000 | BJ20: 2000 | BK20: 2000 | BL20: 2000 | BM20: 2000 | BN20: 2000 | BO20: 24000 | BP20: 1 | BQ20: 0 | BR20: 0 | BS20: 0 | BT20: 0 | BU20: 0 | BV20: 0 | BW20: 0 | BX20: 0 | BY20: 0 | BZ20: 0 | CA20: 0 | CB20: 0 | CC20: 0 | CE20: 256000 | CF20: 257000 | CG20: 258000 | CH20: 259000 | CI20: 260000 | CJ20: 261000 | CK20: 262000 | CL20: 263000 | CM20: 264000 | CN20: 265000 | CO20: 266000 | CP20: 267000 | CQ20: 267000 | CR20: 0 | CS20: 0 | CT20: 0 | CU20: 0 | CV20: 0 | CW20: 0 | CX20: 0 | CY20: 0 | CZ20: 0 | DA20: 0 | DB20: 0 | DC20: 0 | DD20: 0 | DE20: 1000 | DF20: 1000 | DG20: 1000 | DH20: 1000 | DI20: 1000 | DJ20: 1000 | DK20: 1000 | DL20: 1000 | DM20: 1000 | DN20: 1000 | DO20: 1000 | DP20: 1000 | DQ20: 12000 | DR20: 0 | DS20: 0 | DT20: 0 | DU20: 0 | DV20: 0 | DW20: 0 | DX20: 0 | DY20: 0 | DZ20: 0 | EA20: 0 | EB20: 0 | EC20: 0 | ED20: 0 | EE20: 0 | EF20: 0 | EG20: 0 | EH20: 0 | EI20: 0 | EJ20: 0 | EK20: 0 | EL20: 0 | EM20: 0 | EN20: 0 | EO20: 0 | EP20: 0 | FB20: 0 | FC20: 1 | FE20: -1000 | FF20: -1000 | FG20: -1000 | FH20: -1000 | FI20: -1000 | FJ20: -1000 | FK20: -1000 | FL20: -1000 | FM20: -1000 | FN20: -1000 | FO20: -1000 | FP20: -1000 | FS20: 14 | FT20: =FF8 -> -1000 | FW20: 14 | FX20: =FF32 -> -1000 | GA20: 157 | GB20: 158 | GC20: 159 | GD20: 160 | GE20: 161 | GF20: 162 | GG20: 163 | GH20: 164 | GI20: 165 | GJ20: 166 | GK20: 167 | GL20: 168 | GN20: =GB8 -> 14
A21: 15 | B21: 267000 | C21: 267000 | D21: 0 | E21: 0 | F21: 534000 | G21: 534000 | H21: 0.5 | I21: 0 | J21: 0 | K21: 0 | L21: 1 | M21: 1 | N21: 24000 | O21: 12000 | P21: 12000 | Q21: 24000 | R21: 0 | S21: 0 | T21: 0 | U21: 0 | V21: 0 | W21: 0 | X21: 0 | Y21: 0 | Z21: 279000 | AA21: 279000 | AB21: 558000 | AC21: =IF(FC21=1,AB21-Capital-loan-SUM($E$7:E21)-SUM($Q$7:Q21),"") -> 0 | AD21: 0 | AE21: 0 | AF21: 0 | AG21: 0 | AH21: 0 | AI21: 0 | AJ21: 279000 | AM21: 15 | AN21: 534000 | AO21: 2000 | AP21: 2000 | AQ21: 2000 | AR21: 2000 | AS21: 2000 | AT21: 2000 | AU21: 2000 | AV21: 2000 | AW21: 2000 | AX21: 2000 | AY21: 2000 | AZ21: 2000 | BA21: 24000 | BB21: 102 | BC21: 2000 | BD21: 2000 | BE21: 2000 | BF21: 2000 | BG21: 2000 | BH21: 2000 | BI21: 2000 | BJ21: 2000 | BK21: 2000 | BL21: 2000 | BM21: 2000 | BN21: 2000 | BO21: 24000 | BP21: 1 | BQ21: 0 | BR21: 0 | BS21: 0 | BT21: 0 | BU21: 0 | BV21: 0 | BW21: 0 | BX21: 0 | BY21: 0 | BZ21: 0 | CA21: 0 | CB21: 0 | CC21: 0 | CE21: 268000 | CF21: 269000 | CG21: 270000 | CH21: 271000 | CI21: 272000 | CJ21: 273000 | CK21: 274000 | CL21: 275000 | CM21: 276000 | CN21: 277000 | CO21: 278000 | CP21: 279000 | CQ21: 279000 | CR21: 0 | CS21: 0 | CT21: 0 | CU21: 0 | CV21: 0 | CW21: 0 | CX21: 0 | CY21: 0 | CZ21: 0 | DA21: 0 | DB21: 0 | DC21: 0 | DD21: 0 | DE21: 1000 | DF21: 1000 | DG21: 1000 | DH21: 1000 | DI21: 1000 | DJ21: 1000 | DK21: 1000 | DL21: 1000 | DM21: 1000 | DN21: 1000 | DO21: 1000 | DP21: 1000 | DQ21: 12000 | DR21: 0 | DS21: 0 | DT21: 0 | DU21: 0 | DV21: 0 | DW21: 0 | DX21: 0 | DY21: 0 | DZ21: 0 | EA21: 0 | EB21: 0 | EC21: 0 | ED21: 0 | EE21: 0 | EF21: 0 | EG21: 0 | EH21: 0 | EI21: 0 | EJ21: 0 | EK21: 0 | EL21: 0 | EM21: 0 | EN21: 0 | EO21: 0 | EP21: 0 | FB21: 0 | FC21: 1 | FE21: -1000 | FF21: -1000 | FG21: -1000 | FH21: -1000 | FI21: -1000 | FJ21: -1000 | FK21: -1000 | FL21: -1000 | FM21: -1000 | FN21: -1000 | FO21: -1000 | FP21: -1000 | FS21: 15 | FT21: =FG8 -> -1000 | FW21: 15 | FX21: =FG32 -> -1000 | GA21: 169 | GB21: 170 | GC21: 171 | GD21: 172 | GE21: 173 | GF21: 174 | GG21: 175 | GH21: 176 | GI21: 177 | GJ21: 178 | GK21: 179 | GL21: 180 | GN21: =GC8 -> 15
A22: 16 | B22: 279000 | C22: 279000 | D22: 0 | E22: 0 | F22: 558000 | G22: 558000 | H22: 0.5 | I22: 0 | J22: 0 | K22: 0 | L22: 1 | M22: 1 | N22: 24000 | O22: 12000 | P22: 12000 | Q22: 24000 | R22: 0 | S22: 0 | T22: 0 | U22: 0 | V22: 0 | W22: 0 | X22: 0 | Y22: 0 | Z22: 291000 | AA22: 291000 | AB22: 582000 | AC22: =IF(FC22=1,AB22-Capital-loan-SUM($E$7:E22)-SUM($Q$7:Q22),"") -> 0 | AD22: 0 | AE22: 0 | AF22: 0 | AG22: 0 | AH22: 0 | AI22: 0 | AJ22: 291000 | AM22: 16 | AN22: 558000 | AO22: 2000 | AP22: 2000 | AQ22: 2000 | AR22: 2000 | AS22: 2000 | AT22: 2000 | AU22: 2000 | AV22: 2000 | AW22: 2000 | AX22: 2000 | AY22: 2000 | AZ22: 2000 | BA22: 24000 | BB22: 103 | BC22: 2000 | BD22: 2000 | BE22: 2000 | BF22: 2000 | BG22: 2000 | BH22: 2000 | BI22: 2000 | BJ22: 2000 | BK22: 2000 | BL22: 2000 | BM22: 2000 | BN22: 2000 | BO22: 24000 | BP22: 1 | BQ22: 0 | BR22: 0 | BS22: 0 | BT22: 0 | BU22: 0 | BV22: 0 | BW22: 0 | BX22: 0 | BY22: 0 | BZ22: 0 | CA22: 0 | CB22: 0 | CC22: 0 | CE22: 280000 | CF22: 281000 | CG22: 282000 | CH22: 283000 | CI22: 284000 | CJ22: 285000 | CK22: 286000 | CL22: 287000 | CM22: 288000 | CN22: 289000 | CO22: 290000 | CP22: 291000 | CQ22: 291000 | CR22: 0 | CS22: 0 | CT22: 0 | CU22: 0 | CV22: 0 | CW22: 0 | CX22: 0 | CY22: 0 | CZ22: 0 | DA22: 0 | DB22: 0 | DC22: 0 | DD22: 0 | DE22: 1000 | DF22: 1000 | DG22: 1000 | DH22: 1000 | DI22: 1000 | DJ22: 1000 | DK22: 1000 | DL22: 1000 | DM22: 1000 | DN22: 1000 | DO22: 1000 | DP22: 1000 | DQ22: 12000 | DR22: 0 | DS22: 0 | DT22: 0 | DU22: 0 | DV22: 0 | DW22: 0 | DX22: 0 | DY22: 0 | DZ22: 0 | EA22: 0 | EB22: 0 | EC22: 0 | ED22: 0 | EE22: 0 | EF22: 0 | EG22: 0 | EH22: 0 | EI22: 0 | EJ22: 0 | EK22: 0 | EL22: 0 | EM22: 0 | EN22: 0 | EO22: 0 | EP22: 0 | FB22: 0 | FC22: 1 | FE22: -1000 | FF22: -1000 | FG22: -1000 | FH22: -1000 | FI22: -1000 | FJ22: -1000 | FK22: -1000 | FL22: -1000 | FM22: -1000 | FN22: -1000 | FO22: -1000 | FP22: -1000 | FS22: 16 | FT22: =FH8 -> -1000 | FW22: 16 | FX22: =FH32 -> -1000 | GA22: 181 | GB22: 182 | GC22: 183 | GD22: 184 | GE22: 185 | GF22: 186 | GG22: 187 | GH22: 188 | GI22: 189 | GJ22: 190 | GK22: 191 | GL22: 192 | GN22: =GD8 -> 16
A23: 17 | B23: 291000 | C23: 291000 | D23: 0 | E23: 0 | F23: 582000 | G23: 582000 | H23: 0.5 | I23: 0 | J23: 0 | K23: 0 | L23: 1 | M23: 1 | N23: 24000 | O23: 12000 | P23: 12000 | Q23: 24000 | R23: 0 | S23: 0 | T23: 0 | U23: 0 | V23: 0 | W23: 0 | X23: 0 | Y23: 0 | Z23: 303000 | AA23: 303000 | AB23: 606000 | AC23: =IF(FC23=1,AB23-Capital-loan-SUM($E$7:E23)-SUM($Q$7:Q23),"") -> 0 | AD23: 0 | AE23: 0 | AF23: 0 | AG23: 0 | AH23: 0 | AI23: 0 | AJ23: 303000 | AM23: 17 | AN23: 582000 | AO23: 2000 | AP23: 2000 | AQ23: 2000 | AR23: 2000 | AS23: 2000 | AT23: 2000 | AU23: 2000 | AV23: 2000 | AW23: 2000 | AX23: 2000 | AY23: 2000 | AZ23: 2000 | BA23: 24000 | BB23: 104 | BC23: 2000 | BD23: 2000 | BE23: 2000 | BF23: 2000 | BG23: 2000 | BH23: 2000 | BI23: 2000 | BJ23: 2000 | BK23: 2000 | BL23: 2000 | BM23: 2000 | BN23: 2000 | BO23: 24000 | BP23: 1 | BQ23: 0 | BR23: 0 | BS23: 0 | BT23: 0 | BU23: 0 | BV23: 0 | BW23: 0 | BX23: 0 | BY23: 0 | BZ23: 0 | CA23: 0 | CB23: 0 | CC23: 0 | CE23: 292000 | CF23: 293000 | CG23: 294000 | CH23: 295000 | CI23: 296000 | CJ23: 297000 | CK23: 298000 | CL23: 299000 | CM23: 300000 | CN23: 301000 | CO23: 302000 | CP23: 303000 | CQ23: 303000 | CR23: 0 | CS23: 0 | CT23: 0 | CU23: 0 | CV23: 0 | CW23: 0 | CX23: 0 | CY23: 0 | CZ23: 0 | DA23: 0 | DB23: 0 | DC23: 0 | DD23: 0 | DE23: 1000 | DF23: 1000 | DG23: 1000 | DH23: 1000 | DI23: 1000 | DJ23: 1000 | DK23: 1000 | DL23: 1000 | DM23: 1000 | DN23: 1000 | DO23: 1000 | DP23: 1000 | DQ23: 12000 | DR23: 0 | DS23: 0 | DT23: 0 | DU23: 0 | DV23: 0 | DW23: 0 | DX23: 0 | DY23: 0 | DZ23: 0 | EA23: 0 | EB23: 0 | EC23: 0 | ED23: 0 | EE23: 0 | EF23: 0 | EG23: 0 | EH23: 0 | EI23: 0 | EJ23: 0 | EK23: 0 | EL23: 0 | EM23: 0 | EN23: 0 | EO23: 0 | EP23: 0 | FB23: 0 | FC23: 1 | FE23: -1000 | FF23: -1000 | FG23: -1000 | FH23: -1000 | FI23: -1000 | FJ23: -1000 | FK23: -1000 | FL23: -1000 | FM23: -1000 | FN23: -1000 | FO23: -1000 | FP23: -1000 | FS23: 17 | FT23: =FI8 -> -1000 | FW23: 17 | FX23: =FI32 -> -1000 | GA23: 193 | GB23: 194 | GC23: 195 | GD23: 196 | GE23: 197 | GF23: 198 | GG23: 199 | GH23: 200 | GI23: 201 | GJ23: 202 | GK23: 203 | GL23: 204 | GN23: =GE8 -> 17
A24: 18 | B24: 303000 | C24: 303000 | D24: 0 | E24: 0 | F24: 606000 | G24: 606000 | H24: 0.5 | I24: 0 | J24: 0 | K24: 0 | L24: 1 | M24: 1 | N24: 24000 | O24: 12000 | P24: 12000 | Q24: 24000 | R24: 0 | S24: 0 | T24: 0 | U24: 0 | V24: 0 | W24: 0 | X24: 0 | Y24: 0 | Z24: 315000 | AA24: 315000 | AB24: 630000 | AC24: =IF(FC24=1,AB24-Capital-loan-SUM($E$7:E24)-SUM($Q$7:Q24),"") -> 0 | AD24: 0 | AE24: 0 | AF24: 0 | AG24: 0 | AH24: 0 | AI24: 0 | AJ24: 315000 | AM24: 18 | AN24: 606000 | AO24: 2000 | AP24: 2000 | AQ24: 2000 | AR24: 2000 | AS24: 2000 | AT24: 2000 | AU24: 2000 | AV24: 2000 | AW24: 2000 | AX24: 2000 | AY24: 2000 | AZ24: 2000 | BA24: 24000 | BB24: 105 | BC24: 2000 | BD24: 2000 | BE24: 2000 | BF24: 2000 | BG24: 2000 | BH24: 2000 | BI24: 2000 | BJ24: 2000 | BK24: 2000 | BL24: 2000 | BM24: 2000 | BN24: 2000 | BO24: 24000 | BP24: 1 | BQ24: 0 | BR24: 0 | BS24: 0 | BT24: 0 | BU24: 0 | BV24: 0 | BW24: 0 | BX24: 0 | BY24: 0 | BZ24: 0 | CA24: 0 | CB24: 0 | CC24: 0 | CE24: 304000 | CF24: 305000 | CG24: 306000 | CH24: 307000 | CI24: 308000 | CJ24: 309000 | CK24: 310000 | CL24: 311000 | CM24: 312000 | CN24: 313000 | CO24: 314000 | CP24: 315000 | CQ24: 315000 | CR24: 0 | CS24: 0 | CT24: 0 | CU24: 0 | CV24: 0 | CW24: 0 | CX24: 0 | CY24: 0 | CZ24: 0 | DA24: 0 | DB24: 0 | DC24: 0 | DD24: 0 | DE24: 1000 | DF24: 1000 | DG24: 1000 | DH24: 1000 | DI24: 1000 | DJ24: 1000 | DK24: 1000 | DL24: 1000 | DM24: 1000 | DN24: 1000 | DO24: 1000 | DP24: 1000 | DQ24: 12000 | DR24: 0 | DS24: 0 | DT24: 0 | DU24: 0 | DV24: 0 | DW24: 0 | DX24: 0 | DY24: 0 | DZ24: 0 | EA24: 0 | EB24: 0 | EC24: 0 | ED24: 0 | EE24: 0 | EF24: 0 | EG24: 0 | EH24: 0 | EI24: 0 | EJ24: 0 | EK24: 0 | EL24: 0 | EM24: 0 | EN24: 0 | EO24: 0 | EP24: 0 | FB24: 0 | FC24: 1 | FE24: -1000 | FF24: -1000 | FG24: -1000 | FH24: -1000 | FI24: -1000 | FJ24: -1000 | FK24: -1000 | FL24: -1000 | FM24: -1000 | FN24: -1000 | FO24: -1000 | FP24: -1000 | FS24: 18 | FT24: =FJ8 -> -1000 | FW24: 18 | FX24: =FJ32 -> -1000 | GA24: 205 | GB24: 206 | GC24: 207 | GD24: 208 | GE24: 209 | GF24: 210 | GG24: 211 | GH24: 212 | GI24: 213 | GJ24: 214 | GK24: 215 | GL24: 216 | GN24: =GF8 -> 18
A25: 19 | B25: 315000 | C25: 315000 | D25: 0 | E25: 0 | F25: 630000 | G25: 630000 | H25: 0.5 | I25: 0 | J25: 0 | K25: 0 | L25: 1 | M25: 1 | N25: 24000 | O25: 12000 | P25: 12000 | Q25: 24000 | R25: 0 | S25: 0 | T25: 0 | U25: 0 | V25: 0 | W25: 0 | X25: 0 | Y25: 0 | Z25: 327000 | AA25: 327000 | AB25: 654000 | AC25: =IF(FC25=1,AB25-Capital-loan-SUM($E$7:E25)-SUM($Q$7:Q25),"") -> 0 | AD25: 0 | AE25: 0 | AF25: 0 | AG25: 0 | AH25: 0 | AI25: 0 | AJ25: 327000 | AM25: 19 | AN25: 630000 | AO25: 2000 | AP25: 2000 | AQ25: 2000 | AR25: 2000 | AS25: 2000 | AT25: 2000 | AU25: 2000 | AV25: 2000 | AW25: 2000 | AX25: 2000 | AY25: 2000 | AZ25: 2000 | BA25: 24000 | BB25: 106 | BC25: 2000 | BD25: 2000 | BE25: 2000 | BF25: 2000 | BG25: 2000 | BH25: 2000 | BI25: 2000 | BJ25: 2000 | BK25: 2000 | BL25: 2000 | BM25: 2000 | BN25: 2000 | BO25: 24000 | BP25: 1 | BQ25: 0 | BR25: 0 | BS25: 0 | BT25: 0 | BU25: 0 | BV25: 0 | BW25: 0 | BX25: 0 | BY25: 0 | BZ25: 0 | CA25: 0 | CB25: 0 | CC25: 0 | CE25: 316000 | CF25: 317000 | CG25: 318000 | CH25: 319000 | CI25: 320000 | CJ25: 321000 | CK25: 322000 | CL25: 323000 | CM25: 324000 | CN25: 325000 | CO25: 326000 | CP25: 327000 | CQ25: 327000 | CR25: 0 | CS25: 0 | CT25: 0 | CU25: 0 | CV25: 0 | CW25: 0 | CX25: 0 | CY25: 0 | CZ25: 0 | DA25: 0 | DB25: 0 | DC25: 0 | DD25: 0 | DE25: 1000 | DF25: 1000 | DG25: 1000 | DH25: 1000 | DI25: 1000 | DJ25: 1000 | DK25: 1000 | DL25: 1000 | DM25: 1000 | DN25: 1000 | DO25: 1000 | DP25: 1000 | DQ25: 12000 | DR25: 0 | DS25: 0 | DT25: 0 | DU25: 0 | DV25: 0 | DW25: 0 | DX25: 0 | DY25: 0 | DZ25: 0 | EA25: 0 | EB25: 0 | EC25: 0 | ED25: 0 | EE25: 0 | EF25: 0 | EG25: 0 | EH25: 0 | EI25: 0 | EJ25: 0 | EK25: 0 | EL25: 0 | EM25: 0 | EN25: 0 | EO25: 0 | EP25: 0 | FB25: 0 | FC25: 1 | FE25: -1000 | FF25: -1000 | FG25: -1000 | FH25: -1000 | FI25: -1000 | FJ25: -1000 | FK25: -1000 | FL25: -1000 | FM25: -1000 | FN25: -1000 | FO25: -1000 | FP25: -1000 | FS25: 19 | FT25: =FK8 -> -1000 | FW25: 19 | FX25: =FK32 -> -1000 | GA25: 217 | GB25: 218 | GC25: 219 | GD25: 220 | GE25: 221 | GF25: 222 | GG25: 223 | GH25: 224 | GI25: 225 | GJ25: 226 | GK25: 227 | GL25: 228 | GN25: =GG8 -> 19
A26: 20 | B26: 327000 | C26: 327000 | D26: 0 | E26: 0 | F26: 654000 | G26: 654000 | H26: 0.5 | I26: 0 | J26: 0 | K26: 0 | L26: 1 | M26: 1 | N26: 24000 | O26: 12000 | P26: 12000 | Q26: 24000 | R26: 0 | S26: 0 | T26: 0 | U26: 0 | V26: 0 | W26: 0 | X26: 0 | Y26: 0 | Z26: 339000 | AA26: 339000 | AB26: 678000 | AC26: =IF(FC26=1,AB26-Capital-loan-SUM($E$7:E26)-SUM($Q$7:Q26),"") -> 0 | AD26: 0 | AE26: 0 | AF26: 0 | AG26: 0 | AH26: 0 | AI26: 0 | AJ26: 339000 | AM26: 20 | AN26: 654000 | AO26: 2000 | AP26: 2000 | AQ26: 2000 | AR26: 2000 | AS26: 2000 | AT26: 2000 | AU26: 2000 | AV26: 2000 | AW26: 2000 | AX26: 2000 | AY26: 2000 | AZ26: 2000 | BA26: 24000 | BB26: 107 | BC26: 2000 | BD26: 2000 | BE26: 2000 | BF26: 2000 | BG26: 2000 | BH26: 2000 | BI26: 2000 | BJ26: 2000 | BK26: 2000 | BL26: 2000 | BM26: 2000 | BN26: 2000 | BO26: 24000 | BP26: 1 | BQ26: 0 | BR26: 0 | BS26: 0 | BT26: 0 | BU26: 0 | BV26: 0 | BW26: 0 | BX26: 0 | BY26: 0 | BZ26: 0 | CA26: 0 | CB26: 0 | CC26: 0 | CE26: 328000 | CF26: 329000 | CG26: 330000 | CH26: 331000 | CI26: 332000 | CJ26: 333000 | CK26: 334000 | CL26: 335000 | CM26: 336000 | CN26: 337000 | CO26: 338000 | CP26: 339000 | CQ26: 339000 | CR26: 0 | CS26: 0 | CT26: 0 | CU26: 0 | CV26: 0 | CW26: 0 | CX26: 0 | CY26: 0 | CZ26: 0 | DA26: 0 | DB26: 0 | DC26: 0 | DD26: 0 | DE26: 1000 | DF26: 1000 | DG26: 1000 | DH26: 1000 | DI26: 1000 | DJ26: 1000 | DK26: 1000 | DL26: 1000 | DM26: 1000 | DN26: 1000 | DO26: 1000 | DP26: 1000 | DQ26: 12000 | DR26: 0 | DS26: 0 | DT26: 0 | DU26: 0 | DV26: 0 | DW26: 0 | DX26: 0 | DY26: 0 | DZ26: 0 | EA26: 0 | EB26: 0 | EC26: 0 | ED26: 0 | EE26: 0 | EF26: 0 | EG26: 0 | EH26: 0 | EI26: 0 | EJ26: 0 | EK26: 0 | EL26: 0 | EM26: 0 | EN26: 0 | EO26: 0 | EP26: 0 | FB26: 339000 | FC26: 1 | FE26: -1000 | FF26: -1000 | FG26: -1000 | FH26: -1000 | FI26: -1000 | FJ26: -1000 | FK26: -1000 | FL26: -1000 | FM26: -1000 | FN26: -1000 | FO26: -1000 | FP26: 339000 | FS26: 20 | FT26: =FL8 -> -1000 | FW26: 20 | FX26: =FL32 -> -1000 | GA26: 229 | GB26: 230 | GC26: 231 | GD26: 232 | GE26: 233 | GF26: 234 | GG26: 235 | GH26: 236 | GI26: 237 | GJ26: 238 | GK26: 239 | GL26: 240 | GN26: =GH8 -> 20
FC27: 0 | FS27: 21 | FT27: =FM8 -> -1000 | FW27: 21 | FX27: =FM32 -> -1000 | GN27: =GI8 -> 21
D28: =SUM(D7:D26) -> 0 | E28: =SUM(E7:E26) -> 0 | I28: 0 | J28: 0 | K28: 0 | N28: 478000 | O28: 239000 | P28: 239000 | Q28: 478000 | W28: 0 | FS28: 22 | FT28: =FN8 -> -1000 | FW28: 22 | FX28: =FN32 -> -1000 | GN28: =GJ8 -> 22
A29: Ungeared | AN29: Value | AO29: Cashflows invested during month (new capital amounts) | BC29: Units purchased | BQ29: Income received on investment made during year | ED29: Total Investment income by month | EX29: End of term: Proceeds, CGT & income tax | FE29: Cashflows for Internal rate of return calculation | FS29: 23 | FT29: =FO8 -> -1000 | FW29: 23 | FX29: =FO32 -> -1000 | GN29: =GK8 -> 23
A30: Year | B30: Capital start of year | E30: Reinvestment | F30: Total Investment Value Start of year | G30: No. of units start of year | I30: Entry fees | J30: Income Received | K30: Franking Credits | L30: Unit Price start of year | M30: Unit Price end of year | N30: Units purchased over year | O30: Own Equity contributed during year | Q30: Total Invested over year | R30: Other Taxable Income | S30: Total Assessable Income | T30: MTR | U30: Tax + Medicare Levy on total assessable income | V30: Tax + Medicare Levy on Other Income | W30: Tax + ML payable on investment, net of franking credits | X30: Net cashflow from investment | Y30: Funds available for Reinvestment | Z30: Capital at end of year | AB30: Sale of units | AC30: Capital Gain net of costs | AD30: Gain on shares held for less than 12 months | AE30: Assessable Capital Gain | AF30: Total Taxable Income | AG30: Tax + ML | AH30: Tax + ML on investment | AI30: Profit from investment | AJ30: Net realised portfolio value end of year after loan repaid | AN30: 0 | AO30: 1 | AP30: 2 | AQ30: 3 | AR30: 4 | AS30: 5 | AT30: 6 | AU30: 7 | AV30: 8 | AW30: 9 | AX30: 10 | AY30: 11 | AZ30: 12 | BA30: Total Cash invested | BC30: 1 | BD30: 2 | BE30: 3 | BF30: 4 | BG30: 5 | BH30: 6 | BI30: 7 | BJ30: 8 | BK30: 9 | BL30: 10 | BM30: 11 | BN30: 12 | BO30: Total | BP30: Check Average Price paid for units | BQ30: 1 | BR30: 2 | BS30: 3 | BT30: 4 | BU30: 5 | BV30: 6 | BW30: 7 | BX30: 8 | BY30: 9 | BZ30: 10 | CA30: 11 | CB30: 12 | CC30: Total | CD30: Check average yield | ED30: 1 | EE30: 2 | EF30: 3 | EG30: 4 | EH30: 5 | EI30: 6 | EJ30: 7 | EK30: 8 | EL30: 9 | EM30: 10 | EN30: 11 | EO30: 12 | EP30: Total | EQ30: 1 | ER30: 2 | ES30: 3 | ET30: 4 | EU30: 5 | EV30: 6 | EW30: 7 | EX30: 8 | EY30: 9 | EZ30: 10 | FA30: 11 | FB30: 12 | FC30: Year included in projection | FE30: 1 | FF30: 2 | FG30: 3 | FH30: 4 | FI30: 5 | FJ30: 6 | FK30: 7 | FL30: 8 | FM30: 9 | FN30: 10 | FO30: 11 | FP30: 12 | FS30: 24 | FT30: =FP8 -> -1000 | FW30: 24 | FX30: =FP32 -> -1000 | GN30: =GL8 -> 24
A31: 1 | B31: =Capital -> 100000 | F31: =(B31+C31)*(1-entry_exit_fee) -> 100000 | G31: =F31/L31 -> 100000 | I31: =(B31+C31+Q31)*entry_exit_fee -> 0 | J31: =F31*INDEX(DividendIncome,$A31)+$CC31 -> 0 | K31: =J31*FrankingLevel*Co_tax_rate/(1-Co_tax_rate) -> 0 | L31: =1 -> 1 | M31: =L31*(1+INDEX(CapitalGain,$A31)) -> 1 | N31: =BO31 -> 11000 | O31: =Q31 -> 11000 | Q31: =BA31 -> 11000 | R31: =INDEX(OTI,$A31) -> 0 | S31: =-D31+J31+K31+R31 -> 0 | T31: =IF(S31>0,MTR_08(S31),0) -> 0 | U31: =MAX(Tax_Y1(S31),0)+medicare(S31) -> 0 | V31: =Tax_Y1(R31)+medicare(R31) -> 0 | W31: =U31-V31-K31 -> 0 | X31: =-D31+J31-W31 -> 0 | Y31: =J31-W31 -> 0 | Z31: =B31+SUM(AO31:AZ31) -> 111000 | AB31: =(G31+N31)*M31 -> 111000 | AC31: =AB31-Capital-SUM($E$31:E31)-SUM($Q$31:Q31) -> 0 | AD31: =N31*M31-Q31 -> 0 | AE31: =AD31+1/2*(AC31-AD31) -> 0 | AF31: =S31+AE31 -> 0 | AG31: =MAX(Tax_Y1(AF31),0)+medicare(AF31) -> 0 | AH31: =AG31-V31-K31 -> 0 | AI31: =-D31+J31-AH31+AC31 -> 0 | AJ31: =J31+AB31-AH31-AA31 -> 111000 | AM31: 1 | AN31: =G31 -> 100000 | AO31: =DE7 -> 0 | AP31: =DF7 -> 1000 | AQ31: =DG7 -> 1000 | AR31: =DH7 -> 1000 | AS31: =DI7 -> 1000 | AT31: =DJ7 -> 1000 | AU31: =DK7 -> 1000 | AV31: =DL7 -> 1000 | AW31: =DM7 -> 1000 | AX31: =DN7 -> 1000 | AY31: =DO7 -> 1000 | AZ31: =DP7 -> 1000 | BA31: =SUM(AO31:AZ31) -> 11000 | BB31: 0 | BC31: =IF($FC31=1,AO31/(IF(Smooth_Fluctuate=1,$L31*(1+INDEX(CapitalGain,$A31))^((BC$6-1)/12),INDEX(hist_index,Start_Ref+$BA31+BC$6-1,2)/INDEX(hist_index,Start_Ref,2))),"")*(1-entry_exit_fee) -> 0 | BD31: 1000 | BE31: 1000 | BF31: 1000 | BG31: 1000 | BH31: 1000 | BI31: 1000 | BJ31: 1000 | BK31: 1000 | BL31: 1000 | BM31: 1000 | BN31: 1000 | BO31: =SUM(BC31:BN31) -> 11000 | BP31: =IF(BO31<>0,BA31/BO31,"") -> 1 | BQ31: =IF($FC31=1,(1-entry_exit_fee)*AO31*IF(Smooth_Fluctuate=1,((1+INDEX(DividendIncome,$A31))^((12-BQ$6+1)/12)-1),INDEX(hist_index,Start_Ref+$BA31+12,3)/INDEX(hist_index,Start_Ref+$BA31+BQ$6-1,3)-INDEX(hist_index,Start_Ref+$BA31+12,2)/INDEX(hist_index,Start_Ref+$BA31+BQ$6-1,2)),"") -> 0 | BR31: =IF($FC31=1,(1-entry_exit_fee)*AP31*IF(Smooth_Fluctuate=1,((1+INDEX(DividendIncome,$A31))^((12-BR$6+1)/12)-1),INDEX(hist_index,Start_Ref+$BA31+12,3)/INDEX(hist_index,Start_Ref+$BA31+BR$6-1,3)-INDEX(hist_index,Start_Ref+$BA31+12,2)/INDEX(hist_index,Start_Ref+$BA31+BR$6-1,2)),"") -> 0 | BS31: =IF($FC31=1,(1-entry_exit_fee)*AQ31*IF(Smooth_Fluctuate=1,((1+INDEX(DividendIncome,$A31))^((12-BS$6+1)/12)-1),INDEX(hist_index,Start_Ref+$BA31+12,3)/INDEX(hist_index,Start_Ref+$BA31+BS$6-1,3)-INDEX(hist_index,Start_Ref+$BA31+12,2)/INDEX(hist_index,Start_Ref+$BA31+BS$6-1,2)),"") -> 0 | BT31: =IF($FC31=1,(1-entry_exit_fee)*AR31*IF(Smooth_Fluctuate=1,((1+INDEX(DividendIncome,$A31))^((12-BT$6+1)/12)-1),INDEX(hist_index,Start_Ref+$BA31+12,3)/INDEX(hist_index,Start_Ref+$BA31+BT$6-1,3)-INDEX(hist_index,Start_Ref+$BA31+12,2)/INDEX(hist_index,Start_Ref+$BA31+BT$6-1,2)),"") -> 0 | BU31: =IF($FC31=1,(1-entry_exit_fee)*AS31*IF(Smooth_Fluctuate=1,((1+INDEX(DividendIncome,$A31))^((12-BU$6+1)/12)-1),INDEX(hist_index,Start_Ref+$BA31+12,3)/INDEX(hist_index,Start_Ref+$BA31+BU$6-1,3)-INDEX(hist_index,Start_Ref+$BA31+12,2)/INDEX(hist_index,Start_Ref+$BA31+BU$6-1,2)),"") -> 0 | BV31: =IF($FC31=1,(1-entry_exit_fee)*AT31*IF(Smooth_Fluctuate=1,((1+INDEX(DividendIncome,$A31))^((12-BV$6+1)/12)-1),INDEX(hist_index,Start_Ref+$BA31+12,3)/INDEX(hist_index,Start_Ref+$BA31+BV$6-1,3)-INDEX(hist_index,Start_Ref+$BA31+12,2)/INDEX(hist_index,Start_Ref+$BA31+BV$6-1,2)),"") -> 0 | BW31: =IF($FC31=1,(1-entry_exit_fee)*AU31*IF(Smooth_Fluctuate=1,((1+INDEX(DividendIncome,$A31))^((12-BW$6+1)/12)-1),INDEX(hist_index,Start_Ref+$BA31+12,3)/INDEX(hist_index,Start_Ref+$BA31+BW$6-1,3)-INDEX(hist_index,Start_Ref+$BA31+12,2)/INDEX(hist_index,Start_Ref+$BA31+BW$6-1,2)),"") -> 0 | BX31: =IF($FC31=1,(1-entry_exit_fee)*AV31*IF(Smooth_Fluctuate=1,((1+INDEX(DividendIncome,$A31))^((12-BX$6+1)/12)-1),INDEX(hist_index,Start_Ref+$BA31+12,3)/INDEX(hist_index,Start_Ref+$BA31+BX$6-1,3)-INDEX(hist_index,Start_Ref+$BA31+12,2)/INDEX(hist_index,Start_Ref+$BA31+BX$6-1,2)),"") -> 0 | BY31: =IF($FC31=1,(1-entry_exit_fee)*AW31*IF(Smooth_Fluctuate=1,((1+INDEX(DividendIncome,$A31))^((12-BY$6+1)/12)-1),INDEX(hist_index,Start_Ref+$BA31+12,3)/INDEX(hist_index,Start_Ref+$BA31+BY$6-1,3)-INDEX(hist_index,Start_Ref+$BA31+12,2)/INDEX(hist_index,Start_Ref+$BA31+BY$6-1,2)),"") -> 0 | BZ31: =IF($FC31=1,(1-entry_exit_fee)*AX31*IF(Smooth_Fluctuate=1,((1+INDEX(DividendIncome,$A31))^((12-BZ$6+1)/12)-1),INDEX(hist_index,Start_Ref+$BA31+12,3)/INDEX(hist_index,Start_Ref+$BA31+BZ$6-1,3)-INDEX(hist_index,Start_Ref+$BA31+12,2)/INDEX(hist_index,Start_Ref+$BA31+BZ$6-1,2)),"") -> 0 | CA31: =IF($FC31=1,(1-entry_exit_fee)*AY31*IF(Smooth_Fluctuate=1,((1+INDEX(DividendIncome,$A31))^((12-CA$6+1)/12)-1),INDEX(hist_index,Start_Ref+$BA31+12,3)/INDEX(hist_index,Start_Ref+$BA31+CA$6-1,3)-INDEX(hist_index,Start_Ref+$BA31+12,2)/INDEX(hist_index,Start_Ref+$BA31+CA$6-1,2)),"") -> 0 | CB31: =IF($FC31=1,(1-entry_exit_fee)*AZ31*IF(Smooth_Fluctuate=1,((1+INDEX(DividendIncome,$A31))^((12-CB$6+1)/12)-1),INDEX(hist_index,Start_Ref+$BA31+12,3)/INDEX(hist_index,Start_Ref+$BA31+CB$6-1,3)-INDEX(hist_index,Start_Ref+$BA31+12,2)/INDEX(hist_index,Start_Ref+$BA31+CB$6-1,2)),"") -> 0 | CC31: =SUM(BQ31:CB31) -> 0 | CD31: =IF(CC31<>0,$CC31/$BA31*2,"") ->  | ED31: =IF($FC31,BQ31+$F31*INDEX(DividendIncome,$A31)/12,0) -> 0 | EE31: =IF($FC31,BR31+$F31*INDEX(DividendIncome,$A31)/12,0) -> 0 | EF31: =IF($FC31,BS31+$F31*INDEX(DividendIncome,$A31)/12,0) -> 0 | EG31: =IF($FC31,BT31+$F31*INDEX(DividendIncome,$A31)/12,0) -> 0 | EH31: =IF($FC31,BU31+$F31*INDEX(DividendIncome,$A31)/12,0) -> 0 | EI31: =IF($FC31,BV31+$F31*INDEX(DividendIncome,$A31)/12,0) -> 0 | EJ31: =IF($FC31,BW31+$F31*INDEX(DividendIncome,$A31)/12,0) -> 0 | EK31: =IF($FC31,BX31+$F31*INDEX(DividendIncome,$A31)/12,0) -> 0 | EL31: =IF($FC31,BY31+$F31*INDEX(DividendIncome,$A31)/12,0) -> 0 | EM31: =IF($FC31,BZ31+$F31*INDEX(DividendIncome,$A31)/12,0) -> 0 | EN31: =IF($FC31,CA31+$F31*INDEX(DividendIncome,$A31)/12,0) -> 0 | EO31: =IF($FC31,CB31+$F31*INDEX(DividendIncome,$A31)/12,0) -> 0 | EP31: =IF(FC31,SUM(ED31:EO31),0) -> 0 | FB31: =IF(A31=time_horizon,AB31-AA31-AH31,0)+IF(FC32=1,-W31-E32)+EP31 -> 0 | FC31: =IF(A31>time_horizon,0,1) -> 1 | FE31: =-AP31 -> -1000 | FF31: =-AQ31 -> -1000 | FG31: =-AR31 -> -1000 | FH31: =-AS31 -> -1000 | FI31: =-AT31 -> -1000 | FJ31: =-AU31 -> -1000 | FK31: =-AV31 -> -1000 | FL31: =-AW31 -> -1000 | FM31: =-AX31 -> -1000 | FN31: =-AY31 -> -1000 | FO31: =-AZ31 -> -1000 | FP31: =IF(FC31=1,-AO32,0)+FB31 -> -1000 | FS31: 25 | FT31: =FE9 -> -1000 | FW31: 25 | FX31: =FE33 -> -1000 | GN31: =GA9 -> 25
A32: 2 | B32: =IF($FC32=1,Z31,"") -> 111000 | E32: =IF($FC32=1,IF(Reinvest=1,Y31,0),"") -> 0 | F32: =IF($FC32=1,G32*L32,"") -> 111000 | G32: =IF($FC32=1,G31+E32/L32*(1-entry_exit_fee)+N31,"") -> 111000 | I32: =IF(FC32=1,(E32+Q32)*entry_exit_fee,"") -> 0 | J32: =IF($FC32=1,F32*INDEX(DividendIncome,$A32)+$CC32,"") -> 0 | K32: =IF($FC32=1,J32*FrankingLevel*Co_tax_rate/(1-Co_tax_rate),"") -> 0 | L32: =IF($FC32=1,M31,"") -> 1 | M32: =IF($FC32=1,L32*(1+INDEX(CapitalGain,$A32)),"") -> 1 | N32: =IF(FC32=1,BO32,"") -> 12000 | O32: =Q32 -> 12000 | Q32: =IF(FC32=1,BA32,"") -> 12000 | R32: =IF(FC32=1,INDEX(OTI,$A32),"") -> 0 | S32: =IF(FC32=1,-D32+J32+K32+R32,"") -> 0 | T32: =IF(FC32=1,IF(S32>0,MTR_09(S32),0),"") -> 0 | U32: =IF(FC32=1,MAX(Tax_Y2(S32),0)+medicare(S32),"") -> 0 | V32: =IF(FC32=1,Tax_Y2(R32)+medicare(R32),"") -> 0 | W32: =IF(FC32=1,U32-V32-K32,"") -> 0 | X32: =IF(FC32=1,-D32+J32-W32,"") -> 0 | Y32: =IF(FC32=1,J32-W32,"") -> 0 | Z32: =IF(FC32=1,Z31+SUM(AO32:AZ32),"") -> 123000 | AB32: =IF(FC32=1,(G32+N32)*M32,"") -> 123000 | AC32: =IF(FC32=1,AB32-Capital-SUM($E$31:E32)-SUM($Q$31:Q32),"") -> 0 | AD32: =IF(FC32=1,N32*M32-Q32,"") -> 0 | AE32: =IF(FC32=1,AD32+1/2*(AC32-AD32),"") -> 0 | AF32: =IF(FC32=1,S32+AE32,"") -> 0 | AG32: =IF(FC32=1,MAX(Tax_Y2(AF32),0)+medicare(AF32),"") -> 0 | AH32: =IF(FC32=1,AG32-V32-K32,"") -> 0 | AI32: =IF(FC32=1,-D32+J32-AH32+AC32,"") -> 0 | AJ32: =IF(FC32=1,J32+AB32-AH32-AA32,"") -> 123000 | AM32: 2 | AN32: 111000 | AO32: =DE8 -> 1000 | AP32: 1000 | AQ32: 1000 | AR32: 1000 | AS32: 1000 | AT32: 1000 | AU32: 1000 | AV32: 1000 | AW32: 1000 | AX32: 1000 | AY32: 1000 | AZ32: 1000 | BA32: =SUM(AO32:AZ32) -> 12000 | BB32: 12 | BC32: =IF($FC32=1,(1-entry_exit_fee)*AO32/(IF(Smooth_Fluctuate=1,$L32*(1+INDEX(CapitalGain,$A32))^((BC$6-1)/12),INDEX(hist_index,Start_Ref+$BA32+BC$6-1,2)/INDEX(hist_index,Start_Ref,2))),"") -> 1000 | BD32: =IF($FC32=1,(1-entry_exit_fee)*AP32/(IF(Smooth_Fluctuate=1,$L32*(1+INDEX(CapitalGain,$A32))^((BD$6-1)/12),INDEX(hist_index,Start_Ref+$BA32+BD$6-1,2)/INDEX(hist_index,Start_Ref,2))),"") -> 1000 | BE32: =IF($FC32=1,(1-entry_exit_fee)*AQ32/(IF(Smooth_Fluctuate=1,$L32*(1+INDEX(CapitalGain,$A32))^((BE$6-1)/12),INDEX(hist_index,Start_Ref+$BA32+BE$6-1,2)/INDEX(hist_index,Start_Ref,2))),"") -> 1000 | BF32: =IF($FC32=1,(1-entry_exit_fee)*AR32/(IF(Smooth_Fluctuate=1,$L32*(1+INDEX(CapitalGain,$A32))^((BF$6-1)/12),INDEX(hist_index,Start_Ref+$BA32+BF$6-1,2)/INDEX(hist_index,Start_Ref,2))),"") -> 1000 | BG32: =IF($FC32=1,(1-entry_exit_fee)*AS32/(IF(Smooth_Fluctuate=1,$L32*(1+INDEX(CapitalGain,$A32))^((BG$6-1)/12),INDEX(hist_index,Start_Ref+$BA32+BG$6-1,2)/INDEX(hist_index,Start_Ref,2))),"") -> 1000 | BH32: =IF($FC32=1,(1-entry_exit_fee)*AT32/(IF(Smooth_Fluctuate=1,$L32*(1+INDEX(CapitalGain,$A32))^((BH$6-1)/12),INDEX(hist_index,Start_Ref+$BA32+BH$6-1,2)/INDEX(hist_index,Start_Ref,2))),"") -> 1000 | BI32: =IF($FC32=1,(1-entry_exit_fee)*AU32/(IF(Smooth_Fluctuate=1,$L32*(1+INDEX(CapitalGain,$A32))^((BI$6-1)/12),INDEX(hist_index,Start_Ref+$BA32+BI$6-1,2)/INDEX(hist_index,Start_Ref,2))),"") -> 1000 | BJ32: =IF($FC32=1,(1-entry_exit_fee)*AV32/(IF(Smooth_Fluctuate=1,$L32*(1+INDEX(CapitalGain,$A32))^((BJ$6-1)/12),INDEX(hist_index,Start_Ref+$BA32+BJ$6-1,2)/INDEX(hist_index,Start_Ref,2))),"") -> 1000 | BK32: =IF($FC32=1,(1-entry_exit_fee)*AW32/(IF(Smooth_Fluctuate=1,$L32*(1+INDEX(CapitalGain,$A32))^((BK$6-1)/12),INDEX(hist_index,Start_Ref+$BA32+BK$6-1,2)/INDEX(hist_index,Start_Ref,2))),"") -> 1000 | BL32: =IF($FC32=1,(1-entry_exit_fee)*AX32/(IF(Smooth_Fluctuate=1,$L32*(1+INDEX(CapitalGain,$A32))^((BL$6-1)/12),INDEX(hist_index,Start_Ref+$BA32+BL$6-1,2)/INDEX(hist_index,Start_Ref,2))),"") -> 1000 | BM32: =IF($FC32=1,(1-entry_exit_fee)*AY32/(IF(Smooth_Fluctuate=1,$L32*(1+INDEX(CapitalGain,$A32))^((BM$6-1)/12),INDEX(hist_index,Start_Ref+$BA32+BM$6-1,2)/INDEX(hist_index,Start_Ref,2))),"") -> 1000 | BN32: =IF($FC32=1,(1-entry_exit_fee)*AZ32/(IF(Smooth_Fluctuate=1,$L32*(1+INDEX(CapitalGain,$A32))^((BN$6-1)/12),INDEX(hist_index,Start_Ref+$BA32+BN$6-1,2)/INDEX(hist_index,Start_Ref,2))),"") -> 1000 | BO32: =SUM(BC32:BN32) -> 12000 | BP32: =IF(BO32<>0,BA32/BO32,"") -> 1 | BQ32: 0 | BR32: 0 | BS32: 0 | BT32: 0 | BU32: 0 | BV32: 0 | BW32: 0 | BX32: 0 | BY32: 0 | BZ32: 0 | CA32: 0 | CB32: 0 | CC32: =SUM(BQ32:CB32) -> 0 | CD32: =IF(CC32<>0,$CC32/$BA32*2,"") ->  | ED32: =IF($FC32,BQ32+$F32*INDEX(DividendIncome,$A32)/12,0) -> 0 | EE32: 0 | EF32: 0 | EG32: 0 | EH32: 0 | EI32: 0 | EJ32: 0 | EK32: 0 | EL32: 0 | EM32: 0 | EN32: 0 | EO32: 0 | EP32: 0 | FB32: =IF(A32=time_horizon,AB32-AA32-AH32,0)+IF(FC33=1,-W32-E33)+EP32 -> 0 | FC32: =IF(A32>time_horizon,0,1) -> 1 | FE32: =-AP32 -> -1000 | FF32: -1000 | FG32: -1000 | FH32: -1000 | FI32: -1000 | FJ32: -1000 | FK32: -1000 | FL32: -1000 | FM32: -1000 | FN32: -1000 | FO32: -1000 | FP32: =IF(FC32=1,-AO33,0)+FB32 -> -1000 | FS32: 26 | FT32: =FF9 -> -1000 | FW32: 26 | FX32: =FF33 -> -1000 | GN32: =GB9 -> 26
A33: 3 | B33: 123000 | E33: 0 | F33: 123000 | G33: 123000 | I33: 0 | J33: 0 | K33: 0 | L33: 1 | M33: 1 | N33: 12000 | O33: 12000 | Q33: 12000 | R33: 0 | S33: 0 | T33: =IF(FC33=1,IF(S33>0,MTR_09(S33),0),"") -> 0 | U33: 0 | V33: 0 | W33: 0 | X33: 0 | Y33: 0 | Z33: 135000 | AB33: 135000 | AC33: =IF(FC33=1,AB33-Capital-SUM($E$31:E33)-SUM($Q$31:Q33),"") -> 0 | AD33: 0 | AE33: 0 | AF33: 0 | AG33: 0 | AH33: 0 | AI33: 0 | AJ33: 135000 | AM33: 3 | AN33: 123000 | AO33: 1000 | AP33: 1000 | AQ33: 1000 | AR33: 1000 | AS33: 1000 | AT33: 1000 | AU33: 1000 | AV33: 1000 | AW33: 1000 | AX33: 1000 | AY33: 1000 | AZ33: 1000 | BA33: 12000 | BB33: 24 | BC33: 1000 | BD33: 1000 | BE33: 1000 | BF33: 1000 | BG33: 1000 | BH33: 1000 | BI33: 1000 | BJ33: 1000 | BK33: 1000 | BL33: 1000 | BM33: 1000 | BN33: 1000 | BO33: 12000 | BP33: 1 | BQ33: 0 | BR33: 0 | BS33: 0 | BT33: 0 | BU33: 0 | BV33: 0 | BW33: 0 | BX33: 0 | BY33: 0 | BZ33: 0 | CA33: 0 | CB33: 0 | CC33: 0 | ED33: 0 | EE33: 0 | EF33: 0 | EG33: 0 | EH33: 0 | EI33: 0 | EJ33: 0 | EK33: 0 | EL33: 0 | EM33: 0 | EN33: 0 | EO33: 0 | EP33: 0 | FB33: 0 | FC33: 1 | FE33: -1000 | FF33: -1000 | FG33: -1000 | FH33: -1000 | FI33: -1000 | FJ33: -1000 | FK33: -1000 | FL33: -1000 | FM33: -1000 | FN33: -1000 | FO33: -1000 | FP33: -1000 | FS33: 27 | FT33: =FG9 -> -1000 | FW33: 27 | FX33: =FG33 -> -1000 | GN33: =GC9 -> 27
A34: 4 | B34: 135000 | E34: 0 | F34: 135000 | G34: 135000 | I34: 0 | J34: 0 | K34: 0 | L34: 1 | M34: 1 | N34: 12000 | O34: 12000 | Q34: 12000 | R34: 0 | S34: 0 | T34: 0 | U34: 0 | V34: 0 | W34: 0 | X34: 0 | Y34: 0 | Z34: 147000 | AB34: 147000 | AC34: =IF(FC34=1,AB34-Capital-SUM($E$31:E34)-SUM($Q$31:Q34),"") -> 0 | AD34: 0 | AE34: 0 | AF34: 0 | AG34: 0 | AH34: 0 | AI34: 0 | AJ34: 147000 | AM34: 4 | AN34: 135000 | AO34: 1000 | AP34: 1000 | AQ34: 1000 | AR34: 1000 | AS34: 1000 | AT34: 1000 | AU34: 1000 | AV34: 1000 | AW34: 1000 | AX34: 1000 | AY34: 1000 | AZ34: 1000 | BA34: 12000 | BB34: 36 | BC34: 1000 | BD34: 1000 | BE34: 1000 | BF34: 1000 | BG34: 1000 | BH34: 1000 | BI34: 1000 | BJ34: 1000 | BK34: 1000 | BL34: 1000 | BM34: 1000 | BN34: 1000 | BO34: 12000 | BP34: 1 | BQ34: 0 | BR34: 0 | BS34: 0 | BT34: 0 | BU34: 0 | BV34: 0 | BW34: 0 | BX34: 0 | BY34: 0 | BZ34: 0 | CA34: 0 | CB34: 0 | CC34: 0 | ED34: 0 | EE34: 0 | EF34: 0 | EG34: 0 | EH34: 0 | EI34: 0 | EJ34: 0 | EK34: 0 | EL34: 0 | EM34: 0 | EN34: 0 | EO34: 0 | EP34: 0 | FB34: 0 | FC34: 1 | FE34: -1000 | FF34: -1000 | FG34: -1000 | FH34: -1000 | FI34: -1000 | FJ34: -1000 | FK34: -1000 | FL34: -1000 | FM34: -1000 | FN34: -1000 | FO34: -1000 | FP34: -1000 | FS34: 28 | FT34: =FH9 -> -1000 | FW34: 28 | FX34: =FH33 -> -1000 | GN34: =GD9 -> 28
A35: 5 | B35: 147000 | E35: 0 | F35: 147000 | G35: 147000 | I35: 0 | J35: 0 | K35: 0 | L35: 1 | M35: 1 | N35: 12000 | O35: 12000 | Q35: 12000 | R35: 0 | S35: 0 | T35: 0 | U35: 0 | V35: 0 | W35: 0 | X35: 0 | Y35: 0 | Z35: 159000 | AB35: 159000 | AC35: =IF(FC35=1,AB35-Capital-SUM($E$31:E35)-SUM($Q$31:Q35),"") -> 0 | AD35: 0 | AE35: 0 | AF35: 0 | AG35: 0 | AH35: 0 | AI35: 0 | AJ35: 159000 | AM35: 5 | AN35: 147000 | AO35: 1000 | AP35: 1000 | AQ35: 1000 | AR35: 1000 | AS35: 1000 | AT35: 1000 | AU35: 1000 | AV35: 1000 | AW35: 1000 | AX35: 1000 | AY35: 1000 | AZ35: 1000 | BA35: 12000 | BB35: 48 | BC35: 1000 | BD35: 1000 | BE35: 1000 | BF35: 1000 | BG35: 1000 | BH35: 1000 | BI35: 1000 | BJ35: 1000 | BK35: 1000 | BL35: 1000 | BM35: 1000 | BN35: 1000 | BO35: 12000 | BP35: 1 | BQ35: 0 | BR35: 0 | BS35: 0 | BT35: 0 | BU35: 0 | BV35: 0 | BW35: 0 | BX35: 0 | BY35: 0 | BZ35: 0 | CA35: 0 | CB35: 0 | CC35: 0 | ED35: 0 | EE35: 0 | EF35: 0 | EG35: 0 | EH35: 0 | EI35: 0 | EJ35: 0 | EK35: 0 | EL35: 0 | EM35: 0 | EN35: 0 | EO35: 0 | EP35: 0 | FB35: 0 | FC35: 1 | FE35: -1000 | FF35: -1000 | FG35: -1000 | FH35: -1000 | FI35: -1000 | FJ35: -1000 | FK35: -1000 | FL35: -1000 | FM35: -1000 | FN35: -1000 | FO35: -1000 | FP35: -1000 | FS35: 29 | FT35: =FI9 -> -1000 | FW35: 29 | FX35: =FI33 -> -1000 | GN35: =GE9 -> 29
A36: 6 | B36: 159000 | E36: 0 | F36: 159000 | G36: 159000 | I36: 0 | J36: 0 | K36: 0 | L36: 1 | M36: 1 | N36: 12000 | O36: 12000 | Q36: 12000 | R36: 0 | S36: 0 | T36: 0 | U36: 0 | V36: 0 | W36: 0 | X36: 0 | Y36: 0 | Z36: 171000 | AB36: 171000 | AC36: =IF(FC36=1,AB36-Capital-SUM($E$31:E36)-SUM($Q$31:Q36),"") -> 0 | AD36: 0 | AE36: 0 | AF36: 0 | AG36: 0 | AH36: 0 | AI36: 0 | AJ36: 171000 | AM36: 6 | AN36: 159000 | AO36: 1000 | AP36: 1000 | AQ36: 1000 | AR36: 1000 | AS36: 1000 | AT36: 1000 | AU36: 1000 | AV36: 1000 | AW36: 1000 | AX36: 1000 | AY36: 1000 | AZ36: 1000 | BA36: 12000 | BB36: 60 | BC36: 1000 | BD36: 1000 | BE36: 1000 | BF36: 1000 | BG36: 1000 | BH36: 1000 | BI36: 1000 | BJ36: 1000 | BK36: 1000 | BL36: 1000 | BM36: 1000 | BN36: 1000 | BO36: 12000 | BP36: 1 | BQ36: 0 | BR36: 0 | BS36: 0 | BT36: 0 | BU36: 0 | BV36: 0 | BW36: 0 | BX36: 0 | BY36: 0 | BZ36: 0 | CA36: 0 | CB36: 0 | CC36: 0 | ED36: 0 | EE36: 0 | EF36: 0 | EG36: 0 | EH36: 0 | EI36: 0 | EJ36: 0 | EK36: 0 | EL36: 0 | EM36: 0 | EN36: 0 | EO36: 0 | EP36: 0 | FB36: 0 | FC36: 1 | FE36: -1000 | FF36: -1000 | FG36: -1000 | FH36: -1000 | FI36: -1000 | FJ36: -1000 | FK36: -1000 | FL36: -1000 | FM36: -1000 | FN36: -1000 | FO36: -1000 | FP36: -1000 | FS36: 30 | FT36: =FJ9 -> -1000 | FW36: 30 | FX36: =FJ33 -> -1000 | GN36: =GF9 -> 30
A37: 7 | B37: 171000 | E37: 0 | F37: 171000 | G37: 171000 | I37: 0 | J37: 0 | K37: 0 | L37: 1 | M37: 1 | N37: 12000 | O37: 12000 | Q37: 12000 | R37: 0 | S37: 0 | T37: 0 | U37: 0 | V37: 0 | W37: 0 | X37: 0 | Y37: 0 | Z37: 183000 | AB37: 183000 | AC37: =IF(FC37=1,AB37-Capital-SUM($E$31:E37)-SUM($Q$31:Q37),"") -> 0 | AD37: 0 | AE37: 0 | AF37: 0 | AG37: 0 | AH37: 0 | AI37: 0 | AJ37: 183000 | AM37: 7 | AN37: 171000 | AO37: 1000 | AP37: 1000 | AQ37: 1000 | AR37: 1000 | AS37: 1000 | AT37: 1000 | AU37: 1000 | AV37: 1000 | AW37: 1000 | AX37: 1000 | AY37: 1000 | AZ37: 1000 | BA37: 12000 | BB37: 72 | BC37: 1000 | BD37: 1000 | BE37: 1000 | BF37: 1000 | BG37: 1000 | BH37: 1000 | BI37: 1000 | BJ37: 1000 | BK37: 1000 | BL37: 1000 | BM37: 1000 | BN37: 1000 | BO37: 12000 | BP37: 1 | BQ37: 0 | BR37: 0 | BS37: 0 | BT37: 0 | BU37: 0 | BV37: 0 | BW37: 0 | BX37: 0 | BY37: 0 | BZ37: 0 | CA37: 0 | CB37: 0 | CC37: 0 | ED37: 0 | EE37: 0 | EF37: 0 | EG37: 0 | EH37: 0 | EI37: 0 | EJ37: 0 | EK37: 0 | EL37: 0 | EM37: 0 | EN37: 0 | EO37: 0 | EP37: 0 | FB37: 0 | FC37: 1 | FE37: -1000 | FF37: -1000 | FG37: -1000 | FH37: -1000 | FI37: -1000 | FJ37: -1000 | FK37: -1000 | FL37: -1000 | FM37: -1000 | FN37: -1000 | FO37: -1000 | FP37: -1000 | FS37: 31 | FT37: =FK9 -> -1000 | FW37: 31 | FX37: =FK33 -> -1000 | GN37: =GG9 -> 31
A38: 8 | B38: 183000 | E38: 0 | F38: 183000 | G38: 183000 | I38: 0 | J38: 0 | K38: 0 | L38: 1 | M38: 1 | N38: 12000 | O38: 12000 | Q38: 12000 | R38: 0 | S38: 0 | T38: 0 | U38: 0 | V38: 0 | W38: 0 | X38: 0 | Y38: 0 | Z38: 195000 | AB38: 195000 | AC38: =IF(FC38=1,AB38-Capital-SUM($E$31:E38)-SUM($Q$31:Q38),"") -> 0 | AD38: 0 | AE38: 0 | AF38: 0 | AG38: 0 | AH38: 0 | AI38: 0 | AJ38: 195000 | AM38: 8 | AN38: 183000 | AO38: 1000 | AP38: 1000 | AQ38: 1000 | AR38: 1000 | AS38: 1000 | AT38: 1000 | AU38: 1000 | AV38: 1000 | AW38: 1000 | AX38: 1000 | AY38: 1000 | AZ38: 1000 | BA38: 12000 | BB38: 84 | BC38: 1000 | BD38: 1000 | BE38: 1000 | BF38: 1000 | BG38: 1000 | BH38: 1000 | BI38: 1000 | BJ38: 1000 | BK38: 1000 | BL38: 1000 | BM38: 1000 | BN38: 1000 | BO38: 12000 | BP38: 1 | BQ38: 0 | BR38: 0 | BS38: 0 | BT38: 0 | BU38: 0 | BV38: 0 | BW38: 0 | BX38: 0 | BY38: 0 | BZ38: 0 | CA38: 0 | CB38: 0 | CC38: 0 | ED38: 0 | EE38: 0 | EF38: 0 | EG38: 0 | EH38: 0 | EI38: 0 | EJ38: 0 | EK38: 0 | EL38: 0 | EM38: 0 | EN38: 0 | EO38: 0 | EP38: 0 | FB38: 0 | FC38: 1 | FE38: -1000 | FF38: -1000 | FG38: -1000 | FH38: -1000 | FI38: -1000 | FJ38: -1000 | FK38: -1000 | FL38: -1000 | FM38: -1000 | FN38: -1000 | FO38: -1000 | FP38: -1000 | FS38: 32 | FT38: =FL9 -> -1000 | FW38: 32 | FX38: =FL33 -> -1000 | GN38: =GH9 -> 32
A39: 9 | B39: 195000 | E39: 0 | F39: 195000 | G39: 195000 | I39: 0 | J39: 0 | K39: 0 | L39: 1 | M39: 1 | N39: 12000 | O39: 12000 | Q39: 12000 | R39: 0 | S39: 0 | T39: 0 | U39: 0 | V39: 0 | W39: 0 | X39: 0 | Y39: 0 | Z39: 207000 | AB39: 207000 | AC39: =IF(FC39=1,AB39-Capital-SUM($E$31:E39)-SUM($Q$31:Q39),"") -> 0 | AD39: 0 | AE39: 0 | AF39: 0 | AG39: 0 | AH39: 0 | AI39: 0 | AJ39: 207000 | AM39: 9 | AN39: 195000 | AO39: 1000 | AP39: 1000 | AQ39: 1000 | AR39: 1000 | AS39: 1000 | AT39: 1000 | AU39: 1000 | AV39: 1000 | AW39: 1000 | AX39: 1000 | AY39: 1000 | AZ39: 1000 | BA39: 12000 | BB39: 96 | BC39: 1000 | BD39: 1000 | BE39: 1000 | BF39: 1000 | BG39: 1000 | BH39: 1000 | BI39: 1000 | BJ39: 1000 | BK39: 1000 | BL39: 1000 | BM39: 1000 | BN39: 1000 | BO39: 12000 | BP39: 1 | BQ39: 0 | BR39: 0 | BS39: 0 | BT39: 0 | BU39: 0 | BV39: 0 | BW39: 0 | BX39: 0 | BY39: 0 | BZ39: 0 | CA39: 0 | CB39: 0 | CC39: 0 | ED39: 0 | EE39: 0 | EF39: 0 | EG39: 0 | EH39: 0 | EI39: 0 | EJ39: 0 | EK39: 0 | EL39: 0 | EM39: 0 | EN39: 0 | EO39: 0 | EP39: 0 | FB39: 0 | FC39: 1 | FE39: -1000 | FF39: -1000 | FG39: -1000 | FH39: -1000 | FI39: -1000 | FJ39: -1000 | FK39: -1000 | FL39: -1000 | FM39: -1000 | FN39: -1000 | FO39: -1000 | FP39: -1000 | FS39: 33 | FT39: =FM9 -> -1000 | FW39: 33 | FX39: =FM33 -> -1000 | GN39: =GI9 -> 33
A40: 10 | B40: 207000 | E40: 0 | F40: 207000 | G40: 207000 | I40: 0 | J40: 0 | K40: 0 | L40: 1 | M40: 1 | N40: 12000 | O40: 12000 | Q40: 12000 | R40: 0 | S40: 0 | T40: 0 | U40: 0 | V40: 0 | W40: 0 | X40: 0 | Y40: 0 | Z40: 219000 | AB40: 219000 | AC40: =IF(FC40=1,AB40-Capital-SUM($E$31:E40)-SUM($Q$31:Q40),"") -> 0 | AD40: 0 | AE40: 0 | AF40: 0 | AG40: 0 | AH40: 0 | AI40: 0 | AJ40: 219000 | AM40: 10 | AN40: 207000 | AO40: 1000 | AP40: 1000 | AQ40: 1000 | AR40: 1000 | AS40: 1000 | AT40: 1000 | AU40: 1000 | AV40: 1000 | AW40: 1000 | AX40: 1000 | AY40: 1000 | AZ40: 1000 | BA40: 12000 | BB40: 97 | BC40: 1000 | BD40: 1000 | BE40: 1000 | BF40: 1000 | BG40: 1000 | BH40: 1000 | BI40: 1000 | BJ40: 1000 | BK40: 1000 | BL40: 1000 | BM40: 1000 | BN40: 1000 | BO40: 12000 | BP40: 1 | BQ40: 0 | BR40: 0 | BS40: 0 | BT40: 0 | BU40: 0 | BV40: 0 | BW40: 0 | BX40: 0 | BY40: 0 | BZ40: 0 | CA40: 0 | CB40: 0 | CC40: 0 | ED40: 0 | EE40: 0 | EF40: 0 | EG40: 0 | EH40: 0 | EI40: 0 | EJ40: 0 | EK40: 0 | EL40: 0 | EM40: 0 | EN40: 0 | EO40: 0 | EP40: 0 | FB40: 0 | FC40: 1 | FE40: -1000 | FF40: -1000 | FG40: -1000 | FH40: -1000 | FI40: -1000 | FJ40: -1000 | FK40: -1000 | FL40: -1000 | FM40: -1000 | FN40: -1000 | FO40: -1000 | FP40: -1000 | FS40: 34 | FT40: =FN9 -> -1000 | FW40: 34 | FX40: =FN33 -> -1000 | GN40: =GJ9 -> 34
A41: 11 | B41: 219000 | E41: 0 | F41: 219000 | G41: 219000 | I41: 0 | J41: 0 | K41: 0 | L41: 1 | M41: 1 | N41: 12000 | O41: 12000 | Q41: 12000 | R41: 0 | S41: 0 | T41: 0 | U41: 0 | V41: 0 | W41: 0 | X41: 0 | Y41: 0 | Z41: 231000 | AB41: 231000 | AC41: =IF(FC41=1,AB41-Capital-SUM($E$31:E41)-SUM($Q$31:Q41),"") -> 0 | AD41: 0 | AE41: 0 | AF41: 0 | AG41: 0 | AH41: 0 | AI41: 0 | AJ41: 231000 | AM41: 11 | AN41: 219000 | AO41: 1000 | AP41: 1000 | AQ41: 1000 | AR41: 1000 | AS41: 1000 | AT41: 1000 | AU41: 1000 | AV41: 1000 | AW41: 1000 | AX41: 1000 | AY41: 1000 | AZ41: 1000 | BA41: 12000 | BB41: 98 | BC41: 1000 | BD41: 1000 | BE41: 1000 | BF41: 1000 | BG41: 1000 | BH41: 1000 | BI41: 1000 | BJ41: 1000 | BK41: 1000 | BL41: 1000 | BM41: 1000 | BN41: 1000 | BO41: 12000 | BP41: 1 | BQ41: 0 | BR41: 0 | BS41: 0 | BT41: 0 | BU41: 0 | BV41: 0 | BW41: 0 | BX41: 0 | BY41: 0 | BZ41: 0 | CA41: 0 | CB41: 0 | CC41: 0 | ED41: 0 | EE41: 0 | EF41: 0 | EG41: 0 | EH41: 0 | EI41: 0 | EJ41: 0 | EK41: 0 | EL41: 0 | EM41: 0 | EN41: 0 | EO41: 0 | EP41: 0 | FB41: 0 | FC41: 1 | FE41: -1000 | FF41: -1000 | FG41: -1000 | FH41: -1000 | FI41: -1000 | FJ41: -1000 | FK41: -1000 | FL41: -1000 | FM41: -1000 | FN41: -1000 | FO41: -1000 | FP41: -1000 | FS41: 35 | FT41: =FO9 -> -1000 | FW41: 35 | FX41: =FO33 -> -1000 | GN41: =GK9 -> 35
A42: 12 | B42: 231000 | E42: 0 | F42: 231000 | G42: 231000 | I42: 0 | J42: 0 | K42: 0 | L42: 1 | M42: 1 | N42: 12000 | O42: 12000 | Q42: 12000 | R42: 0 | S42: 0 | T42: 0 | U42: 0 | V42: 0 | W42: 0 | X42: 0 | Y42: 0 | Z42: 243000 | AB42: 243000 | AC42: =IF(FC42=1,AB42-Capital-SUM($E$31:E42)-SUM($Q$31:Q42),"") -> 0 | AD42: 0 | AE42: 0 | AF42: 0 | AG42: 0 | AH42: 0 | AI42: 0 | AJ42: 243000 | AM42: 12 | AN42: 231000 | AO42: 1000 | AP42: 1000 | AQ42: 1000 | AR42: 1000 | AS42: 1000 | AT42: 1000 | AU42: 1000 | AV42: 1000 | AW42: 1000 | AX42: 1000 | AY42: 1000 | AZ42: 1000 | BA42: 12000 | BB42: 99 | BC42: 1000 | BD42: 1000 | BE42: 1000 | BF42: 1000 | BG42: 1000 | BH42: 1000 | BI42: 1000 | BJ42: 1000 | BK42: 1000 | BL42: 1000 | BM42: 1000 | BN42: 1000 | BO42: 12000 | BP42: 1 | BQ42: 0 | BR42: 0 | BS42: 0 | BT42: 0 | BU42: 0 | BV42: 0 | BW42: 0 | BX42: 0 | BY42: 0 | BZ42: 0 | CA42: 0 | CB42: 0 | CC42: 0 | ED42: 0 | EE42: 0 | EF42: 0 | EG42: 0 | EH42: 0 | EI42: 0 | EJ42: 0 | EK42: 0 | EL42: 0 | EM42: 0 | EN42: 0 | EO42: 0 | EP42: 0 | FB42: 0 | FC42: 1 | FE42: -1000 | FF42: -1000 | FG42: -1000 | FH42: -1000 | FI42: -1000 | FJ42: -1000 | FK42: -1000 | FL42: -1000 | FM42: -1000 | FN42: -1000 | FO42: -1000 | FP42: -1000 | FS42: 36 | FT42: =FP9 -> -1000 | FW42: 36 | FX42: =FP33 -> -1000 | GN42: =GL9 -> 36
A43: 13 | B43: 243000 | E43: 0 | F43: 243000 | G43: 243000 | I43: 0 | J43: 0 | K43: 0 | L43: 1 | M43: 1 | N43: 12000 | O43: 12000 | Q43: 12000 | R43: 0 | S43: 0 | T43: 0 | U43: 0 | V43: 0 | W43: 0 | X43: 0 | Y43: 0 | Z43: 255000 | AB43: 255000 | AC43: =IF(FC43=1,AB43-Capital-SUM($E$31:E43)-SUM($Q$31:Q43),"") -> 0 | AD43: 0 | AE43: 0 | AF43: 0 | AG43: 0 | AH43: 0 | AI43: 0 | AJ43: 255000 | AM43: 13 | AN43: 243000 | AO43: 1000 | AP43: 1000 | AQ43: 1000 | AR43: 1000 | AS43: 1000 | AT43: 1000 | AU43: 1000 | AV43: 1000 | AW43: 1000 | AX43: 1000 | AY43: 1000 | AZ43: 1000 | BA43: 12000 | BB43: 100 | BC43: 1000 | BD43: 1000 | BE43: 1000 | BF43: 1000 | BG43: 1000 | BH43: 1000 | BI43: 1000 | BJ43: 1000 | BK43: 1000 | BL43: 1000 | BM43: 1000 | BN43: 1000 | BO43: 12000 | BP43: 1 | BQ43: 0 | BR43: 0 | BS43: 0 | BT43: 0 | BU43: 0 | BV43: 0 | BW43: 0 | BX43: 0 | BY43: 0 | BZ43: 0 | CA43: 0 | CB43: 0 | CC43: 0 | ED43: 0 | EE43: 0 | EF43: 0 | EG43: 0 | EH43: 0 | EI43: 0 | EJ43: 0 | EK43: 0 | EL43: 0 | EM43: 0 | EN43: 0 | EO43: 0 | EP43: 0 | FB43: 0 | FC43: 1 | FE43: -1000 | FF43: -1000 | FG43: -1000 | FH43: -1000 | FI43: -1000 | FJ43: -1000 | FK43: -1000 | FL43: -1000 | FM43: -1000 | FN43: -1000 | FO43: -1000 | FP43: -1000 | FS43: 37 | FT43: =FE10 -> -1000 | FW43: 37 | FX43: =FE34 -> -1000 | GN43: =GA10 -> 37
A44: 14 | B44: 255000 | E44: 0 | F44: 255000 | G44: 255000 | I44: 0 | J44: 0 | K44: 0 | L44: 1 | M44: 1 | N44: 12000 | O44: 12000 | Q44: 12000 | R44: 0 | S44: 0 | T44: 0 | U44: 0 | V44: 0 | W44: 0 | X44: 0 | Y44: 0 | Z44: 267000 | AB44: 267000 | AC44: =IF(FC44=1,AB44-Capital-SUM($E$31:E44)-SUM($Q$31:Q44),"") -> 0 | AD44: 0 | AE44: 0 | AF44: 0 | AG44: 0 | AH44: 0 | AI44: 0 | AJ44: 267000 | AM44: 14 | AN44: 255000 | AO44: 1000 | AP44: 1000 | AQ44: 1000 | AR44: 1000 | AS44: 1000 | AT44: 1000 | AU44: 1000 | AV44: 1000 | AW44: 1000 | AX44: 1000 | AY44: 1000 | AZ44: 1000 | BA44: 12000 | BB44: 101 | BC44: 1000 | BD44: 1000 | BE44: 1000 | BF44: 1000 | BG44: 1000 | BH44: 1000 | BI44: 1000 | BJ44: 1000 | BK44: 1000 | BL44: 1000 | BM44: 1000 | BN44: 1000 | BO44: 12000 | BP44: 1 | BQ44: 0 | BR44: 0 | BS44: 0 | BT44: 0 | BU44: 0 | BV44: 0 | BW44: 0 | BX44: 0 | BY44: 0 | BZ44: 0 | CA44: 0 | CB44: 0 | CC44: 0 | ED44: 0 | EE44: 0 | EF44: 0 | EG44: 0 | EH44: 0 | EI44: 0 | EJ44: 0 | EK44: 0 | EL44: 0 | EM44: 0 | EN44: 0 | EO44: 0 | EP44: 0 | FB44: 0 | FC44: 1 | FE44: -1000 | FF44: -1000 | FG44: -1000 | FH44: -1000 | FI44: -1000 | FJ44: -1000 | FK44: -1000 | FL44: -1000 | FM44: -1000 | FN44: -1000 | FO44: -1000 | FP44: -1000 | FS44: 38 | FT44: =FF10 -> -1000 | FW44: 38 | FX44: =FF34 -> -1000 | GN44: =GB10 -> 38
A45: 15 | B45: 267000 | E45: 0 | F45: 267000 | G45: 267000 | I45: 0 | J45: 0 | K45: 0 | L45: 1 | M45: 1 | N45: 12000 | O45: 12000 | Q45: 12000 | R45: 0 | S45: 0 | T45: 0 | U45: 0 | V45: 0 | W45: 0 | X45: 0 | Y45: 0 | Z45: 279000 | AB45: 279000 | AC45: =IF(FC45=1,AB45-Capital-SUM($E$31:E45)-SUM($Q$31:Q45),"") -> 0 | AD45: 0 | AE45: 0 | AF45: 0 | AG45: 0 | AH45: 0 | AI45: 0 | AJ45: 279000 | AM45: 15 | AN45: 267000 | AO45: 1000 | AP45: 1000 | AQ45: 1000 | AR45: 1000 | AS45: 1000 | AT45: 1000 | AU45: 1000 | AV45: 1000 | AW45: 1000 | AX45: 1000 | AY45: 1000 | AZ45: 1000 | BA45: 12000 | BB45: 102 | BC45: 1000 | BD45: 1000 | BE45: 1000 | BF45: 1000 | BG45: 1000 | BH45: 1000 | BI45: 1000 | BJ45: 1000 | BK45: 1000 | BL45: 1000 | BM45: 1000 | BN45: 1000 | BO45: 12000 | BP45: 1 | BQ45: 0 | BR45: 0 | BS45: 0 | BT45: 0 | BU45: 0 | BV45: 0 | BW45: 0 | BX45: 0 | BY45: 0 | BZ45: 0 | CA45: 0 | CB45: 0 | CC45: 0 | ED45: 0 | EE45: 0 | EF45: 0 | EG45: 0 | EH45: 0 | EI45: 0 | EJ45: 0 | EK45: 0 | EL45: 0 | EM45: 0 | EN45: 0 | EO45: 0 | EP45: 0 | FB45: 0 | FC45: 1 | FE45: -1000 | FF45: -1000 | FG45: -1000 | FH45: -1000 | FI45: -1000 | FJ45: -1000 | FK45: -1000 | FL45: -1000 | FM45: -1000 | FN45: -1000 | FO45: -1000 | FP45: -1000 | FS45: 39 | FT45: =FG10 -> -1000 | FW45: 39 | FX45: =FG34 -> -1000 | GN45: =GC10 -> 39
A46: 16 | B46: 279000 | E46: 0 | F46: 279000 | G46: 279000 | I46: 0 | J46: 0 | K46: 0 | L46: 1 | M46: 1 | N46: 12000 | O46: 12000 | Q46: 12000 | R46: 0 | S46: 0 | T46: 0 | U46: 0 | V46: 0 | W46: 0 | X46: 0 | Y46: 0 | Z46: 291000 | AB46: 291000 | AC46: =IF(FC46=1,AB46-Capital-SUM($E$31:E46)-SUM($Q$31:Q46),"") -> 0 | AD46: 0 | AE46: 0 | AF46: 0 | AG46: 0 | AH46: 0 | AI46: 0 | AJ46: 291000 | AM46: 16 | AN46: 279000 | AO46: 1000 | AP46: 1000 | AQ46: 1000 | AR46: 1000 | AS46: 1000 | AT46: 1000 | AU46: 1000 | AV46: 1000 | AW46: 1000 | AX46: 1000 | AY46: 1000 | AZ46: 1000 | BA46: 12000 | BB46: 103 | BC46: 1000 | BD46: 1000 | BE46: 1000 | BF46: 1000 | BG46: 1000 | BH46: 1000 | BI46: 1000 | BJ46: 1000 | BK46: 1000 | BL46: 1000 | BM46: 1000 | BN46: 1000 | BO46: 12000 | BP46: 1 | BQ46: 0 | BR46: 0 | BS46: 0 | BT46: 0 | BU46: 0 | BV46: 0 | BW46: 0 | BX46: 0 | BY46: 0 | BZ46: 0 | CA46: 0 | CB46: 0 | CC46: 0 | ED46: 0 | EE46: 0 | EF46: 0 | EG46: 0 | EH46: 0 | EI46: 0 | EJ46: 0 | EK46: 0 | EL46: 0 | EM46: 0 | EN46: 0 | EO46: 0 | EP46: 0 | FB46: 0 | FC46: 1 | FE46: -1000 | FF46: -1000 | FG46: -1000 | FH46: -1000 | FI46: -1000 | FJ46: -1000 | FK46: -1000 | FL46: -1000 | FM46: -1000 | FN46: -1000 | FO46: -1000 | FP46: -1000 | FS46: 40 | FT46: =FH10 -> -1000 | FW46: 40 | FX46: =FH34 -> -1000 | GN46: =GD10 -> 40
A47: 17 | B47: 291000 | E47: 0 | F47: 291000 | G47: 291000 | I47: 0 | J47: 0 | K47: 0 | L47: 1 | M47: 1 | N47: 12000 | O47: 12000 | Q47: 12000 | R47: 0 | S47: 0 | T47: 0 | U47: 0 | V47: 0 | W47: 0 | X47: 0 | Y47: 0 | Z47: 303000 | AB47: 303000 | AC47: =IF(FC47=1,AB47-Capital-SUM($E$31:E47)-SUM($Q$31:Q47),"") -> 0 | AD47: 0 | AE47: 0 | AF47: 0 | AG47: 0 | AH47: 0 | AI47: 0 | AJ47: 303000 | AM47: 17 | AN47: 291000 | AO47: 1000 | AP47: 1000 | AQ47: 1000 | AR47: 1000 | AS47: 1000 | AT47: 1000 | AU47: 1000 | AV47: 1000 | AW47: 1000 | AX47: 1000 | AY47: 1000 | AZ47: 1000 | BA47: 12000 | BB47: 104 | BC47: 1000 | BD47: 1000 | BE47: 1000 | BF47: 1000 | BG47: 1000 | BH47: 1000 | BI47: 1000 | BJ47: 1000 | BK47: 1000 | BL47: 1000 | BM47: 1000 | BN47: 1000 | BO47: 12000 | BP47: 1 | BQ47: 0 | BR47: 0 | BS47: 0 | BT47: 0 | BU47: 0 | BV47: 0 | BW47: 0 | BX47: 0 | BY47: 0 | BZ47: 0 | CA47: 0 | CB47: 0 | CC47: 0 | ED47: 0 | EE47: 0 | EF47: 0 | EG47: 0 | EH47: 0 | EI47: 0 | EJ47: 0 | EK47: 0 | EL47: 0 | EM47: 0 | EN47: 0 | EO47: 0 | EP47: 0 | FB47: 0 | FC47: 1 | FE47: -1000 | FF47: -1000 | FG47: -1000 | FH47: -1000 | FI47: -1000 | FJ47: -1000 | FK47: -1000 | FL47: -1000 | FM47: -1000 | FN47: -1000 | FO47: -1000 | FP47: -1000 | FS47: 41 | FT47: =FI10 -> -1000 | FW47: 41 | FX47: =FI34 -> -1000 | GN47: =GE10 -> 41
A48: 18 | B48: 303000 | E48: 0 | F48: 303000 | G48: 303000 | I48: 0 | J48: 0 | K48: 0 | L48: 1 | M48: 1 | N48: 12000 | O48: 12000 | Q48: 12000 | R48: 0 | S48: 0 | T48: 0 | U48: 0 | V48: 0 | W48: 0 | X48: 0 | Y48: 0 | Z48: 315000 | AB48: 315000 | AC48: =IF(FC48=1,AB48-Capital-SUM($E$31:E48)-SUM($Q$31:Q48),"") -> 0 | AD48: 0 | AE48: 0 | AF48: 0 | AG48: 0 | AH48: 0 | AI48: 0 | AJ48: 315000 | AM48: 18 | AN48: 303000 | AO48: 1000 | AP48: 1000 | AQ48: 1000 | AR48: 1000 | AS48: 1000 | AT48: 1000 | AU48: 1000 | AV48: 1000 | AW48: 1000 | AX48: 1000 | AY48: 1000 | AZ48: 1000 | BA48: 12000 | BB48: 105 | BC48: 1000 | BD48: 1000 | BE48: 1000 | BF48: 1000 | BG48: 1000 | BH48: 1000 | BI48: 1000 | BJ48: 1000 | BK48: 1000 | BL48: 1000 | BM48: 1000 | BN48: 1000 | BO48: 12000 | BP48: 1 | BQ48: 0 | BR48: 0 | BS48: 0 | BT48: 0 | BU48: 0 | BV48: 0 | BW48: 0 | BX48: 0 | BY48: 0 | BZ48: 0 | CA48: 0 | CB48: 0 | CC48: 0 | ED48: 0 | EE48: 0 | EF48: 0 | EG48: 0 | EH48: 0 | EI48: 0 | EJ48: 0 | EK48: 0 | EL48: 0 | EM48: 0 | EN48: 0 | EO48: 0 | EP48: 0 | FB48: 0 | FC48: 1 | FE48: -1000 | FF48: -1000 | FG48: -1000 | FH48: -1000 | FI48: -1000 | FJ48: -1000 | FK48: -1000 | FL48: -1000 | FM48: -1000 | FN48: -1000 | FO48: -1000 | FP48: -1000 | FS48: 42 | FT48: =FJ10 -> -1000 | FW48: 42 | FX48: =FJ34 -> -1000 | GN48: =GF10 -> 42
A49: 19 | B49: 315000 | E49: 0 | F49: 315000 | G49: 315000 | I49: 0 | J49: 0 | K49: 0 | L49: 1 | M49: 1 | N49: 12000 | O49: 12000 | Q49: 12000 | R49: 0 | S49: 0 | T49: 0 | U49: 0 | V49: 0 | W49: 0 | X49: 0 | Y49: 0 | Z49: 327000 | AB49: 327000 | AC49: =IF(FC49=1,AB49-Capital-SUM($E$31:E49)-SUM($Q$31:Q49),"") -> 0 | AD49: 0 | AE49: 0 | AF49: 0 | AG49: 0 | AH49: 0 | AI49: 0 | AJ49: 327000 | AM49: 19 | AN49: 315000 | AO49: 1000 | AP49: 1000 | AQ49: 1000 | AR49: 1000 | AS49: 1000 | AT49: 1000 | AU49: 1000 | AV49: 1000 | AW49: 1000 | AX49: 1000 | AY49: 1000 | AZ49: 1000 | BA49: 12000 | BB49: 106 | BC49: 1000 | BD49: 1000 | BE49: 1000 | BF49: 1000 | BG49: 1000 | BH49: 1000 | BI49: 1000 | BJ49: 1000 | BK49: 1000 | BL49: 1000 | BM49: 1000 | BN49: 1000 | BO49: 12000 | BP49: 1 | BQ49: 0 | BR49: 0 | BS49: 0 | BT49: 0 | BU49: 0 | BV49: 0 | BW49: 0 | BX49: 0 | BY49: 0 | BZ49: 0 | CA49: 0 | CB49: 0 | CC49: 0 | ED49: 0 | EE49: 0 | EF49: 0 | EG49: 0 | EH49: 0 | EI49: 0 | EJ49: 0 | EK49: 0 | EL49: 0 | EM49: 0 | EN49: 0 | EO49: 0 | EP49: 0 | FB49: 0 | FC49: 1 | FE49: -1000 | FF49: -1000 | FG49: -1000 | FH49: -1000 | FI49: -1000 | FJ49: -1000 | FK49: -1000 | FL49: -1000 | FM49: -1000 | FN49: -1000 | FO49: -1000 | FP49: -1000 | FS49: 43 | FT49: =FK10 -> -1000 | FW49: 43 | FX49: =FK34 -> -1000 | GN49: =GG10 -> 43
A50: 20 | B50: 327000 | E50: 0 | F50: 327000 | G50: 327000 | I50: 0 | J50: 0 | K50: 0 | L50: 1 | M50: 1 | N50: 12000 | O50: 12000 | Q50: 12000 | R50: 0 | S50: 0 | T50: 0 | U50: 0 | V50: 0 | W50: 0 | X50: 0 | Y50: 0 | Z50: 339000 | AB50: 339000 | AC50: =IF(FC50=1,AB50-Capital-SUM($E$31:E50)-SUM($Q$31:Q50),"") -> 0 | AD50: 0 | AE50: 0 | AF50: 0 | AG50: 0 | AH50: 0 | AI50: 0 | AJ50: 339000 | AM50: 20 | AN50: 327000 | AO50: 1000 | AP50: 1000 | AQ50: 1000 | AR50: 1000 | AS50: 1000 | AT50: 1000 | AU50: 1000 | AV50: 1000 | AW50: 1000 | AX50: 1000 | AY50: 1000 | AZ50: 1000 | BA50: 12000 | BB50: 107 | BC50: 1000 | BD50: 1000 | BE50: 1000 | BF50: 1000 | BG50: 1000 | BH50: 1000 | BI50: 1000 | BJ50: 1000 | BK50: 1000 | BL50: 1000 | BM50: 1000 | BN50: 1000 | BO50: 12000 | BP50: 1 | BQ50: 0 | BR50: 0 | BS50: 0 | BT50: 0 | BU50: 0 | BV50: 0 | BW50: 0 | BX50: 0 | BY50: 0 | BZ50: 0 | CA50: 0 | CB50: 0 | CC50: 0 | ED50: 0 | EE50: 0 | EF50: 0 | EG50: 0 | EH50: 0 | EI50: 0 | EJ50: 0 | EK50: 0 | EL50: 0 | EM50: 0 | EN50: 0 | EO50: 0 | EP50: 0 | FB50: 339000 | FC50: 1 | FE50: -1000 | FF50: -1000 | FG50: -1000 | FH50: -1000 | FI50: -1000 | FJ50: -1000 | FK50: -1000 | FL50: -1000 | FM50: -1000 | FN50: -1000 | FO50: -1000 | FP50: 339000 | FS50: 44 | FT50: =FL10 -> -1000 | FW50: 44 | FX50: =FL34 -> -1000 | GN50: =GH10 -> 44
FC51: 0 | FS51: 45 | FT51: =FM10 -> -1000 | FW51: 45 | FX51: =FM34 -> -1000 | GN51: =GI10 -> 45
E52: =SUM(E31:E50) -> 0 | I52: 0 | J52: 0 | K52: 0 | N52: 239000 | O52: 239000 | P52: 0 | Q52: 239000 | W52: 0 | FS52: 46 | FT52: =FN10 -> -1000 | FW52: 46 | FX52: =FN34 -> -1000 | GN52: =GJ10 -> 46
FS53: 47 | FT53: =FO10 -> -1000 | FW53: 47 | FX53: =FO34 -> -1000 | GN53: =GK10 -> 47
FS54: 48 | FT54: =FP10 -> -1000 | FW54: 48 | FX54: =FP34 -> -1000 | GN54: =GL10 -> 48
FS55: 49 | FT55: =FE11 -> -1000 | FW55: 49 | FX55: =FE35 -> -1000 | GN55: =GA11 -> 49
FS56: 50 | FT56: =FF11 -> -1000 | FW56: 50 | FX56: =FF35 -> -1000 | GN56: =GB11 -> 50
FS57: 51 | FT57: =FG11 -> -1000 | FW57: 51 | FX57: =FG35 -> -1000 | GN57: =GC11 -> 51
FS58: 52 | FT58: =FH11 -> -1000 | FW58: 52 | FX58: =FH35 -> -1000 | GN58: =GD11 -> 52
FS59: 53 | FT59: =FI11 -> -1000 | FW59: 53 | FX59: =FI35 -> -1000 | GN59: =GE11 -> 53
FS60: 54 | FT60: =FJ11 -> -1000 | FW60: 54 | FX60: =FJ35 -> -1000 | GN60: =GF11 -> 54
FS61: 55 | FT61: =FK11 -> -1000 | FW61: 55 | FX61: =FK35 -> -1000 | GN61: =GG11 -> 55
FS62: 56 | FT62: =FL11 -> -1000 | FW62: 56 | FX62: =FL35 -> -1000 | GN62: =GH11 -> 56
FS63: 57 | FT63: =FM11 -> -1000 | FW63: 57 | FX63: =FM35 -> -1000 | GN63: =GI11 -> 57
FS64: 58 | FT64: =FN11 -> -1000 | FW64: 58 | FX64: =FN35 -> -1000 | GN64: =GJ11 -> 58
FS65: 59 | FT65: =FO11 -> -1000 | FW65: 59 | FX65: =FO35 -> -1000 | GN65: =GK11 -> 59
FS66: 60 | FT66: =FP11 -> -1000 | FW66: 60 | FX66: =FP35 -> -1000 | GN66: =GL11 -> 60
FS67: 61 | FT67: =FE12 -> -1000 | FW67: 61 | FX67: =FE36 -> -1000 | GN67: =GA12 -> 61
FS68: 62 | FT68: =FF12 -> -1000 | FW68: 62 | FX68: =FF36 -> -1000 | GN68: =GB12 -> 62
FS69: 63 | FT69: =FG12 -> -1000 | FW69: 63 | FX69: =FG36 -> -1000 | GN69: =GC12 -> 63
FS70: 64 | FT70: =FH12 -> -1000 | FW70: 64 | FX70: =FH36 -> -1000 | GN70: =GD12 -> 64
FS71: 65 | FT71: =FI12 -> -1000 | FW71: 65 | FX71: =FI36 -> -1000 | GN71: =GE12 -> 65
FS72: 66 | FT72: =FJ12 -> -1000 | FW72: 66 | FX72: =FJ36 -> -1000 | GN72: =GF12 -> 66
FS73: 67 | FT73: =FK12 -> -1000 | FW73: 67 | FX73: =FK36 -> -1000 | GN73: =GG12 -> 67
FS74: 68 | FT74: =FL12 -> -1000 | FW74: 68 | FX74: =FL36 -> -1000 | GN74: =GH12 -> 68
FS75: 69 | FT75: =FM12 -> -1000 | FW75: 69 | FX75: =FM36 -> -1000 | GN75: =GI12 -> 69
FS76: 70 | FT76: =FN12 -> -1000 | FW76: 70 | FX76: =FN36 -> -1000 | GN76: =GJ12 -> 70
FS77: 71 | FT77: =FO12 -> -1000 | FW77: 71 | FX77: =FO36 -> -1000 | GN77: =GK12 -> 71
FS78: 72 | FT78: =FP12 -> -1000 | FW78: 72 | FX78: =FP36 -> -1000 | GN78: =GL12 -> 72
FS79: 73 | FT79: =FE13 -> -1000 | FW79: 73 | FX79: =FE37 -> -1000 | GN79: =GA13 -> 73
FS80: 74 | FT80: =FF13 -> -1000 | FW80: 74 | FX80: =FF37 -> -1000 | GN80: =GB13 -> 74
FS81: 75 | FT81: =FG13 -> -1000 | FW81: 75 | FX81: =FG37 -> -1000 | GN81: =GC13 -> 75
FS82: 76 | FT82: =FH13 -> -1000 | FW82: 76 | FX82: =FH37 -> -1000 | GN82: =GD13 -> 76
FS83: 77 | FT83: =FI13 -> -1000 | FW83: 77 | FX83: =FI37 -> -1000 | GN83: =GE13 -> 77
FS84: 78 | FT84: =FJ13 -> -1000 | FW84: 78 | FX84: =FJ37 -> -1000 | GN84: =GF13 -> 78
FS85: 79 | FT85: =FK13 -> -1000 | FW85: 79 | FX85: =FK37 -> -1000 | GN85: =GG13 -> 79
FS86: 80 | FT86: =FL13 -> -1000 | FW86: 80 | FX86: =FL37 -> -1000 | GN86: =GH13 -> 80
FS87: 81 | FT87: =FM13 -> -1000 | FW87: 81 | FX87: =FM37 -> -1000 | GN87: =GI13 -> 81
FS88: 82 | FT88: =FN13 -> -1000 | FW88: 82 | FX88: =FN37 -> -1000 | GN88: =GJ13 -> 82
FS89: 83 | FT89: =FO13 -> -1000 | FW89: 83 | FX89: =FO37 -> -1000 | GN89: =GK13 -> 83
FS90: 84 | FT90: =FP13 -> -1000 | FW90: 84 | FX90: =FP37 -> -1000 | GN90: =GL13 -> 84
FS91: 85 | FT91: =FE14 -> -1000 | FW91: 85 | FX91: =FE38 -> -1000 | GN91: =GA14 -> 85
FS92: 86 | FT92: =FF14 -> -1000 | FW92: 86 | FX92: =FF38 -> -1000 | GN92: =GB14 -> 86
FS93: 87 | FT93: =FG14 -> -1000 | FW93: 87 | FX93: =FG38 -> -1000 | GN93: =GC14 -> 87
FS94: 88 | FT94: =FH14 -> -1000 | FW94: 88 | FX94: =FH38 -> -1000 | GN94: =GD14 -> 88
FS95: 89 | FT95: =FI14 -> -1000 | FW95: 89 | FX95: =FI38 -> -1000 | GN95: =GE14 -> 89
FS96: 90 | FT96: =FJ14 -> -1000 | FW96: 90 | FX96: =FJ38 -> -1000 | GN96: =GF14 -> 90
FS97: 91 | FT97: =FK14 -> -1000 | FW97: 91 | FX97: =FK38 -> -1000 | GN97: =GG14 -> 91
FS98: 92 | FT98: =FL14 -> -1000 | FW98: 92 | FX98: =FL38 -> -1000 | GN98: =GH14 -> 92
FS99: 93 | FT99: =FM14 -> -1000 | FW99: 93 | FX99: =FM38 -> -1000 | GN99: =GI14 -> 93
FS100: 94 | FT100: =FN14 -> -1000 | FW100: 94 | FX100: =FN38 -> -1000 | GN100: =GJ14 -> 94
FS101: 95 | FT101: =FO14 -> -1000 | FW101: 95 | FX101: =FO38 -> -1000 | GN101: =GK14 -> 95
FS102: 96 | FT102: =FP14 -> -1000 | FW102: 96 | FX102: =FP38 -> -1000 | GN102: =GL14 -> 96
FS103: 97 | FT103: =FE15 -> -1000 | FW103: 97 | FX103: =FE39 -> -1000 | GN103: =GA15 -> 97
FS104: 98 | FT104: =FF15 -> -1000 | FW104: 98 | FX104: =FF39 -> -1000 | GN104: =GB15 -> 98
FS105: 99 | FT105: =FG15 -> -1000 | FW105: 99 | FX105: =FG39 -> -1000 | GN105: =GC15 -> 99
FS106: 100 | FT106: =FH15 -> -1000 | FW106: 100 | FX106: =FH39 -> -1000 | GN106: =GD15 -> 100
FS107: 101 | FT107: =FI15 -> -1000 | FW107: 101 | FX107: =FI39 -> -1000 | GN107: =GE15 -> 101
FS108: 102 | FT108: =FJ15 -> -1000 | FW108: 102 | FX108: =FJ39 -> -1000 | GN108: =GF15 -> 102
FS109: 103 | FT109: =FK15 -> -1000 | FW109: 103 | FX109: =FK39 -> -1000 | GN109: =GG15 -> 103
FS110: 104 | FT110: =FL15 -> -1000 | FW110: 104 | FX110: =FL39 -> -1000 | GN110: =GH15 -> 104
FS111: 105 | FT111: =FM15 -> -1000 | FW111: 105 | FX111: =FM39 -> -1000 | GN111: =GI15 -> 105
FS112: 106 | FT112: =FN15 -> -1000 | FW112: 106 | FX112: =FN39 -> -1000 | GN112: =GJ15 -> 106
FS113: 107 | FT113: =FO15 -> -1000 | FW113: 107 | FX113: =FO39 -> -1000 | GN113: =GK15 -> 107
FS114: 108 | FT114: =FP15 -> -1000 | FW114: 108 | FX114: =FP39 -> -1000 | GN114: =GL15 -> 108
FS115: 109 | FT115: =FE16 -> -1000 | FW115: 109 | FX115: =FE40 -> -1000 | GN115: =GA16 -> 109
FS116: 110 | FT116: =FF16 -> -1000 | FW116: 110 | FX116: =FF40 -> -1000 | GN116: =GB16 -> 110
FS117: 111 | FT117: =FG16 -> -1000 | FW117: 111 | FX117: =FG40 -> -1000 | GN117: =GC16 -> 111
FS118: 112 | FT118: =FH16 -> -1000 | FW118: 112 | FX118: =FH40 -> -1000 | GN118: =GD16 -> 112
FS119: 113 | FT119: =FI16 -> -1000 | FW119: 113 | FX119: =FI40 -> -1000 | GN119: =GE16 -> 113
FS120: 114 | FT120: =FJ16 -> -1000 | FW120: 114 | FX120: =FJ40 -> -1000 | GN120: =GF16 -> 114
FS121: 115 | FT121: =FK16 -> -1000 | FW121: 115 | FX121: =FK40 -> -1000 | GN121: =GG16 -> 115
FS122: 116 | FT122: =FL16 -> -1000 | FW122: 116 | FX122: =FL40 -> -1000 | GN122: =GH16 -> 116
FS123: 117 | FT123: =FM16 -> -1000 | FW123: 117 | FX123: =FM40 -> -1000 | GN123: =GI16 -> 117
FS124: 118 | FT124: =FN16 -> -1000 | FW124: 118 | FX124: =FN40 -> -1000 | GN124: =GJ16 -> 118
FS125: 119 | FT125: =FO16 -> -1000 | FW125: 119 | FX125: =FO40 -> -1000 | GN125: =GK16 -> 119
FS126: 120 | FT126: =FP16 -> -1000 | FW126: 120 | FX126: =FP40 -> -1000 | GN126: =GL16 -> 120
FS127: 121 | FT127: =FE17 -> -1000 | FW127: 121 | FX127: =FE41 -> -1000 | GN127: =GA17 -> 121
FS128: 122 | FT128: =FF17 -> -1000 | FW128: 122 | FX128: =FF41 -> -1000 | GN128: =GB17 -> 122
FS129: 123 | FT129: =FG17 -> -1000 | FW129: 123 | FX129: =FG41 -> -1000 | GN129: =GC17 -> 123
FS130: 124 | FT130: =FH17 -> -1000 | FW130: 124 | FX130: =FH41 -> -1000 | GN130: =GD17 -> 124
FS131: 125 | FT131: =FI17 -> -1000 | FW131: 125 | FX131: =FI41 -> -1000 | GN131: =GE17 -> 125
FS132: 126 | FT132: =FJ17 -> -1000 | FW132: 126 | FX132: =FJ41 -> -1000 | GN132: =GF17 -> 126
FS133: 127 | FT133: =FK17 -> -1000 | FW133: 127 | FX133: =FK41 -> -1000 | GN133: =GG17 -> 127
FS134: 128 | FT134: =FL17 -> -1000 | FW134: 128 | FX134: =FL41 -> -1000 | GN134: =GH17 -> 128
FS135: 129 | FT135: =FM17 -> -1000 | FW135: 129 | FX135: =FM41 -> -1000 | GN135: =GI17 -> 129
FS136: 130 | FT136: =FN17 -> -1000 | FW136: 130 | FX136: =FN41 -> -1000 | GN136: =GJ17 -> 130
FS137: 131 | FT137: =FO17 -> -1000 | FW137: 131 | FX137: =FO41 -> -1000 | GN137: =GK17 -> 131
FS138: 132 | FT138: =FP17 -> -1000 | FW138: 132 | FX138: =FP41 -> -1000 | GN138: =GL17 -> 132
FS139: 133 | FT139: =FE18 -> -1000 | FW139: 133 | FX139: =FE42 -> -1000 | GN139: =GA18 -> 133
FS140: 134 | FT140: =FF18 -> -1000 | FW140: 134 | FX140: =FF42 -> -1000 | GN140: =GB18 -> 134
FS141: 135 | FT141: =FG18 -> -1000 | FW141: 135 | FX141: =FG42 -> -1000 | GN141: =GC18 -> 135
FS142: 136 | FT142: =FH18 -> -1000 | FW142: 136 | FX142: =FH42 -> -1000 | GN142: =GD18 -> 136
FS143: 137 | FT143: =FI18 -> -1000 | FW143: 137 | FX143: =FI42 -> -1000 | GN143: =GE18 -> 137
FS144: 138 | FT144: =FJ18 -> -1000 | FW144: 138 | FX144: =FJ42 -> -1000 | GN144: =GF18 -> 138
FS145: 139 | FT145: =FK18 -> -1000 | FW145: 139 | FX145: =FK42 -> -1000 | GN145: =GG18 -> 139
FS146: 140 | FT146: =FL18 -> -1000 | FW146: 140 | FX146: =FL42 -> -1000 | GN146: =GH18 -> 140
FS147: 141 | FT147: =FM18 -> -1000 | FW147: 141 | FX147: =FM42 -> -1000 | GN147: =GI18 -> 141
FS148: 142 | FT148: =FN18 -> -1000 | FW148: 142 | FX148: =FN42 -> -1000 | GN148: =GJ18 -> 142
FS149: 143 | FT149: =FO18 -> -1000 | FW149: 143 | FX149: =FO42 -> -1000 | GN149: =GK18 -> 143
FS150: 144 | FT150: =FP18 -> -1000 | FW150: 144 | FX150: =FP42 -> -1000 | GN150: =GL18 -> 144
FS151: 145 | FT151: =FE19 -> -1000 | FW151: 145 | FX151: =FE43 -> -1000 | GN151: =GA19 -> 145
FS152: 146 | FT152: =FF19 -> -1000 | FW152: 146 | FX152: =FF43 -> -1000 | GN152: =GB19 -> 146
FS153: 147 | FT153: =FG19 -> -1000 | FW153: 147 | FX153: =FG43 -> -1000 | GN153: =GC19 -> 147
FS154: 148 | FT154: =FH19 -> -1000 | FW154: 148 | FX154: =FH43 -> -1000 | GN154: =GD19 -> 148
FS155: 149 | FT155: =FI19 -> -1000 | FW155: 149 | FX155: =FI43 -> -1000 | GN155: =GE19 -> 149
FS156: 150 | FT156: =FJ19 -> -1000 | FW156: 150 | FX156: =FJ43 -> -1000 | GN156: =GF19 -> 150
FS157: 151 | FT157: =FK19 -> -1000 | FW157: 151 | FX157: =FK43 -> -1000 | GN157: =GG19 -> 151
FS158: 152 | FT158: =FL19 -> -1000 | FW158: 152 | FX158: =FL43 -> -1000 | GN158: =GH19 -> 152
FS159: 153 | FT159: =FM19 -> -1000 | FW159: 153 | FX159: =FM43 -> -1000 | GN159: =GI19 -> 153
FS160: 154 | FT160: =FN19 -> -1000 | FW160: 154 | FX160: =FN43 -> -1000 | GN160: =GJ19 -> 154
FS161: 155 | FT161: =FO19 -> -1000 | FW161: 155 | FX161: =FO43 -> -1000 | GN161: =GK19 -> 155
FS162: 156 | FT162: =FP19 -> -1000 | FW162: 156 | FX162: =FP43 -> -1000 | GN162: =GL19 -> 156
FS163: 157 | FT163: =FE20 -> -1000 | FW163: 157 | FX163: =FE44 -> -1000 | GN163: =GA20 -> 157
FS164: 158 | FT164: =FF20 -> -1000 | FW164: 158 | FX164: =FF44 -> -1000 | GN164: =GB20 -> 158
FS165: 159 | FT165: =FG20 -> -1000 | FW165: 159 | FX165: =FG44 -> -1000 | GN165: =GC20 -> 159
FS166: 160 | FT166: =FH20 -> -1000 | FW166: 160 | FX166: =FH44 -> -1000 | GN166: =GD20 -> 160
FS167: 161 | FT167: =FI20 -> -1000 | FW167: 161 | FX167: =FI44 -> -1000 | GN167: =GE20 -> 161
FS168: 162 | FT168: =FJ20 -> -1000 | FW168: 162 | FX168: =FJ44 -> -1000 | GN168: =GF20 -> 162
FS169: 163 | FT169: =FK20 -> -1000 | FW169: 163 | FX169: =FK44 -> -1000 | GN169: =GG20 -> 163
FS170: 164 | FT170: =FL20 -> -1000 | FW170: 164 | FX170: =FL44 -> -1000 | GN170: =GH20 -> 164
FS171: 165 | FT171: =FM20 -> -1000 | FW171: 165 | FX171: =FM44 -> -1000 | GN171: =GI20 -> 165
FS172: 166 | FT172: =FN20 -> -1000 | FW172: 166 | FX172: =FN44 -> -1000 | GN172: =GJ20 -> 166
FS173: 167 | FT173: =FO20 -> -1000 | FW173: 167 | FX173: =FO44 -> -1000 | GN173: =GK20 -> 167
FS174: 168 | FT174: =FP20 -> -1000 | FW174: 168 | FX174: =FP44 -> -1000 | GN174: =GL20 -> 168
FS175: 169 | FT175: =FE21 -> -1000 | FW175: 169 | FX175: =FE45 -> -1000 | GN175: =GA21 -> 169
FS176: 170 | FT176: =FF21 -> -1000 | FW176: 170 | FX176: =FF45 -> -1000 | GN176: =GB21 -> 170
FS177: 171 | FT177: =FG21 -> -1000 | FW177: 171 | FX177: =FG45 -> -1000 | GN177: =GC21 -> 171
FS178: 172 | FT178: =FH21 -> -1000 | FW178: 172 | FX178: =FH45 -> -1000 | GN178: =GD21 -> 172
FS179: 173 | FT179: =FI21 -> -1000 | FW179: 173 | FX179: =FI45 -> -1000 | GN179: =GE21 -> 173
FS180: 174 | FT180: =FJ21 -> -1000 | FW180: 174 | FX180: =FJ45 -> -1000 | GN180: =GF21 -> 174
FS181: 175 | FT181: =FK21 -> -1000 | FW181: 175 | FX181: =FK45 -> -1000 | GN181: =GG21 -> 175
FS182: 176 | FT182: =FL21 -> -1000 | FW182: 176 | FX182: =FL45 -> -1000 | GN182: =GH21 -> 176
FS183: 177 | FT183: =FM21 -> -1000 | FW183: 177 | FX183: =FM45 -> -1000 | GN183: =GI21 -> 177
FS184: 178 | FT184: =FN21 -> -1000 | FW184: 178 | FX184: =FN45 -> -1000 | GN184: =GJ21 -> 178
FS185: 179 | FT185: =FO21 -> -1000 | FW185: 179 | FX185: =FO45 -> -1000 | GN185: =GK21 -> 179
FS186: 180 | FT186: =FP21 -> -1000 | FW186: 180 | FX186: =FP45 -> -1000 | GN186: =GL21 -> 180
FS187: 181 | FT187: =FE22 -> -1000 | FW187: 181 | FX187: =FE46 -> -1000 | GN187: =GA22 -> 181
FS188: 182 | FT188: =FF22 -> -1000 | FW188: 182 | FX188: =FF46 -> -1000 | GN188: =GB22 -> 182
FS189: 183 | FT189: =FG22 -> -1000 | FW189: 183 | FX189: =FG46 -> -1000 | GN189: =GC22 -> 183
FS190: 184 | FT190: =FH22 -> -1000 | FW190: 184 | FX190: =FH46 -> -1000 | GN190: =GD22 -> 184
FS191: 185 | FT191: =FI22 -> -1000 | FW191: 185 | FX191: =FI46 -> -1000 | GN191: =GE22 -> 185
FS192: 186 | FT192: =FJ22 -> -1000 | FW192: 186 | FX192: =FJ46 -> -1000 | GN192: =GF22 -> 186
FS193: 187 | FT193: =FK22 -> -1000 | FW193: 187 | FX193: =FK46 -> -1000 | GN193: =GG22 -> 187
FS194: 188 | FT194: =FL22 -> -1000 | FW194: 188 | FX194: =FL46 -> -1000 | GN194: =GH22 -> 188
FS195: 189 | FT195: =FM22 -> -1000 | FW195: 189 | FX195: =FM46 -> -1000 | GN195: =GI22 -> 189
FS196: 190 | FT196: =FN22 -> -1000 | FW196: 190 | FX196: =FN46 -> -1000 | GN196: =GJ22 -> 190
FS197: 191 | FT197: =FO22 -> -1000 | FW197: 191 | FX197: =FO46 -> -1000 | GN197: =GK22 -> 191
FS198: 192 | FT198: =FP22 -> -1000 | FW198: 192 | FX198: =FP46 -> -1000 | GN198: =GL22 -> 192
FS199: 193 | FT199: =FE23 -> -1000 | FW199: 193 | FX199: =FE47 -> -1000 | GN199: =GA23 -> 193
FS200: 194 | FT200: =FF23 -> -1000 | FW200: 194 | FX200: =FF47 -> -1000 | GN200: =GB23 -> 194
... 46 more rows

Sheet Graphs
AE1: Values for graphing | AH1: (difference)
AE2: Year | AF2: Geared investment | AG2: Ungeared investment | AH2: Geared Investment | AI2: Geared Portfolio | AJ2: Ungeared Portfolio | AK2: Difference | AL2: Loan
AE3: 0 | AF3: ='Detailed Calcs'!B7 -> 100000 | AG3: ='Detailed Calcs'!B31 -> 100000 | AH3: =AF3-AG3 -> 0 | AI3: ='Detailed Calcs'!F7 -> 200000 | AJ3: ='Detailed Calcs'!F31 -> 100000 | AK3: =AI3-AJ3 -> 100000 | AL3: =loan -> 100000
AE4: 1 | AF4: ='Detailed Calcs'!AJ7 -> 111000 | AG4: ='Detailed Calcs'!AJ31 -> 111000 | AH4: =AF4-AG4 -> 0 | AI4: =IF(ISNUMBER(AE4),IF(AE4=time_horizon,'Detailed Calcs'!AB7,'Detailed Calcs'!F8),"") -> 222000 | AJ4: =IF(ISNUMBER(AE4),IF(AE4=time_horizon,'Detailed Calcs'!AB31,'Detailed Calcs'!F32),"") -> 111000 | AK4: =AI4-AJ4 -> 111000 | AL4: ='Detailed Calcs'!AA7 -> 111000
AE5: =IF(ISNUMBER(AE4),IF(AE4+1>time_horizon,"",AE4+1),"") -> 2 | AF5: ='Detailed Calcs'!AJ8 -> 123000 | AG5: ='Detailed Calcs'!AJ32 -> 123000 | AH5: =AF5-AG5 -> 0 | AI5: =IF(ISNUMBER(AE5),IF(AE5=time_horizon,'Detailed Calcs'!AB8,'Detailed Calcs'!F9),"") -> 246000 | AJ5: =IF(ISNUMBER(AE5),IF(AE5=time_horizon,'Detailed Calcs'!AB32,'Detailed Calcs'!F33),"") -> 123000 | AK5: =AI5-AJ5 -> 123000 | AL5: ='Detailed Calcs'!AA8 -> 123000
AE6: =IF(ISNUMBER(AE5),IF(AE5+1>time_horizon,"",AE5+1),"") -> 3 | AF6: ='Detailed Calcs'!AJ9 -> 135000 | AG6: ='Detailed Calcs'!AJ33 -> 135000 | AH6: =IF(ISNUMBER(AF6-AG6),AF6-AG6,"") -> 0 | AI6: =IF(ISNUMBER(AE6),IF(AE6=time_horizon,'Detailed Calcs'!AB9,'Detailed Calcs'!F10),"") -> 270000 | AJ6: =IF(ISNUMBER(AE6),IF(AE6=time_horizon,'Detailed Calcs'!AB33,'Detailed Calcs'!F34),"") -> 135000 | AK6: =IF(ISNUMBER(AI6-AJ6),AI6-AJ6,"") -> 135000 | AL6: ='Detailed Calcs'!AA9 -> 135000
AE7: 4 | AF7: ='Detailed Calcs'!AJ10 -> 147000 | AG7: ='Detailed Calcs'!AJ34 -> 147000 | AH7: 0 | AI7: =IF(ISNUMBER(AE7),IF(AE7=time_horizon,'Detailed Calcs'!AB10,'Detailed Calcs'!F11),"") -> 294000 | AJ7: =IF(ISNUMBER(AE7),IF(AE7=time_horizon,'Detailed Calcs'!AB34,'Detailed Calcs'!F35),"") -> 147000 | AK7: 147000 | AL7: ='Detailed Calcs'!AA10 -> 147000
AE8: 5 | AF8: ='Detailed Calcs'!AJ11 -> 159000 | AG8: ='Detailed Calcs'!AJ35 -> 159000 | AH8: 0 | AI8: =IF(ISNUMBER(AE8),IF(AE8=time_horizon,'Detailed Calcs'!AB11,'Detailed Calcs'!F12),"") -> 318000 | AJ8: =IF(ISNUMBER(AE8),IF(AE8=time_horizon,'Detailed Calcs'!AB35,'Detailed Calcs'!F36),"") -> 159000 | AK8: 159000 | AL8: ='Detailed Calcs'!AA11 -> 159000
AE9: 6 | AF9: ='Detailed Calcs'!AJ12 -> 171000 | AG9: ='Detailed Calcs'!AJ36 -> 171000 | AH9: 0 | AI9: =IF(ISNUMBER(AE9),IF(AE9=time_horizon,'Detailed Calcs'!AB12,'Detailed Calcs'!F13),"") -> 342000 | AJ9: =IF(ISNUMBER(AE9),IF(AE9=time_horizon,'Detailed Calcs'!AB36,'Detailed Calcs'!F37),"") -> 171000 | AK9: 171000 | AL9: ='Detailed Calcs'!AA12 -> 171000
AE10: 7 | AF10: ='Detailed Calcs'!AJ13 -> 183000 | AG10: ='Detailed Calcs'!AJ37 -> 183000 | AH10: 0 | AI10: =IF(ISNUMBER(AE10),IF(AE10=time_horizon,'Detailed Calcs'!AB13,'Detailed Calcs'!F14),"") -> 366000 | AJ10: =IF(ISNUMBER(AE10),IF(AE10=time_horizon,'Detailed Calcs'!AB37,'Detailed Calcs'!F38),"") -> 183000 | AK10: 183000 | AL10: ='Detailed Calcs'!AA13 -> 183000
AE11: 8 | AF11: ='Detailed Calcs'!AJ14 -> 195000 | AG11: ='Detailed Calcs'!AJ38 -> 195000 | AH11: 0 | AI11: =IF(ISNUMBER(AE11),IF(AE11=time_horizon,'Detailed Calcs'!AB14,'Detailed Calcs'!F15),"") -> 390000 | AJ11: =IF(ISNUMBER(AE11),IF(AE11=time_horizon,'Detailed Calcs'!AB38,'Detailed Calcs'!F39),"") -> 195000 | AK11: 195000 | AL11: ='Detailed Calcs'!AA14 -> 195000
AE12: 9 | AF12: ='Detailed Calcs'!AJ15 -> 207000 | AG12: ='Detailed Calcs'!AJ39 -> 207000 | AH12: 0 | AI12: =IF(ISNUMBER(AE12),IF(AE12=time_horizon,'Detailed Calcs'!AB15,'Detailed Calcs'!F16),"") -> 414000 | AJ12: =IF(ISNUMBER(AE12),IF(AE12=time_horizon,'Detailed Calcs'!AB39,'Detailed Calcs'!F40),"") -> 207000 | AK12: 207000 | AL12: ='Detailed Calcs'!AA15 -> 207000
AE13: 10 | AF13: ='Detailed Calcs'!AJ16 -> 219000 | AG13: ='Detailed Calcs'!AJ40 -> 219000 | AH13: 0 | AI13: =IF(ISNUMBER(AE13),IF(AE13=time_horizon,'Detailed Calcs'!AB16,'Detailed Calcs'!F17),"") -> 438000 | AJ13: =IF(ISNUMBER(AE13),IF(AE13=time_horizon,'Detailed Calcs'!AB40,'Detailed Calcs'!F41),"") -> 219000 | AK13: 219000 | AL13: ='Detailed Calcs'!AA16 -> 219000
AE14: 11 | AF14: ='Detailed Calcs'!AJ17 -> 231000 | AG14: ='Detailed Calcs'!AJ41 -> 231000 | AH14: 0 | AI14: =IF(ISNUMBER(AE14),IF(AE14=time_horizon,'Detailed Calcs'!AB17,'Detailed Calcs'!F18),"") -> 462000 | AJ14: =IF(ISNUMBER(AE14),IF(AE14=time_horizon,'Detailed Calcs'!AB41,'Detailed Calcs'!F42),"") -> 231000 | AK14: 231000 | AL14: ='Detailed Calcs'!AA17 -> 231000
AE15: 12 | AF15: ='Detailed Calcs'!AJ18 -> 243000 | AG15: ='Detailed Calcs'!AJ42 -> 243000 | AH15: 0 | AI15: =IF(ISNUMBER(AE15),IF(AE15=time_horizon,'Detailed Calcs'!AB18,'Detailed Calcs'!F19),"") -> 486000 | AJ15: =IF(ISNUMBER(AE15),IF(AE15=time_horizon,'Detailed Calcs'!AB42,'Detailed Calcs'!F43),"") -> 243000 | AK15: 243000 | AL15: ='Detailed Calcs'!AA18 -> 243000
AE16: 13 | AF16: ='Detailed Calcs'!AJ19 -> 255000 | AG16: ='Detailed Calcs'!AJ43 -> 255000 | AH16: 0 | AI16: =IF(ISNUMBER(AE16),IF(AE16=time_horizon,'Detailed Calcs'!AB19,'Detailed Calcs'!F20),"") -> 510000 | AJ16: =IF(ISNUMBER(AE16),IF(AE16=time_horizon,'Detailed Calcs'!AB43,'Detailed Calcs'!F44),"") -> 255000 | AK16: 255000 | AL16: ='Detailed Calcs'!AA19 -> 255000
AE17: 14 | AF17: ='Detailed Calcs'!AJ20 -> 267000 | AG17: ='Detailed Calcs'!AJ44 -> 267000 | AH17: 0 | AI17: =IF(ISNUMBER(AE17),IF(AE17=time_horizon,'Detailed Calcs'!AB20,'Detailed Calcs'!F21),"") -> 534000 | AJ17: =IF(ISNUMBER(AE17),IF(AE17=time_horizon,'Detailed Calcs'!AB44,'Detailed Calcs'!F45),"") -> 267000 | AK17: 267000 | AL17: ='Detailed Calcs'!AA20 -> 267000
AE18: 15 | AF18: ='Detailed Calcs'!AJ21 -> 279000 | AG18: ='Detailed Calcs'!AJ45 -> 279000 | AH18: 0 | AI18: =IF(ISNUMBER(AE18),IF(AE18=time_horizon,'Detailed Calcs'!AB21,'Detailed Calcs'!F22),"") -> 558000 | AJ18: =IF(ISNUMBER(AE18),IF(AE18=time_horizon,'Detailed Calcs'!AB45,'Detailed Calcs'!F46),"") -> 279000 | AK18: 279000 | AL18: ='Detailed Calcs'!AA21 -> 279000
AE19: 16 | AF19: ='Detailed Calcs'!AJ22 -> 291000 | AG19: ='Detailed Calcs'!AJ46 -> 291000 | AH19: 0 | AI19: =IF(ISNUMBER(AE19),IF(AE19=time_horizon,'Detailed Calcs'!AB22,'Detailed Calcs'!F23),"") -> 582000 | AJ19: =IF(ISNUMBER(AE19),IF(AE19=time_horizon,'Detailed Calcs'!AB46,'Detailed Calcs'!F47),"") -> 291000 | AK19: 291000 | AL19: ='Detailed Calcs'!AA22 -> 291000
AE20: 17 | AF20: ='Detailed Calcs'!AJ23 -> 303000 | AG20: ='Detailed Calcs'!AJ47 -> 303000 | AH20: 0 | AI20: =IF(ISNUMBER(AE20),IF(AE20=time_horizon,'Detailed Calcs'!AB23,'Detailed Calcs'!F24),"") -> 606000 | AJ20: =IF(ISNUMBER(AE20),IF(AE20=time_horizon,'Detailed Calcs'!AB47,'Detailed Calcs'!F48),"") -> 303000 | AK20: 303000 | AL20: ='Detailed Calcs'!AA23 -> 303000
AE21: 18 | AF21: ='Detailed Calcs'!AJ24 -> 315000 | AG21: ='Detailed Calcs'!AJ48 -> 315000 | AH21: 0 | AI21: =IF(ISNUMBER(AE21),IF(AE21=time_horizon,'Detailed Calcs'!AB24,'Detailed Calcs'!F25),"") -> 630000 | AJ21: =IF(ISNUMBER(AE21),IF(AE21=time_horizon,'Detailed Calcs'!AB48,'Detailed Calcs'!F49),"") -> 315000 | AK21: 315000 | AL21: ='Detailed Calcs'!AA24 -> 315000
AE22: 19 | AF22: ='Detailed Calcs'!AJ25 -> 327000 | AG22: ='Detailed Calcs'!AJ49 -> 327000 | AH22: 0 | AI22: =IF(ISNUMBER(AE22),IF(AE22=time_horizon,'Detailed Calcs'!AB25,'Detailed Calcs'!F26),"") -> 654000 | AJ22: =IF(ISNUMBER(AE22),IF(AE22=time_horizon,'Detailed Calcs'!AB49,'Detailed Calcs'!F50),"") -> 327000 | AK22: 327000 | AL22: ='Detailed Calcs'!AA25 -> 327000
AE23: 20 | AF23: ='Detailed Calcs'!AJ26 -> 339000 | AG23: ='Detailed Calcs'!AJ50 -> 339000 | AH23: 0 | AI23: =IF(ISNUMBER(AE23),IF(AE23=time_horizon,'Detailed Calcs'!AB26,'Detailed Calcs'!F27),"") -> 678000 | AJ23: =IF(ISNUMBER(AE23),IF(AE23=time_horizon,'Detailed Calcs'!AB50,'Detailed Calcs'!F51),"") -> 339000 | AK23: 339000 | AL23: ='Detailed Calcs'!AA26 -> 339000
A42: Technical Tools: Gearing Projector
AE47: Year | AF47: Net Income Cashflow Geared Investment | AG47: Interest payable | AH47: Income | AI47: Tax Benefit (Payable) | AK47: Check total
AE48: 1 | AF48: ='Detailed Calcs'!X7 -> 0 | AG48: =IF(ISNUMBER(AE48),IF(capitalise_interest=1,0,-'Detailed Calcs'!D7),"") -> 0 | AH48: =IF(ISNUMBER(AF48),'Detailed Calcs'!J7,"") -> 0 | AI48: =-'Detailed Calcs'!W7 -> 0 | AK48: =AG48+AH48+AI48 -> 0
AE49: =IF(ISNUMBER(AE48),IF(AE48+1>time_horizon,"",AE48+1),"") -> 2 | AF49: ='Detailed Calcs'!X8 -> 0 | AG49: =IF(ISNUMBER(AE49),IF(capitalise_interest=1,0,-'Detailed Calcs'!D8),"") -> 0 | AH49: =IF(ISNUMBER(AF49),'Detailed Calcs'!J8,"") -> 0 | AI49: =IF(ISNUMBER(AE49),-'Detailed Calcs'!W8,"") -> 0 | AK49: =IF(ISNUMBER(AE49),AG49+AH49+AI49+AJ49,"") -> 0
AE50: 3 | AF50: ='Detailed Calcs'!X9 -> 0 | AG50: =IF(ISNUMBER(AE50),IF(capitalise_interest=1,0,-'Detailed Calcs'!D9),"") -> 0 | AH50: =IF(ISNUMBER(AF50),'Detailed Calcs'!J9,"") -> 0 | AI50: =IF(ISNUMBER(AE50),-'Detailed Calcs'!W9,"") -> 0 | AK50: 0
AE51: 4 | AF51: ='Detailed Calcs'!X10 -> 0 | AG51: =IF(ISNUMBER(AE51),IF(capitalise_interest=1,0,-'Detailed Calcs'!D10),"") -> 0 | AH51: =IF(ISNUMBER(AF51),'Detailed Calcs'!J10,"") -> 0 | AI51: =IF(ISNUMBER(AE51),-'Detailed Calcs'!W10,"") -> 0 | AK51: 0
AE52: 5 | AF52: ='Detailed Calcs'!X11 -> 0 | AG52: =IF(ISNUMBER(AE52),IF(capitalise_interest=1,0,-'Detailed Calcs'!D11),"") -> 0 | AH52: =IF(ISNUMBER(AF52),'Detailed Calcs'!J11,"") -> 0 | AI52: =IF(ISNUMBER(AE52),-'Detailed Calcs'!W11,"") -> 0 | AK52: 0
AE53: 6 | AF53: ='Detailed Calcs'!X12 -> 0 | AG53: =IF(ISNUMBER(AE53),IF(capitalise_interest=1,0,-'Detailed Calcs'!D12),"") -> 0 | AH53: =IF(ISNUMBER(AF53),'Detailed Calcs'!J12,"") -> 0 | AI53: =IF(ISNUMBER(AE53),-'Detailed Calcs'!W12,"") -> 0 | AK53: 0
AE54: 7 | AF54: ='Detailed Calcs'!X13 -> 0 | AG54: =IF(ISNUMBER(AE54),IF(capitalise_interest=1,0,-'Detailed Calcs'!D13),"") -> 0 | AH54: =IF(ISNUMBER(AF54),'Detailed Calcs'!J13,"") -> 0 | AI54: =IF(ISNUMBER(AE54),-'Detailed Calcs'!W13,"") -> 0 | AK54: 0
AE55: 8 | AF55: ='Detailed Calcs'!X14 -> 0 | AG55: =IF(ISNUMBER(AE55),IF(capitalise_interest=1,0,-'Detailed Calcs'!D14),"") -> 0 | AH55: =IF(ISNUMBER(AF55),'Detailed Calcs'!J14,"") -> 0 | AI55: =IF(ISNUMBER(AE55),-'Detailed Calcs'!W14,"") -> 0 | AK55: 0
AE56: 9 | AF56: ='Detailed Calcs'!X15 -> 0 | AG56: =IF(ISNUMBER(AE56),IF(capitalise_interest=1,0,-'Detailed Calcs'!D15),"") -> 0 | AH56: =IF(ISNUMBER(AF56),'Detailed Calcs'!J15,"") -> 0 | AI56: =IF(ISNUMBER(AE56),-'Detailed Calcs'!W15,"") -> 0 | AK56: 0
AE57: 10 | AF57: ='Detailed Calcs'!X16 -> 0 | AG57: =IF(ISNUMBER(AE57),IF(capitalise_interest=1,0,-'Detailed Calcs'!D16),"") -> 0 | AH57: =IF(ISNUMBER(AF57),'Detailed Calcs'!J16,"") -> 0 | AI57: =IF(ISNUMBER(AE57),-'Detailed Calcs'!W16,"") -> 0 | AK57: =IF(ISNUMBER(AE57),AG57+AH57+AI57+AJ57,"") -> 0
AE58: 11 | AF58: ='Detailed Calcs'!X17 -> 0 | AG58: =IF(ISNUMBER(AE58),IF(capitalise_interest=1,0,-'Detailed Calcs'!D17),"") -> 0 | AH58: =IF(ISNUMBER(AF58),'Detailed Calcs'!J17,"") -> 0 | AI58: =IF(ISNUMBER(AE58),-'Detailed Calcs'!W17,"") -> 0 | AK58: =IF(ISNUMBER(AE58),AG58+AH58+AI58+AJ58,"") -> 0
AE59: 12 | AF59: ='Detailed Calcs'!X18 -> 0 | AG59: =IF(ISNUMBER(AE59),IF(capitalise_interest=1,0,-'Detailed Calcs'!D18),"") -> 0 | AH59: =IF(ISNUMBER(AF59),'Detailed Calcs'!J18,"") -> 0 | AI59: =IF(ISNUMBER(AE59),-'Detailed Calcs'!W18,"") -> 0 | AK59: 0
AE60: 13 | AF60: ='Detailed Calcs'!X19 -> 0 | AG60: =IF(ISNUMBER(AE60),IF(capitalise_interest=1,0,-'Detailed Calcs'!D19),"") -> 0 | AH60: =IF(ISNUMBER(AF60),'Detailed Calcs'!J19,"") -> 0 | AI60: =IF(ISNUMBER(AE60),-'Detailed Calcs'!W19,"") -> 0 | AK60: 0
AE61: 14 | AF61: ='Detailed Calcs'!X20 -> 0 | AG61: =IF(ISNUMBER(AE61),IF(capitalise_interest=1,0,-'Detailed Calcs'!D20),"") -> 0 | AH61: =IF(ISNUMBER(AF61),'Detailed Calcs'!J20,"") -> 0 | AI61: =IF(ISNUMBER(AE61),-'Detailed Calcs'!W20,"") -> 0 | AK61: 0
AE62: 15 | AF62: ='Detailed Calcs'!X21 -> 0 | AG62: =IF(ISNUMBER(AE62),IF(capitalise_interest=1,0,-'Detailed Calcs'!D21),"") -> 0 | AH62: =IF(ISNUMBER(AF62),'Detailed Calcs'!J21,"") -> 0 | AI62: =IF(ISNUMBER(AE62),-'Detailed Calcs'!W21,"") -> 0 | AK62: 0
AE63: 16 | AF63: ='Detailed Calcs'!X22 -> 0 | AG63: =IF(ISNUMBER(AE63),IF(capitalise_interest=1,0,-'Detailed Calcs'!D22),"") -> 0 | AH63: =IF(ISNUMBER(AF63),'Detailed Calcs'!J22,"") -> 0 | AI63: =IF(ISNUMBER(AE63),-'Detailed Calcs'!W22,"") -> 0 | AK63: 0
AE64: 17 | AF64: ='Detailed Calcs'!X23 -> 0 | AG64: =IF(ISNUMBER(AE64),IF(capitalise_interest=1,0,-'Detailed Calcs'!D23),"") -> 0 | AH64: =IF(ISNUMBER(AF64),'Detailed Calcs'!J23,"") -> 0 | AI64: =IF(ISNUMBER(AE64),-'Detailed Calcs'!W23,"") -> 0 | AK64: 0
AE65: 18 | AF65: ='Detailed Calcs'!X24 -> 0 | AG65: =IF(ISNUMBER(AE65),IF(capitalise_interest=1,0,-'Detailed Calcs'!D24),"") -> 0 | AH65: =IF(ISNUMBER(AF65),'Detailed Calcs'!J24,"") -> 0 | AI65: =IF(ISNUMBER(AE65),-'Detailed Calcs'!W24,"") -> 0 | AK65: 0
AE66: 19 | AF66: ='Detailed Calcs'!X25 -> 0 | AG66: =IF(ISNUMBER(AE66),IF(capitalise_interest=1,0,-'Detailed Calcs'!D25),"") -> 0 | AH66: =IF(ISNUMBER(AF66),'Detailed Calcs'!J25,"") -> 0 | AI66: =IF(ISNUMBER(AE66),-'Detailed Calcs'!W25,"") -> 0 | AK66: 0
AE67: 20 | AF67: ='Detailed Calcs'!X26 -> 0 | AG67: =IF(ISNUMBER(AE67),IF(capitalise_interest=1,0,-'Detailed Calcs'!D26),"") -> 0 | AH67: =IF(ISNUMBER(AF67),'Detailed Calcs'!J26,"") -> 0 | AI67: =IF(ISNUMBER(AE67),-'Detailed Calcs'!W26,"") -> 0 | AK67: 0

Sheet Goal seek
A5: Prepared for: | C5: =Assumptions!B5 -> {Client Name} | F5: =NOW() -> 2025-10-02T09:57:56.310 | AY5: Value | AZ5: Cashflows invested during month (new loan + new capital amounts) | BN5: Units purchased (start of month) | DB5: Capital invested during month
A6: Prepared by: | C6: =Assumptions!B6 -> {Adviser Name}
C7: =Assumptions!B7 -> {Adviser Group}
N8: Geared
K9: Year | L9: Net proceeds as % of goal | M9: Error | N9: Year | O9: Capital start of year | P9: Loan at start of year | Q9: Interest payable | R9: Reinvestment | S9: Total Investment Value Start of year | T9: No. of units start of year | U9: Loan to Investment Ratio | V9: Entry and Exit fees | W9: Income Received | X9: Franking Credits | Y9: Unit Price start of year | Z9: Unit Price end of year | AA9: Units purchased over year | AB9: Total Invested over year | AC9: Other Taxable Income | AD9: Total Assessable Income | AE9: MTR | AF9: Tax + Medicare Levy on total assessable income | AG9: Tax + Medicare Levy on Other Income | AH9: Tax + ML payable on investment, net of franking credits | AI9: Profit from Investment | AJ9: Funds available for Reinvestment | AK9: Capital at end of year | AL9: Loan at end of year | AM9: Sale of units | AN9: Capital Gain net of costs | AO9: Gain on units held for less than 12 months | AP9: Assessable Capital Gain | AQ9: Total Taxable Income | AR9: Tax + ML | AS9: Tax + ML on investment | AT9: Profit from investment | AU9: Net realised portfolio value end of year after loan repaid | AY9: 0 | AZ9: 1 | BA9: 2 | BB9: 3 | BC9: 4 | BD9: 5 | BE9: 6 | BF9: 7 | BG9: 8 | BH9: 9 | BI9: 10 | BJ9: 11 | BK9: 12 | BL9: Total Cash invested | BN9: 1 | BO9: 2 | BP9: 3 | BQ9: 4 | BR9: 5 | BS9: 6 | BT9: 7 | BU9: 8 | BV9: 9 | BW9: 10 | BX9: 11 | BY9: 12 | BZ9: Total | CA9: Check Average Price paid for units | CB9: 1 | CC9: 2 | CD9: 3 | CE9: 4 | CF9: 5 | CG9: 6 | CH9: 7 | CI9: 8 | CJ9: 9 | CK9: 10 | CL9: 11 | CM9: 12 | CN9: Total | CO9: Check average yield | CP9: Loan at start of month 1 | CQ9: start 2 | CR9: start 3 | CS9: start 4 | CT9: start 5 | CU9: start 6 | CV9: start 7 | CW9: start 8 | CX9: start 9 | CY9: start 10 | CZ9: start 11 | DA9: start 12 | DB9: 1 | DC9: 2 | DD9: 3 | DE9: 4 | DF9: 5 | DG9: 6 | DH9: 7 | DI9: 8 | DJ9: 9 | DK9: 10 | DL9: 11 | DM9: 12 | DN9: Year included in projection
B10: What do you want to achieve? (Net proceeds goal) | K10: 1 | L10: =AV10 -> 0 | M10: =IF(ISERROR(L10),1,0) -> 0 | N10: 1 | O10: =Goal_capital -> 100000 | P10: =Goal_loan -> 100000 | Q10: =SUM(CP10:DA10)/12*Goal_interest -> 0 | S10: =(O10+P10)*(1-entry_exit_fee) -> 200000 | T10: =S10/Y10 -> 200000 | U10: =IF(P10=0,0,P10/S10) -> 0.5 | V10: =(O10+P10+AB10)*entry_exit_fee -> 0 | W10: =S10*Goal_income+$CN10 -> 0 | X10: =W10*FrankingLevel*Co_tax_rate/(1-Co_tax_rate) -> 0 | Y10: =1 -> 1 | Z10: =Y10*(1+Goal_growth) -> 1 | AA10: =BZ10 -> 0 | AB10: =BL10 -> 0 | AC10: =Goal_OTI -> 0 | AD10: =-Q10+W10+X10+AC10 -> 0 | AE10: =IF(AD10>0,MTR_08(AD10),0) -> 0 | AF10: =MAX(Tax_Y1(AD10),0)+medicare(AD10) -> 0 | AG10: =Tax_Y1(AC10)+medicare(AC10) -> 0 | AH10: =AF10-AG10-X10 -> 0 | AI10: =-Q10+W10-AH10 -> 0 | AJ10: =W10-AH10 -> 0 | AK10: =O10+SUM(DB10:DM10) -> 100000 | AL10: =DA10 -> 0 | AM10: =(T10+AA10)*Z10 -> 200000 | AN10: =AM10-Capital-loan-SUM($R$10:R10)-SUM($AB$10:AB10) -> 0 | AO10: =AA10*Z10-AB10 -> 0 | AP10: =AO10+1/2*(AN10-AO10) -> 0 | AQ10: =AD10+AP10 -> 0 | AR10: =MAX(Tax_Y1(AQ10),0)+medicare(AQ10) -> 0 | AS10: =AR10-AG10-X10 -> 0 | AT10: =-Q10+W10-AS10+AN10 -> 0 | AU10: =W10+AM10-AS10-AL10 -> 200000 | AV10: =IF(Goal_seek=0,0,AU10/Goal_seek) -> 0 | AX10: 1 | AY10: =T10 -> 200000 | AZ10: 0 | BA10: =IF($DN10=1,CQ10-CP10+DC10,"") ->  | BB10: =IF($DN10=1,CR10-CQ10+DD10,"") ->  | BC10: =IF($DN10=1,CS10-CR10+DE10,"") ->  | BD10: =IF($DN10=1,CT10-CS10+DF10,"") ->  | BE10: =IF($DN10=1,CU10-CT10+DG10,"") ->  | BF10: =IF($DN10=1,CV10-CU10+DH10,"") ->  | BG10: =IF($DN10=1,CW10-CV10+DI10,"") ->  | BH10: =IF($DN10=1,CX10-CW10+DJ10,"") ->  | BI10: =IF($DN10=1,CY10-CX10+DK10,"") ->  | BJ10: =IF($DN10=1,CZ10-CY10+DL10,"") ->  | BK10: =IF($DN10=1,DA10-CZ10+DM10,"") ->  | BL10: =SUM(AZ10:BK10) -> 0 | BM10: 0 | BN10: =IF($DN10=1,(1-entry_exit_fee)*AZ10/(IF(Smooth_Fluctuate=1,$Y10*(1+INDEX(CapitalGain,$N10))^((BN$9-1)/12),INDEX(hist_index,Start_Ref+$BL10+BN$9-1,2)/INDEX(hist_index,Start_Ref,2))),"") ->  | BZ10: =SUM(BN10:BY10) -> 0 | CA10: =IF(BZ10<>0,BL10/BZ10,"") ->  | CB10: =IF($DN10=1,(1-entry_exit_fee)*AZ10*IF(Smooth_Fluctuate=1,((1+INDEX(DividendIncome,$N10))^((12-CB$9+1)/12)-1),INDEX(hist_index,Start_Ref+$BL10+12,3)/INDEX(hist_index,Start_Ref+$BL10+CB$9-1,3)-INDEX(hist_index,Start_Ref+$BL10+12,2)/INDEX(hist_index,Start_Ref+$BL10+CB$9-1,2)),"") ->  | CC10: =IF($DN10=1,(1-entry_exit_fee)*BA10*IF(Smooth_Fluctuate=1,((1+INDEX(DividendIncome,$N10))^((12-CC$9+1)/12)-1),INDEX(hist_index,Start_Ref+$BL10+12,3)/INDEX(hist_index,Start_Ref+$BL10+CC$9-1,3)-INDEX(hist_index,Start_Ref+$BL10+12,2)/INDEX(hist_index,Start_Ref+$BL10+CC$9-1,2)),"") ->  | CD10: =IF($DN10=1,(1-entry_exit_fee)*BB10*IF(Smooth_Fluctuate=1,((1+INDEX(DividendIncome,$N10))^((12-CD$9+1)/12)-1),INDEX(hist_index,Start_Ref+$BL10+12,3)/INDEX(hist_index,Start_Ref+$BL10+CD$9-1,3)-INDEX(hist_index,Start_Ref+$BL10+12,2)/INDEX(hist_index,Start_Ref+$BL10+CD$9-1,2)),"") ->  | CE10: =IF($DN10=1,(1-entry_exit_fee)*BC10*IF(Smooth_Fluctuate=1,((1+INDEX(DividendIncome,$N10))^((12-CE$9+1)/12)-1),INDEX(hist_index,Start_Ref+$BL10+12,3)/INDEX(hist_index,Start_Ref+$BL10+CE$9-1,3)-INDEX(hist_index,Start_Ref+$BL10+12,2)/INDEX(hist_index,Start_Ref+$BL10+CE$9-1,2)),"") ->  | CF10: =IF($DN10=1,(1-entry_exit_fee)*BD10*IF(Smooth_Fluctuate=1,((1+INDEX(DividendIncome,$N10))^((12-CF$9+1)/12)-1),INDEX(hist_index,Start_Ref+$BL10+12,3)/INDEX(hist_index,Start_Ref+$BL10+CF$9-1,3)-INDEX(hist_index,Start_Ref+$BL10+12,2)/INDEX(hist_index,Start_Ref+$BL10+CF$9-1,2)),"") ->  | CG10: =IF($DN10=1,(1-entry_exit_fee)*BE10*IF(Smooth_Fluctuate=1,((1+INDEX(DividendIncome,$N10))^((12-CG$9+1)/12)-1),INDEX(hist_index,Start_Ref+$BL10+12,3)/INDEX(hist_index,Start_Ref+$BL10+CG$9-1,3)-INDEX(hist_index,Start_Ref+$BL10+12,2)/INDEX(hist_index,Start_Ref+$BL10+CG$9-1,2)),"") ->  | CH10: =IF($DN10=1,(1-entry_exit_fee)*BF10*IF(Smooth_Fluctuate=1,((1+INDEX(DividendIncome,$N10))^((12-CH$9+1)/12)-1),INDEX(hist_index,Start_Ref+$BL10+12,3)/INDEX(hist_index,Start_Ref+$BL10+CH$9-1,3)-INDEX(hist_index,Start_Ref+$BL10+12,2)/INDEX(hist_index,Start_Ref+$BL10+CH$9-1,2)),"") ->  | CI10: =IF($DN10=1,(1-entry_exit_fee)*BG10*IF(Smooth_Fluctuate=1,((1+INDEX(DividendIncome,$N10))^((12-CI$9+1)/12)-1),INDEX(hist_index,Start_Ref+$BL10+12,3)/INDEX(hist_index,Start_Ref+$BL10+CI$9-1,3)-INDEX(hist_index,Start_Ref+$BL10+12,2)/INDEX(hist_index,Start_Ref+$BL10+CI$9-1,2)),"") ->  | CJ10: =IF($DN10=1,(1-entry_exit_fee)*BH10*IF(Smooth_Fluctuate=1,((1+INDEX(DividendIncome,$N10))^((12-CJ$9+1)/12)-1),INDEX(hist_index,Start_Ref+$BL10+12,3)/INDEX(hist_index,Start_Ref+$BL10+CJ$9-1,3)-INDEX(hist_index,Start_Ref+$BL10+12,2)/INDEX(hist_index,Start_Ref+$BL10+CJ$9-1,2)),"") ->  | CK10: =IF($DN10=1,(1-entry_exit_fee)*BI10*IF(Smooth_Fluctuate=1,((1+INDEX(DividendIncome,$N10))^((12-CK$9+1)/12)-1),INDEX(hist_index,Start_Ref+$BL10+12,3)/INDEX(hist_index,Start_Ref+$BL10+CK$9-1,3)-INDEX(hist_index,Start_Ref+$BL10+12,2)/INDEX(hist_index,Start_Ref+$BL10+CK$9-1,2)),"") ->  | CL10: =IF($DN10=1,(1-entry_exit_fee)*BJ10*IF(Smooth_Fluctuate=1,((1+INDEX(DividendIncome,$N10))^((12-CL$9+1)/12)-1),INDEX(hist_index,Start_Ref+$BL10+12,3)/INDEX(hist_index,Start_Ref+$BL10+CL$9-1,3)-INDEX(hist_index,Start_Ref+$BL10+12,2)/INDEX(hist_index,Start_Ref+$BL10+CL$9-1,2)),"") ->  | CM10: =IF($DN10=1,(1-entry_exit_fee)*BK10*IF(Smooth_Fluctuate=1,((1+INDEX(DividendIncome,$N10))^((12-CM$9+1)/12)-1),INDEX(hist_index,Start_Ref+$BL10+12,3)/INDEX(hist_index,Start_Ref+$BL10+CM$9-1,3)-INDEX(hist_index,Start_Ref+$BL10+12,2)/INDEX(hist_index,Start_Ref+$BL10+CM$9-1,2)),"") ->  | CN10: =SUM(CB10:CM10) -> 0 | CO10: =IF(CN10<>0,$CN10/$BL10*2,"") ->  | CP10: =IF($DN10=1,P10,"") ->  | CQ10: =IF($DN10=1,CP10+Goal_monthB*(1+annual_index)^($N10-1),"") ->  | DA10: =IF($DN10=1,CZ10+Goal_monthB*(1+annual_index)^($N10-1),0) -> 0 | DB10: 0 | DC10: =IF($DN10=1,Goal_monthK*(1+annual_index)^($N10-1),"") ->  | DN10: =IF(N10>time_goal,0,1) -> 0
K11: =IF(ISNUMBER(K10),IF(K10+1>time_goal,"",K10+1),"") ->  | L11: =AV11 ->  | M11: =IF(ISERROR(L11),1,0) -> 0 | N11: 2 | O11: =IF($DN11=1,AK10+DB11,"") ->  | P11: =IF($DN11=1,CP11,"") ->  | Q11: =IF($DN11=1,SUM(CP11:DA11)/12*Goal_interest,"") ->  | R11: =IF($DN11=1,IF(Reinvest=1,AJ10,0),"") ->  | S11: =IF($DN11=1,T11*Y11,"") ->  | T11: =IF($DN11=1,T10+R11/Y11*(1-entry_exit_fee)+AA10,"") ->  | U11: =IF($DN11=1,P11/S11,"") ->  | V11: =IF(DN11=1,(R11+AB11)*entry_exit_fee,"") ->  | W11: =IF($DN11=1,S11*Goal_income+$CN11,"") ->  | X11: =IF($DN11=1,W11*FrankingLevel*Co_tax_rate/(1-Co_tax_rate),"") ->  | Y11: =IF($DN11=1,Z10,"") ->  | Z11: =IF($DN11=1,Y11*(1+Goal_growth),"") ->  | AA11: =IF(DN11=1,BZ11,"") ->  | AB11: =IF(DN11=1,BL11,"") ->  | AC11: =Goal_OTI -> 0 | AD11: =IF(DN11=1,-Q11+W11+X11+AC11,"") ->  | AE11: =IF(DN11=1,IF(AD11>0,MTR_09(AD11),0),"") ->  | AF11: =IF(DN11=1,MAX(Tax_Y2(AD11),0)+medicare(AD11),"") ->  | AG11: =IF(DN11=1,Tax_Y2(AC11)+medicare(AC11),"") ->  | AH11: =IF(DN11=1,AF11-AG11-X11,"") ->  | AI11: =IF(DN11=1,-Q11+W11-AH11,"") ->  | AJ11: =IF(DN11=1,W11-AH11,"") ->  | AK11: =IF(DN11=1,AK10+SUM(DB11:DM11),"") ->  | AM11: =IF(DN11=1,(T11+AA11)*Z11,"") ->  | AN11: =IF(DN11=1,AM11-Capital-loan-SUM($R$10:R11)-SUM($AB$10:AB11),"") ->  | AO11: =IF(DN11=1,AA11*Z11-AB11,"") ->  | AP11: =IF(DN11=1,AO11+1/2*(AN11-AO11),"") ->  | AQ11: =IF(DN11=1,AD11+AP11,"") ->  | AR11: =IF(DN11=1,MAX(Tax_Y2(AQ11),0)+medicare(AQ11),"") ->  | AS11: =IF(DN11=1,AR11-AG11-X11,"") ->  | AT11: =IF(DN11=1,-Q11+W11-AS11+AN11+SUM($V$10:V10),"") ->  | AU11: =IF(DN11=1,W11+AM11-AS11-AL11,"") ->  | AV11: =IF(DN11,AU11/Goal_seek,"") ->  | AX11: 2 | AZ11: =IF($DN11=1,CP11-DA10+DB11,"") ->  | BL11: 0 | BM11: 12 | BN11: =IF($DN11=1,(1-entry_exit_fee)*AZ11/(IF(Smooth_Fluctuate=1,$Y11*(1+INDEX(CapitalGain,$N11))^((BN$9-1)/12),INDEX(hist_index,Start_Ref+$BL11+BN$9-1,2)/INDEX(hist_index,Start_Ref,2))),"") ->  | BO11: =IF($DN11=1,(1-entry_exit_fee)*BA11/(IF(Smooth_Fluctuate=1,$Y11*(1+INDEX(CapitalGain,$N11))^((BO$9-1)/12),INDEX(hist_index,Start_Ref+$BL11+BO$9-1,2)/INDEX(hist_index,Start_Ref,2))),"") ->  | BZ11: =SUM(BN11:BY11) -> 0 | CB11: =IF($DN11=1,(1-entry_exit_fee)*AZ11*IF(Smooth_Fluctuate=1,((1+INDEX(DividendIncome,$N11))^((12-CB$9+1)/12)-1),INDEX(hist_index,Start_Ref+$BL11+12,3)/INDEX(hist_index,Start_Ref+$BL11+CB$9-1,3)-INDEX(hist_index,Start_Ref+$BL11+12,2)/INDEX(hist_index,Start_Ref+$BL11+CB$9-1,2)),"") ->  | CN11: 0 | CP11: =IF($DN11=1,DA10+Goal_monthB*(1+annual_index)^($N11-1),"") ->  | CQ11: =IF($DN11=1,CP11+Goal_monthB*(1+annual_index)^($N11-1),"") ->  | DB11: =IF($DN11=1,Goal_monthK*(1+annual_index)^($N11-1),"") ->  | DN11: =IF(N11>time_goal,0,1) -> 0
K12: =IF(ISNUMBER(K11),IF(K11+1>time_goal,"",K11+1),"") ->  | M12: =IF(ISERROR(L12),1,0) -> 0 | N12: 3 | O12: =IF($DN12=1,AK11+DB12,"") ->  | Q12: =IF($DN12=1,SUM(CP12:DA12)/12*INDEX(interest,N12),"") ->  | R12: =IF($DN12=1,IF(Reinvest=1,AJ11,0),"") ->  | T12: =IF($DN12=1,T11+R12/Y12*(1-entry_exit_fee)+AA11,"") ->  | Y12: =IF($DN12=1,Z11,"") ->  | AC12: 0 | AE12: =IF(DN12=1,IF(AD12>0,MTR_09(AD12),0),"") ->  | AJ12: =IF(DN12=1,W12-AH12,"") ->  | AK12: =IF(DN12=1,AK11+SUM(DB12:DM12),"") ->  | AN12: =IF(DN12=1,AM12-Capital-loan-SUM($R$10:R12)-SUM($AB$10:AB12),"") ->  | AT12: =IF(DN12=1,-Q12+W12-AS12+AN12+SUM($V$10:V11),"") ->  | AX12: 3 | AZ12: =IF($DN12=1,CP12-DA11+DB12,"") ->  | BL12: 0 | BM12: 24 | BO12: =IF($DN12=1,(1-entry_exit_fee)*BA12/(IF(Smooth_Fluctuate=1,$Y12*(1+INDEX(CapitalGain,$N12))^((BO$9-1)/12),INDEX(hist_index,Start_Ref+$BL12+BO$9-1,2)/INDEX(hist_index,Start_Ref,2))),"") ->  | BP12: =IF($DN12=1,(1-entry_exit_fee)*BB12/(IF(Smooth_Fluctuate=1,$Y12*(1+INDEX(CapitalGain,$N12))^((BP$9-1)/12),INDEX(hist_index,Start_Ref+$BL12+BP$9-1,2)/INDEX(hist_index,Start_Ref,2))),"") ->  | BQ12: =IF($DN12=1,(1-entry_exit_fee)*BC12/(IF(Smooth_Fluctuate=1,$Y12*(1+INDEX(CapitalGain,$N12))^((BQ$9-1)/12),INDEX(hist_index,Start_Ref+$BL12+BQ$9-1,2)/INDEX(hist_index,Start_Ref,2))),"") ->  | BR12: =IF($DN12=1,(1-entry_exit_fee)*BD12/(IF(Smooth_Fluctuate=1,$Y12*(1+INDEX(CapitalGain,$N12))^((BR$9-1)/12),INDEX(hist_index,Start_Ref+$BL12+BR$9-1,2)/INDEX(hist_index,Start_Ref,2))),"") ->  | BS12: =IF($DN12=1,(1-entry_exit_fee)*BE12/(IF(Smooth_Fluctuate=1,$Y12*(1+INDEX(CapitalGain,$N12))^((BS$9-1)/12),INDEX(hist_index,Start_Ref+$BL12+BS$9-1,2)/INDEX(hist_index,Start_Ref,2))),"") ->  | BT12: =IF($DN12=1,(1-entry_exit_fee)*BF12/(IF(Smooth_Fluctuate=1,$Y12*(1+INDEX(CapitalGain,$N12))^((BT$9-1)/12),INDEX(hist_index,Start_Ref+$BL12+BT$9-1,2)/INDEX(hist_index,Start_Ref,2))),"") ->  | BU12: =IF($DN12=1,(1-entry_exit_fee)*BG12/(IF(Smooth_Fluctuate=1,$Y12*(1+INDEX(CapitalGain,$N12))^((BU$9-1)/12),INDEX(hist_index,Start_Ref+$BL12+BU$9-1,2)/INDEX(hist_index,Start_Ref,2))),"") ->  | BV12: =IF($DN12=1,(1-entry_exit_fee)*BH12/(IF(Smooth_Fluctuate=1,$Y12*(1+INDEX(CapitalGain,$N12))^((BV$9-1)/12),INDEX(hist_index,Start_Ref+$BL12+BV$9-1,2)/INDEX(hist_index,Start_Ref,2))),"") ->  | BW12: =IF($DN12=1,(1-entry_exit_fee)*BI12/(IF(Smooth_Fluctuate=1,$Y12*(1+INDEX(CapitalGain,$N12))^((BW$9-1)/12),INDEX(hist_index,Start_Ref+$BL12+BW$9-1,2)/INDEX(hist_index,Start_Ref,2))),"") ->  | BX12: =IF($DN12=1,(1-entry_exit_fee)*BJ12/(IF(Smooth_Fluctuate=1,$Y12*(1+INDEX(CapitalGain,$N12))^((BX$9-1)/12),INDEX(hist_index,Start_Ref+$BL12+BX$9-1,2)/INDEX(hist_index,Start_Ref,2))),"") ->  | BY12: =IF($DN12=1,(1-entry_exit_fee)*BK12/(IF(Smooth_Fluctuate=1,$Y12*(1+INDEX(CapitalGain,$N12))^((BY$9-1)/12),INDEX(hist_index,Start_Ref+$BL12+BY$9-1,2)/INDEX(hist_index,Start_Ref,2))),"") ->  | BZ12: 0 | CN12: 0 | CP12: =IF($DN12=1,DA11+Goal_monthB*(1+annual_index)^($N12-1),"") ->  | CQ12: =IF($DN12=1,CP12+Goal_monthB*(1+annual_index)^($N12-1),"") ->  | DN12: 0
B13: How many years to reach or exceed goal ? | M13: 0 | N13: 4 | AC13: 0 | AJ13: =IF(DN13=1,W13-AH13,"") ->  | AN13: =IF(DN13=1,AM13-Capital-loan-SUM($R$10:R13)-SUM($AB$10:AB13),"") ->  | AT13: =IF(DN13=1,-Q13+W13-AS13+AN13+SUM($V$10:V12),"") ->  | AX13: 4 | BL13: 0 | BM13: 36 | BZ13: 0 | CN13: 0 | CQ13: =IF($DN13=1,CP13+Goal_monthB*(1+annual_index)^($N13-1),"") ->  | DN13: 0
M14: 0 | N14: 5 | AC14: 0 | AN14: =IF(DN14=1,AM14-Capital-loan-SUM($R$10:R14)-SUM($AB$10:AB14),"") ->  | AT14: =IF(DN14=1,-Q14+W14-AS14+AN14+SUM($V$10:V13),"") ->  | AX14: 5 | BL14: 0 | BM14: 48 | BZ14: 0 | CN14: 0 | CQ14: =IF($DN14=1,CP14+Goal_monthB*(1+annual_index)^($N14-1),"") ->  | DN14: 0
M15: 0 | N15: 6 | AC15: 0 | AN15: =IF(DN15=1,AM15-Capital-loan-SUM($R$10:R15)-SUM($AB$10:AB15),"") ->  | AT15: =IF(DN15=1,-Q15+W15-AS15+AN15+SUM($V$10:V14),"") ->  | AX15: 6 | BL15: 0 | BM15: 60 | BZ15: 0 | CN15: 0 | CQ15: =IF($DN15=1,CP15+Goal_monthB*(1+annual_index)^($N15-1),"") ->  | DN15: 0
B16: What regular capital contribution will you make? | M16: 0 | N16: 7 | AC16: 0 | AN16: =IF(DN16=1,AM16-Capital-loan-SUM($R$10:R16)-SUM($AB$10:AB16),"") ->  | AT16: =IF(DN16=1,-Q16+W16-AS16+AN16+SUM($V$10:V15),"") ->  | AX16: 7 | BL16: 0 | BM16: 72 | BZ16: 0 | CN16: 0 | CQ16: =IF($DN16=1,CP16+Goal_monthB*(1+annual_index)^($N16-1),"") ->  | DC16: =IF($DN16=1,Goal_monthK*(1+annual_index)^($N16-1),"") ->  | DN16: 0
M17: 0 | N17: 8 | AC17: 0 | AN17: =IF(DN17=1,AM17-Capital-loan-SUM($R$10:R17)-SUM($AB$10:AB17),"") ->  | AT17: =IF(DN17=1,-Q17+W17-AS17+AN17+SUM($V$10:V16),"") ->  | AX17: 8 | BL17: 0 | BM17: 84 | BZ17: 0 | CN17: 0 | CQ17: =IF($DN17=1,CP17+Goal_monthB*(1+annual_index)^($N17-1),"") ->  | DN17: 0
M18: 0 | N18: 9 | AC18: 0 | AN18: =IF(DN18=1,AM18-Capital-loan-SUM($R$10:R18)-SUM($AB$10:AB18),"") ->  | AT18: =IF(DN18=1,-Q18+W18-AS18+AN18+SUM($V$10:V17),"") ->  | AX18: 9 | BL18: 0 | BM18: 96 | BZ18: 0 | CN18: 0 | CQ18: =IF($DN18=1,CP18+Goal_monthB*(1+annual_index)^($N18-1),"") ->  | DN18: 0
B19: What capital growth rate do you expect? | M19: 0 | N19: 10 | AC19: 0 | AN19: =IF(DN19=1,AM19-Capital-loan-SUM($R$10:R19)-SUM($AB$10:AB19),"") ->  | AT19: =IF(DN19=1,-Q19+W19-AS19+AN19+SUM($V$10:V18),"") ->  | AX19: 10 | BL19: 0 | BM19: 97 | BZ19: 0 | CN19: 0 | CQ19: =IF($DN19=1,CP19+Goal_monthB*(1+annual_index)^($N19-1),"") ->  | DN19: 0
M20: 0 | N20: 11 | AC20: 0 | AN20: =IF(DN20=1,AM20-Capital-loan-SUM($R$10:R20)-SUM($AB$10:AB20),"") ->  | AT20: =IF(DN20=1,-Q20+W20-AS20+AN20+SUM($V$10:V19),"") ->  | AX20: 11 | BL20: 0 | BM20: 98 | BZ20: 0 | CN20: 0 | CQ20: =IF($DN20=1,CP20+Goal_monthB*(1+annual_index)^($N20-1),"") ->  | DN20: 0
M21: 0 | N21: 12 | AC21: 0 | AN21: =IF(DN21=1,AM21-Capital-loan-SUM($R$10:R21)-SUM($AB$10:AB21),"") ->  | AT21: =IF(DN21=1,-Q21+W21-AS21+AN21+SUM($V$10:V20),"") ->  | AX21: 12 | BL21: 0 | BM21: 99 | BZ21: 0 | CN21: 0 | CQ21: =IF($DN21=1,CP21+Goal_monthB*(1+annual_index)^($N21-1),"") ->  | DN21: 0
M22: 0 | N22: 13 | AC22: 0 | AN22: =IF(DN22=1,AM22-Capital-loan-SUM($R$10:R22)-SUM($AB$10:AB22),"") ->  | AT22: =IF(DN22=1,-Q22+W22-AS22+AN22+SUM($V$10:V21),"") ->  | AX22: 13 | BL22: 0 | BM22: 100 | BZ22: 0 | CN22: 0 | CQ22: =IF($DN22=1,CP22+Goal_monthB*(1+annual_index)^($N22-1),"") ->  | DN22: 0
E23: What you will achieve | F23: =INDEX('Goal seek'!AU10:AU29,time_goal) ->  | M23: 0 | N23: 14 | AC23: 0 | AN23: =IF(DN23=1,AM23-Capital-loan-SUM($R$10:R23)-SUM($AB$10:AB23),"") ->  | AT23: =IF(DN23=1,-Q23+W23-AS23+AN23+SUM($V$10:V22),"") ->  | AX23: 14 | BL23: 0 | BM23: 101 | BZ23: 0 | CN23: 0 | CQ23: =IF($DN23=1,CP23+Goal_monthB*(1+annual_index)^($N23-1),"") ->  | DN23: 0
M24: 0 | N24: 15 | AC24: 0 | AN24: =IF(DN24=1,AM24-Capital-loan-SUM($R$10:R24)-SUM($AB$10:AB24),"") ->  | AT24: =IF(DN24=1,-Q24+W24-AS24+AN24+SUM($V$10:V23),"") ->  | AX24: 15 | BL24: 0 | BM24: 102 | BZ24: 0 | CN24: 0 | CQ24: =IF($DN24=1,CP24+Goal_monthB*(1+annual_index)^($N24-1),"") ->  | DN24: 0
E25: Shortfall | F25: =IF(ISERROR(Goal_seek*L33),0,Goal_seek*L33) -> 0 | M25: 0 | N25: 16 | AC25: 0 | AN25: =IF(DN25=1,AM25-Capital-loan-SUM($R$10:R25)-SUM($AB$10:AB25),"") ->  | AT25: =IF(DN25=1,-Q25+W25-AS25+AN25+SUM($V$10:V24),"") ->  | AX25: 16 | BL25: 0 | BM25: 103 | BZ25: 0 | CN25: 0 | CQ25: =IF($DN25=1,CP25+Goal_monthB*(1+annual_index)^($N25-1),"") ->  | DN25: 0
M26: 0 | N26: 17 | AC26: 0 | AN26: =IF(DN26=1,AM26-Capital-loan-SUM($R$10:R26)-SUM($AB$10:AB26),"") ->  | AT26: =IF(DN26=1,-Q26+W26-AS26+AN26+SUM($V$10:V25),"") ->  | AX26: 17 | BL26: 0 | BM26: 104 | BZ26: 0 | CN26: 0 | CQ26: =IF($DN26=1,CP26+Goal_monthB*(1+annual_index)^($N26-1),"") ->  | DN26: 0
M27: 0 | N27: 18 | AC27: 0 | AN27: =IF(DN27=1,AM27-Capital-loan-SUM($R$10:R27)-SUM($AB$10:AB27),"") ->  | AT27: =IF(DN27=1,-Q27+W27-AS27+AN27+SUM($V$10:V26),"") ->  | AX27: 18 | BL27: 0 | BM27: 105 | BZ27: 0 | CN27: 0 | CQ27: =IF($DN27=1,CP27+Goal_monthB*(1+annual_index)^($N27-1),"") ->  | DN27: 0
M28: 0 | N28: 19 | AC28: 0 | AN28: =IF(DN28=1,AM28-Capital-loan-SUM($R$10:R28)-SUM($AB$10:AB28),"") ->  | AT28: =IF(DN28=1,-Q28+W28-AS28+AN28+SUM($V$10:V27),"") ->  | AX28: 19 | BL28: 0 | BM28: 106 | BZ28: 0 | CN28: 0 | CQ28: =IF($DN28=1,CP28+Goal_monthB*(1+annual_index)^($N28-1),"") ->  | DN28: 0
M29: 0 | N29: 20 | AC29: 0 | AN29: =IF(DN29=1,AM29-Capital-loan-SUM($R$10:R29)-SUM($AB$10:AB29),"") ->  | AT29: =IF(DN29=1,-Q29+W29-AS29+AN29+SUM($V$10:V28),"") ->  | AX29: 20 | BL29: 0 | BM29: 107 | BZ29: 0 | CN29: 0 | CQ29: =IF($DN29=1,CP29+Goal_monthB*(1+annual_index)^($N29-1),"") ->  | DN29: 0
Q31: =SUM(Q10:Q23) -> 0 | R31: =SUM(R10:R23) -> 0 | V31: =SUM(V10:V23) -> 0 | W31: =SUM(W10:W23) -> 0 | X31: =SUM(X10:X23) -> 0 | AA31: =SUM(AA10:AA23) -> 0 | AB31: =SUM(AB10:AB23) -> 0 | AH31: =SUM(AH10:AH19) -> 0
K32: Percentage Achieved | L32: =MAX(L10:L29) -> 0
K33: Shortfall | L33: =IF(L32<1,1-L32,0) -> 1 | O33: Error | P33: =IF(SUM(M10:M29)=0,0,1) -> 0
K34: =IF(L33>0,"shortfall","no shortfall") -> shortfall | P34: =SUM(M10:M29) -> 0 | Q34: =P34=0 -> TRUE
P35: =IF(SUM(M10:M29)=0%,0,1) -> 0
F38: Summary of Instalment Gearing portfolio
E40: Start | F40: Each month
D41: Capital | E41: =Goal_capital -> 100000 | F41: =Goal_monthK -> 0
D42: Loan | E42: =Goal_loan -> 100000 | F42: =Goal_monthK*goal_lvr/(1-goal_lvr) -> 0
D43: Total Invested | E43: =Goal_capital+Goal_loan -> 200000 | F43: =Goal_monthK+Goal_monthB -> 0
B46: Gearing ratio for monthly investment | F46: 0
B47: Capital at commencement | F47: =Capital -> 100000
B48: Loan at commencement | F48: =loan -> 100000
B49: Income % pa | F49: =Assumptions!$H$114 -> 0
B50: Interest rate | F50: =Assumptions!$I$114 -> 0
B51: Other Taxable Income each year | F51: =Assumptions!$J$114 -> 0
B52: Entry fees | F52: =entry_exit_fee -> 0
B53: Franking Level | F53: =FrankingLevel -> 0.75
B54: Reinvestment of income | F54: =IF(Reinvest=1,"Yes","No") -> Yes
B55: Annual increase | F55: =annual_index -> 0
